Workbook

Sheet Page 307
A1: PRICE AND MARKET CAP DATA FOR 10 COMPANIES
B2: General Motors GM | C2: Home Depot HD | D2: International Paper IP | E2: Hewlett-Packard HPQ | F2: Altria MO | G2: American Express AXP | H2: Alcoa Aluminum AA | I2: DuPont DD | J2: Merck MRK | K2: MMM
A3: Market capitalization (billion $) | B3: 16.85 | C3: 73.98 | D3: 15.92 | E3: 88.37 | F3: 153.33 | G3: 65.66 | H3: 28.16 | I3: 38.32 | J3: 79.51 | K3: 60.9
A4: Benchmark proportion | B4: =B3/SUM($B$3:$K$3) -> 0.02713365539 | C4: =C3/SUM($B$3:$K$3) -> 0.1191304348 | D4: 0.02563607085 | E4: 0.1423027375 | F4: 0.2469082126 | G4: =G3/SUM($B$3:$K$3) -> 0.1057326892 | H4: 0.04534621578 | I4: 0.06170692432 | J4: 0.1280354267 | K4: 0.09806763285 | L4: =getformula(K4) -> <-- =K3/SUM($B$3:$K$3)
A6: Monthly price data (includes dividends)
A7: 2001-06-01 | B7: 50.31 | C7: 45.26 | D7: 31.22 | E7: 26.47 | F7: 38.74 | G7: 32.47 | H7: 36.06 | I7: 40.88 | J7: 50.74 | K7: 51.56
A8: 2001-07-02 | B8: 49.72 | C8: 48.26 | D8: 35.64 | E8: 22.83 | F8: 35.61 | G8: 33.82 | H8: 35.37 | I8: 36.29 | J8: 53.98 | K8: 50.55
A9: 2001-08-01 | B9: 43.14 | C9: 44.06 | D9: 35.32 | E9: 21.48 | F9: 37.1 | G9: 30.54 | H9: 34.5 | I9: 35.01 | J9: 51.96 | K9: 47.3
A10: 2001-09-04 | B10: 33.81 | C10: 36.79 | D10: 30.66 | E10: 14.92 | F10: 37.79 | G10: 24.37 | H10: 28.06 | I10: 32.07 | J10: 53.16 | K10: 44.71
A11: 2001-10-01 | B11: 32.56 | C11: 36.66 | D11: 31.5 | E11: 15.65 | F11: 36.63 | G11: 24.75 | H11: 29.34 | I11: 34.18 | J11: 50.93 | K11: 47.43
A12: 2001-11-01 | B12: 39.63 | C12: 44.78 | D12: 35.37 | E12: 20.45 | F12: 36.92 | G12: 27.68 | H12: 35.09 | I12: 38.21 | J12: 54.07 | K12: 52.33
A13: 2001-12-03 | B13: 38.75 | C13: 48.97 | D13: 35.73 | E13: 19.17 | F13: 36.34 | G13: 30.02 | H13: 32.32 | I13: 36.63 | J13: 47.18 | K13: 53.99
A14: 2002-01-02 | B14: 40.77 | C14: 48.09 | D14: 36.99 | E14: 20.64 | F14: 39.71 | G14: 30.22 | H14: 32.59 | I14: 38.06 | J14: 47.48 | K14: 50.7
A15: 2002-02-01 | B15: 42.67 | C15: 48 | D15: 38.96 | E15: 18.78 | F15: 41.73 | G15: 30.72 | H15: 34.31 | I15: 40.68 | J15: 49.21 | K15: 54.16
A16: 2002-03-01 | B16: 48.69 | C16: 46.71 | D16: 38.3 | E16: 16.81 | F16: 42.21 | G16: 34.52 | H16: 34.47 | I16: 40.95 | J16: 46.46 | K16: 52.81
A17: 2002-04-01 | B17: 51.67 | C17: 44.56 | D17: 36.9 | E17: 16.02 | F17: 43.62 | G17: 34.64 | H17: 31.08 | I17: 38.65 | J17: 43.85 | K17: 57.77
A18: 2002-05-01 | B18: 50.43 | C18: 40.06 | D18: 38.6 | E18: 17.89 | F18: 45.88 | G18: 35.9 | H18: 32.09 | I18: 40.27 | J18: 46.07 | K18: 57.88
A19: 2002-06-03 | B19: 43.37 | C19: 35.34 | D19: 39.03 | E19: 14.38 | F19: 35.44 | G19: 30.68 | H19: 30.41 | I19: 38.86 | J19: 41.12 | K19: 56.76
A20: 2002-07-01 | B20: 37.77 | C20: 29.71 | D20: 35.67 | E20: 13.32 | F20: 37.37 | G20: 29.84 | H20: 24.96 | I20: 36.69 | J20: 40.28 | K20: 58.07
A21: 2002-08-01 | B21: 39.28 | C21: 31.69 | D21: 33.95 | E21: 12.64 | F21: 40.57 | G21: 30.52 | H21: 23.15 | I21: 35.58 | J21: 41.03 | K21: 57.94
A22: 2002-09-03 | B22: 31.93 | C22: 25.15 | D22: 30.11 | E22: 11.05 | F22: 31.91 | G22: 26.39 | H22: 17.81 | I22: 31.84 | J22: 37.4 | K22: 50.99
A23: 2002-10-01 | B23: 27.29 | C23: 27.83 | D23: 31.49 | E23: 14.96 | F23: 33.51 | G23: 30.86 | H23: 20.35 | I23: 36.41 | J23: 44.38 | K23: 58.86
A24: 2002-11-01 | B24: 33.06 | C24: 25.44 | D24: 35.64 | E24: 18.45 | F24: 31.02 | G24: 33.03 | H24: 23.72 | I24: 39.71 | J24: 48.61 | K24: 60.5
A25: 2002-12-02 | B25: 30.7 | C25: 23.2 | D25: 31.75 | E25: 16.51 | F25: 33.86 | G25: 30.06 | H25: 21.15 | I25: 37.74 | J25: 46.61 | K25: 57.45
A26: 2003-01-02 | B26: 30.26 | C26: 20.19 | D26: 32.42 | E26: 16.56 | F26: 31.64 | G26: 30.21 | H26: 18.36 | I26: 33.71 | J26: 45.6 | K26: 58.03
A27: 2003-02-03 | B27: 28.52 | C27: 22.65 | D27: 32.03 | E27: 15.08 | F27: 32.29 | G27: 28.56 | H27: 19.18 | I27: 32.95 | J27: 43.43 | K27: 58.72
A28: 2003-03-03 | B28: 28.39 | C28: 23.59 | D28: 30.91 | E28: 14.87 | F28: 25.48 | G28: 28.26 | H28: 18.14 | I28: 34.92 | J28: 45.42 | K28: 60.91
A29: 2003-04-01 | B29: 30.45 | C29: 27.24 | D29: 32.69 | E29: 15.58 | F29: 26.16 | G29: 32.27 | H29: 21.6 | I29: 38.22 | J29: 48.23 | K29: 59.04
A30: 2003-05-01 | B30: 30.26 | C30: 31.47 | D30: 33.76 | E30: 18.64 | F30: 35.12 | G30: 35.51 | H30: 23.18 | I30: 38.18 | J30: 46.08 | K30: 59.55
A31: 2003-06-02 | B31: 30.83 | C31: 32.14 | D31: 32.9 | E31: 20.44 | F31: 39.22 | G31: 35.64 | H31: 24.02 | I31: 37.72 | J31: 50.52 | K31: 60.74
A32: 2003-07-01 | B32: 32.05 | C32: 30.27 | D32: 36.02 | E32: 20.32 | F32: 34.53 | G32: 37.74 | H32: 26.16 | I32: 39.81 | J32: 46.12 | K32: 66.02
A33: 2003-08-01 | B33: 35.67 | C33: 31.2 | D33: 37.56 | E33: 19.13 | F33: 35.57 | G33: 38.49 | H33: 27.06 | I33: 40.86 | J33: 44.36 | K33: 67.4
A34: 2003-09-02 | B34: 35.52 | C34: 30.97 | D34: 36.15 | E34: 18.65 | F34: 38.43 | G34: 38.5 | H34: 24.78 | I34: 36.54 | J34: 44.95 | K34: 65.35
A35: 2003-10-01 | B35: 37.03 | C35: 36.05 | D35: 36.45 | E35: 21.5 | F35: 40.8 | G35: 40.19 | H35: 29.91 | I35: 36.9 | J35: 39.29 | K35: 74.62
A36: 2003-11-03 | B36: 37.57 | C36: 35.75 | D36: 34.71 | E36: 20.95 | F36: 45.62 | G36: 39.14 | H36: 31.23 | I36: 38.19 | J36: 36.05 | K36: 75.1
A37: 2003-12-01 | B37: 46.89 | C37: 34.58 | D37: 40.21 | E37: 22.21 | F37: 48.36 | G37: 41.39 | H37: 36.17 | I37: 42.27 | J37: 41.39 | K37: 80.79
A38: 2004-01-02 | B38: 43.63 | C38: 34.56 | D38: 39.43 | E38: 23 | F38: 49.4 | G38: 44.49 | H38: 32.53 | I38: 40.44 | J38: 42.64 | K38: 75.15
A39: 2004-02-02 | B39: 42.69 | C39: 35.38 | D39: 41.52 | E39: 21.96 | F39: 51.14 | G39: 45.84 | H39: 35.82 | I39: 41.86 | J39: 43.07 | K39: 74.47
A40: 2004-03-01 | B40: 41.92 | C40: 36.47 | D40: 39.64 | E40: 22.16 | F40: 48.95 | G40: 44.58 | H40: 33.16 | I40: 39.2 | J40: 39.9 | K40: 78.14
A41: 2004-04-01 | B41: 42.07 | C41: 34.35 | D41: 37.82 | E41: 19.12 | F41: 49.79 | G41: 42.09 | H41: 29.4 | I41: 39.88 | J41: 42.43 | K41: 82.54
A42: 2004-05-03 | B42: 40.72 | C42: 35.06 | D42: 39.58 | E42: 20.61 | F42: 43.13 | G42: 43.59 | H42: 30.07 | I42: 40.45 | J42: 42.7 | K42: 81.06
A43: 2004-06-01 | B43: 41.8 | C43: 34.44 | D43: 42.19 | E43: 20.55 | F43: 45.64 | G43: 44.26 | H43: 31.73 | I43: 41.59 | J43: 43.21 | K43: 86.28
A44: 2004-07-01 | B44: 38.7 | C44: 32.99 | D44: 40.81 | E44: 19.63 | F44: 43.4 | G44: 43.29 | H44: 30.77 | I44: 40.14 | J44: 41.26 | K44: 78.95
A45: 2004-08-02 | B45: 37.51 | C45: 35.85 | D45: 38 | E45: 17.43 | F45: 44.63 | G45: 43.09 | H45: 31.25 | I45: 39.9 | J45: 40.91 | K45: 79.31
A46: 2004-09-01 | B46: 38.57 | C46: 38.44 | D46: 38.37 | E46: 18.34 | F46: 43.53 | G46: 44.33 | H46: 32.42 | I46: 40.41 | J46: 30.28 | K46: 77.01
A47: 2004-10-01 | B47: 35 | C47: 40.29 | D47: 36.57 | E47: 18.25 | F47: 44.84 | G47: 45.82 | H47: 31.37 | I47: 40.48 | J47: 28.73 | K47: 74.7
A48: 2004-11-01 | B48: 35.5 | C48: 41.03 | D48: 39.67 | E48: 19.57 | F48: 53.2 | G48: 48.1 | H48: 32.95 | I48: 43.13 | J48: 25.71 | K48: 76.98
A49: 2004-12-01 | B49: 36.85 | C49: 42 | D49: 40.13 | E49: 20.59 | F49: 57.22 | G49: 48.67 | H49: 30.46 | I49: 46.68 | J49: 29.89 | K49: 79.38
A50: 2005-01-03 | B50: 33.86 | C50: 40.54 | D50: 37.41 | E50: 19.24 | F50: 59.78 | G50: 46.16 | H50: 28.62 | I50: 45.26 | J50: 26.09 | K50: 81.6
A51: 2005-02-01 | B51: 33.23 | C51: 39.33 | D51: 35.93 | E51: 20.43 | F51: 61.48 | G51: 46.86 | H51: 31.31 | I51: 51.08 | J51: 29.49 | K51: 81.6
A52: 2005-03-01 | B52: 27.4 | C52: 37.67 | D52: 35.39 | E52: 21.63 | F52: 61.93 | G52: 44.56 | H52: 29.62 | I52: 49.1 | J52: 30.47 | K52: 83.3
A53: 2005-04-01 | B53: 24.87 | C53: 34.84 | D53: 32.99 | E53: 20.18 | F53: 61.55 | G53: 45.71 | H53: 28.29 | I53: 45.14 | J53: 31.91 | K53: 74.34
A54: 2005-05-02 | B54: 29.88 | C54: 38.76 | D54: 31.23 | E54: 22.2 | F54: 63.59 | G54: 46.71 | H54: 26.55 | I54: 44.92 | J54: 30.53 | K54: 74.92
A55: 2005-06-01 | B55: 32.22 | C55: 38.42 | D55: 29.29 | E55: 23.26 | F55: 61.89 | G55: 46.27 | H55: 25.6 | I55: 41.54 | J55: 29.33 | K55: 70.67
A56: 2005-07-01 | B56: 34.89 | C56: 42.97 | D56: 30.63 | E56: 24.36 | F56: 64.09 | G56: 47.81 | H56: 27.48 | I56: 41.22 | J56: 29.58 | K56: 73.31
A57: 2005-08-01 | B57: 32.86 | C57: 39.92 | D57: 30.15 | E57: 27.47 | F57: 67.67 | G57: 48.02 | H57: 26.38 | I57: 38.55 | J57: 27.25 | K57: 69.96
A58: 2005-09-01 | B58: 29.42 | C58: 37.76 | D58: 29.12 | E58: 28.97 | F58: 71.34 | G58: 49.93 | H58: 24.05 | I58: 38.16 | J58: 26.27 | K58: 72.13
A59: 2005-10-03 | B59: 26.33 | C59: 40.63 | D59: 28.52 | E59: 27.82 | F59: 72.64 | G59: 49.54 | H59: 23.92 | I59: 40.62 | J59: 27.24 | K59: 74.7
A60: 2005-11-01 | B60: 21.44 | C60: 41.46 | D60: 31.07 | E60: 29.44 | F60: 70.45 | G60: 51.19 | H60: 27.16 | I60: 42.02 | J60: 28.75 | K60: 77.57
A61: 2005-12-01 | B61: 19.01 | C61: 40.17 | D61: 33.12 | E61: 28.48 | F61: 73.08 | G61: 51.23 | H61: 29.3 | I61: 41.77 | J61: 31.1 | K61: 76.6
A62: 2006-01-03 | B62: 23.56 | C62: 40.24 | D62: 32.15 | E62: 31.02 | F62: 70.75 | G62: 52.33 | H62: 31.21 | I62: 38.48 | J62: 33.73 | K62: 71.91
A63: 2006-02-01 | B63: 20.11 | C63: 41.83 | D63: 32.53 | E63: 32.64 | F63: 70.32 | G63: 53.76 | H63: 29.19 | I63: 39.91 | J63: 34.09 | K63: 73.2
A64: 2006-03-01 | B64: 21.06 | C64: 42.13 | D64: 34.32 | E64: 32.81 | F64: 70.06 | G64: 52.43 | H64: 30.43 | I64: 41.87 | J64: 34.83 | K64: 75.29
A65: 2006-04-03 | B65: 22.66 | C65: 39.77 | D65: 36.09 | E65: 32.38 | F65: 72.34 | G65: 53.81 | H65: 33.63 | I65: 43.74 | J65: 34.03 | K65: 84.98
A66: 2006-05-01 | B66: 26.93 | C66: 37.97 | D66: 33.98 | E66: 32.29 | F66: 71.54 | G66: 54.36 | H66: 31.72 | I66: 42.53 | J66: 33.29 | K66: 83.66
A67: 2006-06-01 | B67: 29.79 | C67: 35.79 | D67: 32.3 | E67: 31.68 | F67: 73.43 | G67: 53.22 | H67: 32.36 | I67: 41.6 | J67: 36.43 | K67: 80.77

Sheet Page 308
A1: RETURN DATA FOR THE SUPER-DUPER BENCHMARK PORTFOLIO
B2: General Motors GM | C2: Home Depot HD | D2: International Paper IP | E2: Hewlett-Packard HPQ | F2: Altria MO | G2: American Express AXP | H2: Alcoa Aluminum AA | I2: DuPont DD | J2: Merck MRK | K2: MMM | L2: 3month T-bill, monthly
A3: Market cap (billion $) | B3: 16.85 | C3: 73.98 | D3: 15.92 | E3: 88.37 | F3: 153.33 | G3: 65.66 | H3: 28.16 | I3: 38.32 | J3: 79.51 | K3: 60.9
A4: Benchmark proportion | B4: =B3/SUM($B$3:$K$3) -> 0.02713365539 | C4: 0.1191304348 | D4: 0.02563607085 | E4: 0.1423027375 | F4: 0.2469082126 | G4: 0.1057326892 | H4: 0.04534621578 | I4: 0.06170692432 | J4: 0.1280354267 | K4: 0.09806763285
A6: Mean return | B6: =AVERAGE(B10:B69) -> -0.00873385163 | C6: -0.003912585257 | D6: 0.0005668052524 | E6: 0.002994559178 | F6: 0.01065766522 | G6: 0.008235294657 | H6: -0.001804352093 | I6: 0.0002909870229 | J6: -0.005522032386 | K6: 0.007480990523 | L6: =AVERAGE(L10:L69) ->  | M6: =getformula(L6) -> <-- =AVERAGE(L10:L69)
A7: Return sigma | B7: =STDEVP(B10:B69) -> 0.107845982 | C7: 0.08409336867 | D7: 0.06233267344 | E7: 0.1080477655 | F7: 0.08708088772 | G7: 0.06430056675 | H7: 0.09543673107 | I7: 0.06124587248 | J7: 0.08062454135 | K7: 0.05535726807 | L7: =STDEVP(L10:L69) ->  | M7: =getformula(L7) -> <-- =STDEVP(L10:L69)
A9: Date | B9: GM | C9: HD | D9: IP | E9: HPQ | F9: MO | G9: AXP | H9: AA | I9: DD | J9: MRK | K9: MMM | L9: 3month T-bill, monthly
A10: ='Page 307'!A8 -> 2001-07-02 | B10: =LN('Page 307'!B8/'Page 307'!B7) -> -0.01179659786 | C10: =LN('Page 307'!C8/'Page 307'!C7) -> 0.06417941999 | D10: =LN('Page 307'!D8/'Page 307'!D7) -> 0.1324096875 | E10: =LN('Page 307'!E8/'Page 307'!E7) -> -0.1479365557 | F10: =LN('Page 307'!F8/'Page 307'!F7) -> -0.08424616069 | G10: =LN('Page 307'!G8/'Page 307'!G7) -> 0.04073575736 | H10: =LN('Page 307'!H8/'Page 307'!H7) -> -0.01932021456 | I10: =LN('Page 307'!I8/'Page 307'!I7) -> -0.1190987247 | J10: =LN('Page 307'!J8/'Page 307'!J7) -> 0.06189905342 | K10: =LN('Page 307'!K8/'Page 307'!K7) -> -0.0197832326 | L10: =#REF!/1200 -> 
A11: ='Page 307'!A9 -> 2001-08-01 | B11: =LN('Page 307'!B9/'Page 307'!B8) -> -0.1419566257 | C11: =LN('Page 307'!C9/'Page 307'!C8) -> -0.09105071882 | D11: =LN('Page 307'!D9/'Page 307'!D8) -> -0.009019226867 | E11: =LN('Page 307'!E9/'Page 307'!E8) -> -0.0609531909 | F11: =LN('Page 307'!F9/'Page 307'!F8) -> 0.04099047232 | G11: =LN('Page 307'!G9/'Page 307'!G8) -> -0.1020150437 | H11: =LN('Page 307'!H9/'Page 307'!H8) -> -0.02490467918 | I11: =LN('Page 307'!I9/'Page 307'!I8) -> -0.03590848626 | J11: =LN('Page 307'!J9/'Page 307'!J8) -> -0.03813941579 | K11: =LN('Page 307'!K9/'Page 307'!K8) -> -0.06645264997 | L11: =#REF!/1200 -> 
A12: ='Page 307'!A10 -> 2001-09-04 | B12: =LN('Page 307'!B10/'Page 307'!B9) -> -0.2436940242 | C12: =LN('Page 307'!C10/'Page 307'!C9) -> -0.1803262723 | D12: =LN('Page 307'!D10/'Page 307'!D9) -> -0.1414905023 | E12: =LN('Page 307'!E10/'Page 307'!E9) -> -0.3644196749 | F12: =LN('Page 307'!F10/'Page 307'!F9) -> 0.01842754775 | G12: =LN('Page 307'!G10/'Page 307'!G9) -> -0.2256844322 | H12: =LN('Page 307'!H10/'Page 307'!H9) -> -0.2066142494 | I12: =LN('Page 307'!I10/'Page 307'!I9) -> -0.08771272126 | J12: =LN('Page 307'!J10/'Page 307'!J9) -> 0.02283204204 | K12: =LN('Page 307'!K10/'Page 307'!K9) -> -0.05631310525 | L12: =#REF!/1200 -> 
A13: ='Page 307'!A11 -> 2001-10-01 | B13: =LN('Page 307'!B11/'Page 307'!B10) -> -0.03767207559 | C13: =LN('Page 307'!C11/'Page 307'!C10) -> -0.003539826705 | D13: =LN('Page 307'!D11/'Page 307'!D10) -> 0.02702867239 | E13: =LN('Page 307'!E11/'Page 307'!E10) -> 0.04776832221 | F13: =LN('Page 307'!F11/'Page 307'!F10) -> -0.03117694057 | G13: =LN('Page 307'!G11/'Page 307'!G10) -> 0.01547262138 | H13: =LN('Page 307'!H11/'Page 307'!H10) -> 0.04460669804 | I13: =LN('Page 307'!I11/'Page 307'!I10) -> 0.06371966398 | J13: =LN('Page 307'!J11/'Page 307'!J10) -> -0.04285409295 | K13: =LN('Page 307'!K11/'Page 307'!K10) -> 0.05905774964 | L13: =#REF!/1200 -> 
A14: ='Page 307'!A12 -> 2001-11-01 | B14: =LN('Page 307'!B12/'Page 307'!B11) -> 0.1965018661 | C14: =LN('Page 307'!C12/'Page 307'!C11) -> 0.2000753688 | D14: =LN('Page 307'!D12/'Page 307'!D11) -> 0.1158764574 | E14: =LN('Page 307'!E12/'Page 307'!E11) -> 0.2675119655 | F14: =LN('Page 307'!F12/'Page 307'!F11) -> 0.007885832844 | G14: =LN('Page 307'!G12/'Page 307'!G11) -> 0.1118846417 | H14: =LN('Page 307'!H12/'Page 307'!H11) -> 0.1789644169 | I14: =LN('Page 307'!I12/'Page 307'!I11) -> 0.1114565838 | J14: =LN('Page 307'!J12/'Page 307'!J11) -> 0.0598273625 | K14: =LN('Page 307'!K12/'Page 307'!K11) -> 0.09831488049 | L14: =#REF!/1200 -> 
A15: ='Page 307'!A13 -> 2001-12-03 | B15: =LN('Page 307'!B13/'Page 307'!B12) -> -0.0224556514 | C15: =LN('Page 307'!C13/'Page 307'!C12) -> 0.08944625454 | D15: =LN('Page 307'!D13/'Page 307'!D12) -> 0.01012666882 | E15: =LN('Page 307'!E13/'Page 307'!E12) -> -0.06463632543 | F15: =LN('Page 307'!F13/'Page 307'!F12) -> -0.01583434667 | G15: =LN('Page 307'!G13/'Page 307'!G12) -> 0.08115369546 | H15: =LN('Page 307'!H13/'Page 307'!H12) -> -0.08222995594 | I15: =LN('Page 307'!I13/'Page 307'!I12) -> -0.04222968467 | J15: =LN('Page 307'!J13/'Page 307'!J12) -> -0.1363094294 | K15: =LN('Page 307'!K13/'Page 307'!K12) -> 0.03122902385 | L15: =#REF!/1200 -> 
A16: ='Page 307'!A14 -> 2002-01-02 | B16: =LN('Page 307'!B14/'Page 307'!B13) -> 0.05081576103 | C16: =LN('Page 307'!C14/'Page 307'!C13) -> -0.01813361042 | D16: =LN('Page 307'!D14/'Page 307'!D13) -> 0.03465693381 | E16: =LN('Page 307'!E14/'Page 307'!E13) -> 0.07388438356 | F16: =LN('Page 307'!F14/'Page 307'!F13) -> 0.08868398218 | G16: =LN('Page 307'!G14/'Page 307'!G13) -> 0.006640130639 | H16: =LN('Page 307'!H14/'Page 307'!H13) -> 0.008319259197 | I16: =LN('Page 307'!I14/'Page 307'!I13) -> 0.03829628508 | J16: =LN('Page 307'!J14/'Page 307'!J13) -> 0.006338495762 | K16: =LN('Page 307'!K14/'Page 307'!K13) -> -0.06287293363 | L16: =#REF!/1200 -> 
A17: ='Page 307'!A15 -> 2002-02-01 | B17: =LN('Page 307'!B15/'Page 307'!B14) -> 0.04554958037 | C17: =LN('Page 307'!C15/'Page 307'!C14) -> -0.001873244382 | D17: =LN('Page 307'!D15/'Page 307'!D14) -> 0.05188787293 | E17: =LN('Page 307'!E15/'Page 307'!E14) -> -0.09443846683 | F17: =LN('Page 307'!F15/'Page 307'!F14) -> 0.04961724946 | G17: =LN('Page 307'!G15/'Page 307'!G14) -> 0.01640995143 | H17: =LN('Page 307'!H15/'Page 307'!H14) -> 0.05143136402 | I17: =LN('Page 307'!I15/'Page 307'!I14) -> 0.06657270931 | J17: =LN('Page 307'!J15/'Page 307'!J14) -> 0.03578828514 | K17: =LN('Page 307'!K15/'Page 307'!K14) -> 0.06601671801 | L17: =#REF!/1200 -> 
A18: ='Page 307'!A16 -> 2002-03-01 | B18: =LN('Page 307'!B16/'Page 307'!B15) -> 0.131977573 | C18: =LN('Page 307'!C16/'Page 307'!C15) -> -0.02724273639 | D18: =LN('Page 307'!D16/'Page 307'!D15) -> -0.01708558259 | E18: =LN('Page 307'!E16/'Page 307'!E15) -> -0.1108185264 | F18: =LN('Page 307'!F16/'Page 307'!F15) -> 0.01143686519 | G18: =LN('Page 307'!G16/'Page 307'!G15) -> 0.1166249579 | H18: =LN('Page 307'!H16/'Page 307'!H15) -> 0.004652523658 | I18: =LN('Page 307'!I16/'Page 307'!I15) -> 0.006615239119 | J18: =LN('Page 307'!J16/'Page 307'!J15) -> -0.05750512754 | K18: =LN('Page 307'!K16/'Page 307'!K15) -> -0.02524206189 | L18: =#REF!/1200 -> 
A19: ='Page 307'!A17 -> 2002-04-01 | B19: =LN('Page 307'!B17/'Page 307'!B16) -> 0.0594036721 | C19: =LN('Page 307'!C17/'Page 307'!C16) -> -0.04712167889 | D19: =LN('Page 307'!D17/'Page 307'!D16) -> -0.03723834514 | E19: =LN('Page 307'!E17/'Page 307'!E16) -> -0.04813600578 | F19: =LN('Page 307'!F17/'Page 307'!F16) -> 0.03285860098 | G19: =LN('Page 307'!G17/'Page 307'!G16) -> 0.003470217479 | H19: =LN('Page 307'!H17/'Page 307'!H16) -> -0.103524855 | I19: =LN('Page 307'!I17/'Page 307'!I16) -> -0.05780503527 | J19: =LN('Page 307'!J17/'Page 307'!J16) -> -0.05781700852 | K19: =LN('Page 307'!K17/'Page 307'!K16) -> 0.08976904307 | L19: =#REF!/1200 -> 
A20: ='Page 307'!A18 -> 2002-05-01 | B20: =LN('Page 307'!B18/'Page 307'!B17) -> -0.02429110621 | C20: =LN('Page 307'!C18/'Page 307'!C17) -> -0.1064582654 | D20: =LN('Page 307'!D18/'Page 307'!D17) -> 0.04504072542 | E20: =LN('Page 307'!E18/'Page 307'!E17) -> 0.1104039559 | F20: =LN('Page 307'!F18/'Page 307'!F17) -> 0.05051353149 | G20: =LN('Page 307'!G18/'Page 307'!G17) -> 0.0357282118 | H20: =LN('Page 307'!H18/'Page 307'!H17) -> 0.03197992962 | I20: =LN('Page 307'!I18/'Page 307'!I17) -> 0.04105999983 | J20: =LN('Page 307'!J18/'Page 307'!J17) -> 0.04938726013 | K20: =LN('Page 307'!K18/'Page 307'!K17) -> 0.00190229197 | L20: =#REF!/1200 -> 
A21: ='Page 307'!A19 -> 2002-06-03 | B21: =LN('Page 307'!B19/'Page 307'!B18) -> -0.1508182782 | C21: =LN('Page 307'!C19/'Page 307'!C18) -> -0.1253628633 | D21: =LN('Page 307'!D19/'Page 307'!D18) -> 0.01107830472 | E21: =LN('Page 307'!E19/'Page 307'!E18) -> -0.2184035452 | F21: =LN('Page 307'!F19/'Page 307'!F18) -> -0.2581881665 | G21: =LN('Page 307'!G19/'Page 307'!G18) -> -0.157126319 | H21: =LN('Page 307'!H19/'Page 307'!H18) -> -0.05377295343 | I21: =LN('Page 307'!I19/'Page 307'!I18) -> -0.03564133091 | J21: =LN('Page 307'!J19/'Page 307'!J18) -> -0.1136673578 | K21: =LN('Page 307'!K19/'Page 307'!K18) -> -0.01954004947 | L21: =#REF!/1200 -> 
A22: ='Page 307'!A20 -> 2002-07-01 | B22: =LN('Page 307'!B20/'Page 307'!B19) -> -0.1382528211 | C22: =LN('Page 307'!C20/'Page 307'!C19) -> -0.1735317774 | D22: =LN('Page 307'!D20/'Page 307'!D19) -> -0.09002058182 | E22: =LN('Page 307'!E20/'Page 307'!E19) -> -0.07657168718 | F22: =LN('Page 307'!F20/'Page 307'!F19) -> 0.05302711776 | G22: =LN('Page 307'!G20/'Page 307'!G19) -> -0.02776120116 | H22: =LN('Page 307'!H20/'Page 307'!H19) -> -0.1974969582 | I22: =LN('Page 307'!I20/'Page 307'!I19) -> -0.05746120558 | J22: =LN('Page 307'!J20/'Page 307'!J19) -> -0.0206395533 | K22: =LN('Page 307'!K20/'Page 307'!K19) -> 0.02281732709 | L22: =#REF!/1200 -> 
A23: ='Page 307'!A21 -> 2002-08-01 | B23: =LN('Page 307'!B21/'Page 307'!B20) -> 0.03920034676 | C23: =LN('Page 307'!C21/'Page 307'!C20) -> 0.06451748423 | D23: =LN('Page 307'!D21/'Page 307'!D20) -> -0.04942114537 | E23: =LN('Page 307'!E21/'Page 307'!E20) -> -0.05240027639 | F23: =LN('Page 307'!F21/'Page 307'!F20) -> 0.08216063372 | G23: =LN('Page 307'!G21/'Page 307'!G20) -> 0.02253243108 | H23: =LN('Page 307'!H21/'Page 307'!H20) -> -0.07527976297 | I23: =LN('Page 307'!I21/'Page 307'!I20) -> -0.03072055613 | J23: =LN('Page 307'!J21/'Page 307'!J20) -> 0.0184484386 | K23: =LN('Page 307'!K21/'Page 307'!K20) -> -0.002241187043 | L23: =#REF!/1200 -> 
A24: ='Page 307'!A22 -> 2002-09-03 | B24: =LN('Page 307'!B22/'Page 307'!B21) -> -0.2071694768 | C24: =LN('Page 307'!C22/'Page 307'!C21) -> -0.2311432772 | D24: =LN('Page 307'!D22/'Page 307'!D21) -> -0.1200315115 | E24: =LN('Page 307'!E22/'Page 307'!E21) -> -0.1344359608 | F24: =LN('Page 307'!F22/'Page 307'!F21) -> -0.2401094369 | G24: =LN('Page 307'!G22/'Page 307'!G21) -> -0.1453970559 | H24: =LN('Page 307'!H22/'Page 307'!H21) -> -0.2622346832 | I24: =LN('Page 307'!I22/'Page 307'!I21) -> -0.1110603213 | J24: =LN('Page 307'!J22/'Page 307'!J21) -> -0.09263280203 | K24: =LN('Page 307'!K22/'Page 307'!K21) -> -0.1277784573 | L24: =#REF!/1200 -> 
A25: ='Page 307'!A23 -> 2002-10-01 | B25: =LN('Page 307'!B23/'Page 307'!B22) -> -0.157025672 | C25: =LN('Page 307'!C23/'Page 307'!C22) -> 0.101256679 | D25: =LN('Page 307'!D23/'Page 307'!D22) -> 0.04481269262 | E25: =LN('Page 307'!E23/'Page 307'!E22) -> 0.3029495446 | F25: =LN('Page 307'!F23/'Page 307'!F22) -> 0.04892446146 | G25: =LN('Page 307'!G23/'Page 307'!G22) -> 0.1564756964 | H25: =LN('Page 307'!H23/'Page 307'!H22) -> 0.1333208146 | I25: =LN('Page 307'!I23/'Page 307'!I22) -> 0.1341201012 | J25: =LN('Page 307'!J23/'Page 307'!J22) -> 0.1711182131 | K25: =LN('Page 307'!K23/'Page 307'!K22) -> 0.1435322077 | L25: =#REF!/1200 -> 
A26: ='Page 307'!A24 -> 2002-11-01 | B26: =LN('Page 307'!B24/'Page 307'!B23) -> 0.1918037577 | C26: =LN('Page 307'!C24/'Page 307'!C23) -> -0.08979183707 | D26: =LN('Page 307'!D24/'Page 307'!D23) -> 0.1237985675 | E26: =LN('Page 307'!E24/'Page 307'!E23) -> 0.2096843979 | F26: =LN('Page 307'!F24/'Page 307'!F23) -> -0.077211744 | G26: =LN('Page 307'!G24/'Page 307'!G23) -> 0.06795539247 | H26: =LN('Page 307'!H24/'Page 307'!H23) -> 0.1532376622 | I26: =LN('Page 307'!I24/'Page 307'!I23) -> 0.08675958296 | J26: =LN('Page 307'!J24/'Page 307'!J23) -> 0.09104035355 | K26: =LN('Page 307'!K24/'Page 307'!K23) -> 0.02748162223 | L26: =#REF!/1200 -> 
A27: ='Page 307'!A25 -> 2002-12-02 | B27: =LN('Page 307'!B25/'Page 307'!B24) -> -0.0740614378 | C27: =LN('Page 307'!C25/'Page 307'!C24) -> -0.0921704598 | D27: =LN('Page 307'!D25/'Page 307'!D24) -> -0.1155758773 | E27: =LN('Page 307'!E25/'Page 307'!E24) -> -0.1110981126 | F27: =LN('Page 307'!F25/'Page 307'!F24) -> 0.08760221896 | G27: =LN('Page 307'!G25/'Page 307'!G24) -> -0.09422085508 | H27: =LN('Page 307'!H25/'Page 307'!H24) -> -0.1146786686 | I27: =LN('Page 307'!I25/'Page 307'!I24) -> -0.0508825052 | J27: =LN('Page 307'!J25/'Page 307'!J24) -> -0.04201416067 | K27: =LN('Page 307'!K25/'Page 307'!K24) -> -0.05172836074 | L27: =#REF!/1200 -> 
A28: ='Page 307'!A26 -> 2003-01-02 | B28: =LN('Page 307'!B26/'Page 307'!B25) -> -0.01443594623 | C28: =LN('Page 307'!C26/'Page 307'!C25) -> -0.1389648463 | D28: =LN('Page 307'!D26/'Page 307'!D25) -> 0.02088279097 | E28: =LN('Page 307'!E26/'Page 307'!E25) -> 0.003023891025 | F28: =LN('Page 307'!F26/'Page 307'!F25) -> -0.06781223381 | G28: =LN('Page 307'!G26/'Page 307'!G25) -> 0.004977611074 | H28: =LN('Page 307'!H26/'Page 307'!H25) -> -0.1414655203 | I28: =LN('Page 307'!I26/'Page 307'!I25) -> -0.1129260107 | J28: =LN('Page 307'!J26/'Page 307'!J25) -> -0.02190739386 | K28: =LN('Page 307'!K26/'Page 307'!K25) -> 0.01004511391 | L28: =#REF!/1200 -> 
A29: ='Page 307'!A27 -> 2003-02-03 | B29: =LN('Page 307'!B27/'Page 307'!B26) -> -0.05922111281 | C29: =LN('Page 307'!C27/'Page 307'!C26) -> 0.1149724196 | D29: =LN('Page 307'!D27/'Page 307'!D26) -> -0.01210255269 | E29: =LN('Page 307'!E27/'Page 307'!E26) -> -0.09362078638 | F29: =LN('Page 307'!F27/'Page 307'!F26) -> 0.02033544187 | G29: =LN('Page 307'!G27/'Page 307'!G26) -> -0.05616585793 | H29: =LN('Page 307'!H27/'Page 307'!H26) -> 0.04369368426 | I29: =LN('Page 307'!I27/'Page 307'!I26) -> -0.0228032683 | J29: =LN('Page 307'!J27/'Page 307'!J26) -> -0.04875726997 | K29: =LN('Page 307'!K27/'Page 307'!K26) -> 0.0118202661 | L29: =#REF!/1200 -> 
A30: ='Page 307'!A28 -> 2003-03-03 | B30: =LN('Page 307'!B28/'Page 307'!B27) -> -0.004568625061 | C30: =LN('Page 307'!C28/'Page 307'!C27) -> 0.04066304149 | D30: =LN('Page 307'!D28/'Page 307'!D27) -> -0.03559320748 | E30: =LN('Page 307'!E28/'Page 307'!E27) -> -0.01402360211 | F30: =LN('Page 307'!F28/'Page 307'!F27) -> -0.2368637541 | G30: =LN('Page 307'!G28/'Page 307'!G27) -> -0.01055976022 | H30: =LN('Page 307'!H28/'Page 307'!H27) -> -0.05574862477 | I30: =LN('Page 307'!I28/'Page 307'!I27) -> 0.05806847002 | J30: =LN('Page 307'!J28/'Page 307'!J27) -> 0.04480209013 | K30: =LN('Page 307'!K28/'Page 307'!K27) -> 0.03661698054 | L30: =#REF!/1200 -> 
A31: ='Page 307'!A29 -> 2003-04-01 | B31: =LN('Page 307'!B29/'Page 307'!B28) -> 0.07004902367 | C31: =LN('Page 307'!C29/'Page 307'!C28) -> 0.1438635879 | D31: =LN('Page 307'!D29/'Page 307'!D28) -> 0.05598946459 | E31: =LN('Page 307'!E29/'Page 307'!E28) -> 0.04664227997 | F31: =LN('Page 307'!F29/'Page 307'!F28) -> 0.02633769589 | G31: =LN('Page 307'!G29/'Page 307'!G28) -> 0.1326906288 | H31: =LN('Page 307'!H29/'Page 307'!H28) -> 0.17457387 | I31: =LN('Page 307'!I29/'Page 307'!I28) -> 0.09029920784 | J31: =LN('Page 307'!J29/'Page 307'!J28) -> 0.0600286974 | K31: =LN('Page 307'!K29/'Page 307'!K28) -> -0.03118218456 | L31: =#REF!/1200 -> 
A32: ='Page 307'!A30 -> 2003-05-01 | B32: =LN('Page 307'!B30/'Page 307'!B29) -> -0.006259285796 | C32: =LN('Page 307'!C30/'Page 307'!C29) -> 0.1443482298 | D32: =LN('Page 307'!D30/'Page 307'!D29) -> 0.03220744899 | E32: =LN('Page 307'!E30/'Page 307'!E29) -> 0.1793217688 | F32: =LN('Page 307'!F30/'Page 307'!F29) -> 0.2945392422 | G32: =LN('Page 307'!G30/'Page 307'!G29) -> 0.09567634089 | H32: =LN('Page 307'!H30/'Page 307'!H29) -> 0.07059652322 | I32: =LN('Page 307'!I30/'Page 307'!I29) -> -0.001047120515 | J32: =LN('Page 307'!J30/'Page 307'!J29) -> -0.04560221769 | K32: =LN('Page 307'!K30/'Page 307'!K29) -> 0.008601115509 | L32: =#REF!/1200 -> 
A33: ='Page 307'!A31 -> 2003-06-02 | B33: =LN('Page 307'!B31/'Page 307'!B30) -> 0.01866153354 | C33: =LN('Page 307'!C31/'Page 307'!C30) -> 0.02106664923 | D33: =LN('Page 307'!D31/'Page 307'!D30) -> -0.02580401196 | E33: =LN('Page 307'!E31/'Page 307'!E30) -> 0.09218395608 | F33: =LN('Page 307'!F31/'Page 307'!F30) -> 0.110416052 | G33: =LN('Page 307'!G31/'Page 307'!G30) -> 0.003654255648 | H33: =LN('Page 307'!H31/'Page 307'!H30) -> 0.03559697874 | I33: =LN('Page 307'!I31/'Page 307'!I30) -> -0.01212136053 | J33: =LN('Page 307'!J31/'Page 307'!J30) -> 0.09199028109 | K33: =LN('Page 307'!K31/'Page 307'!K30) -> 0.01978616382 | L33: =#REF!/1200 -> 
A34: ='Page 307'!A32 -> 2003-07-01 | B34: =LN('Page 307'!B32/'Page 307'!B31) -> 0.03880894147 | C34: =LN('Page 307'!C32/'Page 307'!C31) -> -0.05994423728 | D34: =LN('Page 307'!D32/'Page 307'!D31) -> 0.09060168198 | E34: =LN('Page 307'!E32/'Page 307'!E31) -> -0.005888142625 | F34: =LN('Page 307'!F32/'Page 307'!F31) -> -0.1273583094 | G34: =LN('Page 307'!G32/'Page 307'!G31) -> 0.05725193734 | H34: =LN('Page 307'!H32/'Page 307'!H31) -> 0.08534470994 | I34: =LN('Page 307'!I32/'Page 307'!I31) -> 0.05392767925 | J34: =LN('Page 307'!J32/'Page 307'!J31) -> -0.09112260208 | K34: =LN('Page 307'!K32/'Page 307'!K31) -> 0.08335526681 | L34: =#REF!/1200 -> 
A35: ='Page 307'!A33 -> 2003-08-01 | B35: =LN('Page 307'!B33/'Page 307'!B32) -> 0.107012816 | C35: =LN('Page 307'!C33/'Page 307'!C32) -> 0.03026097178 | D35: =LN('Page 307'!D33/'Page 307'!D32) -> 0.04186531459 | E35: =LN('Page 307'!E33/'Page 307'!E32) -> -0.06034783926 | F35: =LN('Page 307'!F33/'Page 307'!F32) -> 0.02967407456 | G35: =LN('Page 307'!G33/'Page 307'!G32) -> 0.01967792736 | H35: =LN('Page 307'!H33/'Page 307'!H32) -> 0.03382509615 | I35: =LN('Page 307'!I33/'Page 307'!I32) -> 0.02603345238 | J35: =LN('Page 307'!J33/'Page 307'!J32) -> -0.03890853292 | K35: =LN('Page 307'!K33/'Page 307'!K32) -> 0.02068729149 | L35: =#REF!/1200 -> 
A36: ='Page 307'!A34 -> 2003-09-02 | B36: =LN('Page 307'!B34/'Page 307'!B33) -> -0.004214081247 | C36: =LN('Page 307'!C34/'Page 307'!C33) -> -0.00739910083 | D36: =LN('Page 307'!D34/'Page 307'!D33) -> -0.03826270574 | E36: =LN('Page 307'!E34/'Page 307'!E33) -> -0.02541163736 | F36: =LN('Page 307'!F34/'Page 307'!F33) -> 0.07733581862 | G36: =LN('Page 307'!G34/'Page 307'!G33) -> 0.0002597739981 | H36: =LN('Page 307'!H34/'Page 307'!H33) -> -0.08801974654 | I36: =LN('Page 307'!I34/'Page 307'!I33) -> -0.1117440384 | J36: =LN('Page 307'!J34/'Page 307'!J33) -> 0.01321259844 | K36: =LN('Page 307'!K34/'Page 307'!K33) -> -0.03088757785 | L36: =#REF!/1200 -> 
A37: ='Page 307'!A35 -> 2003-10-01 | B37: =LN('Page 307'!B35/'Page 307'!B34) -> 0.0416324768 | C37: =LN('Page 307'!C35/'Page 307'!C34) -> 0.1518878697 | D37: =LN('Page 307'!D35/'Page 307'!D34) -> 0.00826450985 | E37: =LN('Page 307'!E35/'Page 307'!E34) -> 0.142206789 | F37: =LN('Page 307'!F35/'Page 307'!F34) -> 0.05984367683 | G37: =LN('Page 307'!G35/'Page 307'!G34) -> 0.04295996717 | H37: =LN('Page 307'!H35/'Page 307'!H34) -> 0.1881559964 | I37: =LN('Page 307'!I35/'Page 307'!I34) -> 0.009804000097 | J37: =LN('Page 307'!J35/'Page 307'!J34) -> -0.1345807273 | K37: =LN('Page 307'!K35/'Page 307'!K34) -> 0.1326511277 | L37: =#REF!/1200 -> 
A38: ='Page 307'!A36 -> 2003-11-03 | B38: =LN('Page 307'!B36/'Page 307'!B35) -> 0.01447746466 | C38: =LN('Page 307'!C36/'Page 307'!C35) -> -0.008356594591 | D38: =LN('Page 307'!D36/'Page 307'!D35) -> -0.04891362858 | E38: =LN('Page 307'!E36/'Page 307'!E35) -> -0.02591428877 | F38: =LN('Page 307'!F36/'Page 307'!F35) -> 0.1116641354 | G38: =LN('Page 307'!G36/'Page 307'!G35) -> -0.02647324649 | H38: =LN('Page 307'!H36/'Page 307'!H35) -> 0.04318629865 | I38: =LN('Page 307'!I36/'Page 307'!I35) -> 0.03436215019 | J38: =LN('Page 307'!J36/'Page 307'!J35) -> -0.08606316984 | K38: =LN('Page 307'!K36/'Page 307'!K35) -> 0.006411990977 | L38: =#REF!/1200 -> 
A39: ='Page 307'!A37 -> 2003-12-01 | B39: =LN('Page 307'!B37/'Page 307'!B36) -> 0.2215985735 | C39: =LN('Page 307'!C37/'Page 307'!C36) -> -0.03327478888 | D39: =LN('Page 307'!D37/'Page 307'!D36) -> 0.147087891 | E39: =LN('Page 307'!E37/'Page 307'!E36) -> 0.05840399154 | F39: =LN('Page 307'!F37/'Page 307'!F36) -> 0.05832680889 | G39: =LN('Page 307'!G37/'Page 307'!G36) -> 0.05589434379 | H39: =LN('Page 307'!H37/'Page 307'!H36) -> 0.1468508747 | I39: =LN('Page 307'!I37/'Page 307'!I36) -> 0.1015039133 | J39: =LN('Page 307'!J37/'Page 307'!J36) -> 0.138132442 | K39: =LN('Page 307'!K37/'Page 307'!K36) -> 0.07303263672 | L39: =#REF!/1200 -> 
A40: ='Page 307'!A38 -> 2004-01-02 | B40: =LN('Page 307'!B38/'Page 307'!B37) -> -0.07205944597 | C40: =LN('Page 307'!C38/'Page 307'!C37) -> -0.0005785363193 | D40: =LN('Page 307'!D38/'Page 307'!D37) -> -0.01958877302 | E40: =LN('Page 307'!E38/'Page 307'!E37) -> 0.03495157802 | F40: =LN('Page 307'!F38/'Page 307'!F37) -> 0.02127739845 | G40: =LN('Page 307'!G38/'Page 307'!G37) -> 0.07222513906 | H40: =LN('Page 307'!H38/'Page 307'!H37) -> -0.1060673055 | I40: =LN('Page 307'!I38/'Page 307'!I37) -> -0.04425822043 | J40: =LN('Page 307'!J38/'Page 307'!J37) -> 0.0297534741 | K40: =LN('Page 307'!K38/'Page 307'!K37) -> -0.07236707929 | L40: =#REF!/1200 -> 
A41: ='Page 307'!A39 -> 2004-02-02 | B41: =LN('Page 307'!B39/'Page 307'!B38) -> -0.02178028637 | C41: =LN('Page 307'!C39/'Page 307'!C38) -> 0.0234497448 | D41: =LN('Page 307'!D39/'Page 307'!D38) -> 0.05164829097 | E41: =LN('Page 307'!E39/'Page 307'!E38) -> -0.04627159929 | F41: =LN('Page 307'!F39/'Page 307'!F38) -> 0.03461654567 | G41: =LN('Page 307'!G39/'Page 307'!G38) -> 0.02989262759 | H41: =LN('Page 307'!H39/'Page 307'!H38) -> 0.09634365615 | I41: =LN('Page 307'!I39/'Page 307'!I38) -> 0.03451132287 | J41: =LN('Page 307'!J39/'Page 307'!J38) -> 0.01003391921 | K41: =LN('Page 307'!K39/'Page 307'!K38) -> -0.009089756476 | L41: =#REF!/1200 -> 
A42: ='Page 307'!A40 -> 2004-03-01 | B42: =LN('Page 307'!B40/'Page 307'!B39) -> -0.01820166076 | C42: =LN('Page 307'!C40/'Page 307'!C39) -> 0.03034331609 | D42: =LN('Page 307'!D40/'Page 307'!D39) -> -0.0463365294 | E42: =LN('Page 307'!E40/'Page 307'!E39) -> 0.009066245238 | F42: =LN('Page 307'!F40/'Page 307'!F39) -> -0.04376760089 | G42: =LN('Page 307'!G40/'Page 307'!G39) -> -0.02787174445 | H42: =LN('Page 307'!H40/'Page 307'!H39) -> -0.07716206637 | I42: =LN('Page 307'!I40/'Page 307'!I39) -> -0.06565397022 | J42: =LN('Page 307'!J40/'Page 307'!J39) -> -0.07645037517 | K42: =LN('Page 307'!K40/'Page 307'!K39) -> 0.0481057299 | L42: =#REF!/1200 -> 
A43: ='Page 307'!A41 -> 2004-04-01 | B43: =LN('Page 307'!B41/'Page 307'!B40) -> 0.00357185759 | C43: =LN('Page 307'!C41/'Page 307'!C40) -> -0.05988798615 | D43: =LN('Page 307'!D41/'Page 307'!D40) -> -0.04700064623 | E43: =LN('Page 307'!E41/'Page 307'!E40) -> -0.1475539543 | F43: =LN('Page 307'!F41/'Page 307'!F40) -> 0.01701479168 | G43: =LN('Page 307'!G41/'Page 307'!G40) -> -0.05747514518 | H43: =LN('Page 307'!H41/'Page 307'!H40) -> -0.1203496559 | I43: =LN('Page 307'!I41/'Page 307'!I40) -> 0.0171981983 | J43: =LN('Page 307'!J41/'Page 307'!J40) -> 0.06147933532 | K43: =LN('Page 307'!K41/'Page 307'!K40) -> 0.0547809347 | L43: =#REF!/1200 -> 
A44: ='Page 307'!A42 -> 2004-05-03 | B44: =LN('Page 307'!B42/'Page 307'!B41) -> -0.03261552536 | C44: =LN('Page 307'!C42/'Page 307'!C41) -> 0.02045886082 | D44: =LN('Page 307'!D42/'Page 307'!D41) -> 0.04548587694 | E44: =LN('Page 307'!E42/'Page 307'!E41) -> 0.07504148728 | F44: =LN('Page 307'!F42/'Page 307'!F41) -> -0.14359535 | G44: =LN('Page 307'!G42/'Page 307'!G41) -> 0.03501758347 | H44: =LN('Page 307'!H42/'Page 307'!H41) -> 0.02253332266 | I44: =LN('Page 307'!I42/'Page 307'!I41) -> 0.01419169841 | J44: =LN('Page 307'!J42/'Page 307'!J41) -> 0.00634326102 | K44: =LN('Page 307'!K42/'Page 307'!K41) -> -0.01809340312 | L44: =#REF!/1200 -> 
A45: ='Page 307'!A43 -> 2004-06-01 | B45: =LN('Page 307'!B43/'Page 307'!B42) -> 0.02617696729 | C45: =LN('Page 307'!C43/'Page 307'!C42) -> -0.01784219993 | D45: =LN('Page 307'!D43/'Page 307'!D42) -> 0.06385928596 | E45: =LN('Page 307'!E43/'Page 307'!E42) -> -0.00291545396 | F45: =LN('Page 307'!F43/'Page 307'!F42) -> 0.05656571433 | G45: =LN('Page 307'!G43/'Page 307'!G42) -> 0.01525356837 | H45: =LN('Page 307'!H43/'Page 307'!H42) -> 0.05373460859 | I45: =LN('Page 307'!I43/'Page 307'!I42) -> 0.02779311025 | J45: =LN('Page 307'!J43/'Page 307'!J42) -> 0.01187302971 | K45: =LN('Page 307'!K43/'Page 307'!K42) -> 0.06240820032 | L45: =#REF!/1200 -> 
A46: ='Page 307'!A44 -> 2004-07-01 | B46: =LN('Page 307'!B44/'Page 307'!B43) -> -0.07705673949 | C46: =LN('Page 307'!C44/'Page 307'!C43) -> -0.04301419432 | D46: =LN('Page 307'!D44/'Page 307'!D43) -> -0.03325607672 | E46: =LN('Page 307'!E44/'Page 307'!E43) -> -0.04580193265 | F46: =LN('Page 307'!F44/'Page 307'!F43) -> -0.05032508389 | G46: =LN('Page 307'!G44/'Page 307'!G43) -> -0.02215967317 | H46: =LN('Page 307'!H44/'Page 307'!H43) -> -0.03072241626 | I46: =LN('Page 307'!I44/'Page 307'!I43) -> -0.03548641039 | J46: =LN('Page 307'!J44/'Page 307'!J43) -> -0.0461784423 | K46: =LN('Page 307'!K44/'Page 307'!K43) -> -0.08878308082 | L46: =#REF!/1200 -> 
A47: ='Page 307'!A45 -> 2004-08-02 | B47: =LN('Page 307'!B45/'Page 307'!B44) -> -0.03123203594 | C47: =LN('Page 307'!C45/'Page 307'!C44) -> 0.08313908181 | D47: =LN('Page 307'!D45/'Page 307'!D44) -> -0.07134098969 | E47: =LN('Page 307'!E45/'Page 307'!E44) -> -0.1188661488 | F47: =LN('Page 307'!F45/'Page 307'!F44) -> 0.02794683753 | G47: =LN('Page 307'!G45/'Page 307'!G44) -> -0.004630709826 | H47: =LN('Page 307'!H45/'Page 307'!H44) -> 0.01547918685 | I47: =LN('Page 307'!I45/'Page 307'!I44) -> -0.005997019472 | J47: =LN('Page 307'!J45/'Page 307'!J44) -> -0.008518975702 | K47: =LN('Page 307'!K45/'Page 307'!K44) -> 0.004549483394 | L47: =#REF!/1200 -> 
A48: ='Page 307'!A46 -> 2004-09-01 | B48: =LN('Page 307'!B46/'Page 307'!B45) -> 0.02786720813 | C48: =LN('Page 307'!C46/'Page 307'!C45) -> 0.06975501706 | D48: =LN('Page 307'!D46/'Page 307'!D45) -> 0.009689744532 | E48: =LN('Page 307'!E46/'Page 307'!E45) -> 0.0508916073 | F48: =LN('Page 307'!F46/'Page 307'!F45) -> -0.02495592308 | G48: =LN('Page 307'!G46/'Page 307'!G45) -> 0.02837069713 | H48: =LN('Page 307'!H46/'Page 307'!H45) -> 0.03675614013 | I48: =LN('Page 307'!I46/'Page 307'!I45) -> 0.01270095519 | J48: =LN('Page 307'!J46/'Page 307'!J45) -> -0.3008871034 | K48: =LN('Page 307'!K46/'Page 307'!K45) -> -0.02942894054 | L48: =#REF!/1200 -> 
A49: ='Page 307'!A47 -> 2004-10-01 | B49: =LN('Page 307'!B47/'Page 307'!B46) -> -0.09712671073 | C49: =LN('Page 307'!C47/'Page 307'!C46) -> 0.0470047151 | D49: =LN('Page 307'!D47/'Page 307'!D46) -> -0.0480476721 | E49: =LN('Page 307'!E47/'Page 307'!E46) -> -0.0049193868 | F49: =LN('Page 307'!F47/'Page 307'!F46) -> 0.02965024264 | G49: =LN('Page 307'!G47/'Page 307'!G46) -> 0.03305902827 | H49: =LN('Page 307'!H47/'Page 307'!H46) -> -0.0329234941 | I49: =LN('Page 307'!I47/'Page 307'!I46) -> 0.001730745889 | J49: =LN('Page 307'!J47/'Page 307'!J46) -> -0.05254555558 | K49: =LN('Page 307'!K47/'Page 307'!K46) -> -0.03045519141 | L49: =#REF!/1200 -> 
A50: ='Page 307'!A48 -> 2004-11-01 | B50: =LN('Page 307'!B48/'Page 307'!B47) -> 0.01418463499 | C50: =LN('Page 307'!C48/'Page 307'!C47) -> 0.01820020725 | D50: =LN('Page 307'!D48/'Page 307'!D47) -> 0.08136700236 | E50: =LN('Page 307'!E48/'Page 307'!E47) -> 0.06983270138 | F50: =LN('Page 307'!F48/'Page 307'!F47) -> 0.1709577981 | G50: =LN('Page 307'!G48/'Page 307'!G47) -> 0.04856150009 | H50: =LN('Page 307'!H48/'Page 307'!H47) -> 0.04913923875 | I50: =LN('Page 307'!I48/'Page 307'!I47) -> 0.06341078568 | J50: =LN('Page 307'!J48/'Page 307'!J47) -> -0.1110618517 | K50: =LN('Page 307'!K48/'Page 307'!K47) -> 0.03006555572 | L50: =#REF!/1200 -> 
A51: ='Page 307'!A49 -> 2004-12-01 | B51: =LN('Page 307'!B49/'Page 307'!B48) -> 0.03732292215 | C51: =LN('Page 307'!C49/'Page 307'!C48) -> 0.02336611183 | D51: =LN('Page 307'!D49/'Page 307'!D48) -> 0.01152894975 | E51: =LN('Page 307'!E49/'Page 307'!E48) -> 0.05080773963 | F51: =LN('Page 307'!F49/'Page 307'!F48) -> 0.07284509127 | G51: =LN('Page 307'!G49/'Page 307'!G48) -> 0.01178064673 | H51: =LN('Page 307'!H49/'Page 307'!H48) -> -0.07857691348 | I51: =LN('Page 307'!I49/'Page 307'!I48) -> 0.07909699676 | J51: =LN('Page 307'!J49/'Page 307'!J48) -> 0.150643955 | K51: =LN('Page 307'!K49/'Page 307'!K48) -> 0.0307007995 | L51: =#REF!/1200 -> 
A52: ='Page 307'!A50 -> 2005-01-03 | B52: =LN('Page 307'!B50/'Page 307'!B49) -> -0.08462124193 | C52: =LN('Page 307'!C50/'Page 307'!C49) -> -0.03538047726 | D52: =LN('Page 307'!D50/'Page 307'!D49) -> -0.07018613592 | E52: =LN('Page 307'!E50/'Page 307'!E49) -> -0.0678140758 | F52: =LN('Page 307'!F50/'Page 307'!F49) -> 0.04376766923 | G52: =LN('Page 307'!G50/'Page 307'!G49) -> -0.05294920165 | H52: =LN('Page 307'!H50/'Page 307'!H49) -> -0.06230857334 | I52: =LN('Page 307'!I50/'Page 307'!I49) -> -0.03089216721 | J52: =LN('Page 307'!J50/'Page 307'!J49) -> -0.1359718771 | K52: =LN('Page 307'!K50/'Page 307'!K49) -> 0.02758281462 | L52: =#REF!/1200 -> 
A53: ='Page 307'!A51 -> 2005-02-01 | B53: =LN('Page 307'!B51/'Page 307'!B50) -> -0.01878129434 | C53: =LN('Page 307'!C51/'Page 307'!C50) -> -0.03030155458 | D53: =LN('Page 307'!D51/'Page 307'!D50) -> -0.04036544723 | E53: =LN('Page 307'!E51/'Page 307'!E50) -> 0.06001296359 | F53: =LN('Page 307'!F51/'Page 307'!F50) -> 0.02804076181 | G53: =LN('Page 307'!G51/'Page 307'!G50) -> 0.01505081088 | H53: =LN('Page 307'!H51/'Page 307'!H50) -> 0.08983176121 | I53: =LN('Page 307'!I51/'Page 307'!I50) -> 0.120969391 | J53: =LN('Page 307'!J51/'Page 307'!J50) -> 0.1224991237 | K53: =LN('Page 307'!K51/'Page 307'!K50) -> 0 | L53: =#REF!/1200 -> 
A54: ='Page 307'!A52 -> 2005-03-01 | B54: =LN('Page 307'!B52/'Page 307'!B51) -> -0.192910069 | C54: =LN('Page 307'!C52/'Page 307'!C51) -> -0.04312356474 | D54: =LN('Page 307'!D52/'Page 307'!D51) -> -0.01514330677 | E54: =LN('Page 307'!E52/'Page 307'!E51) -> 0.05707683114 | F54: =LN('Page 307'!F52/'Page 307'!F51) -> 0.00729279628 | G54: =LN('Page 307'!G52/'Page 307'!G51) -> -0.05032783746 | H54: =LN('Page 307'!H52/'Page 307'!H51) -> -0.0554877265 | I54: =LN('Page 307'!I52/'Page 307'!I51) -> -0.03953399636 | J54: =LN('Page 307'!J52/'Page 307'!J51) -> 0.03269137017 | K54: =LN('Page 307'!K52/'Page 307'!K51) -> 0.0206192872 | L54: =#REF!/1200 -> 
A55: ='Page 307'!A53 -> 2005-04-01 | B55: =LN('Page 307'!B53/'Page 307'!B52) -> -0.09688075558 | C55: =LN('Page 307'!C53/'Page 307'!C52) -> -0.07809786972 | D55: =LN('Page 307'!D53/'Page 307'!D52) -> -0.07022480912 | E55: =LN('Page 307'!E53/'Page 307'!E52) -> -0.06938922504 | F55: =LN('Page 307'!F53/'Page 307'!F52) -> -0.00615486232 | G55: =LN('Page 307'!G53/'Page 307'!G52) -> 0.02548049672 | H55: =LN('Page 307'!H53/'Page 307'!H52) -> -0.04594142353 | I55: =LN('Page 307'!I53/'Page 307'!I52) -> -0.08409026341 | J55: =LN('Page 307'!J53/'Page 307'!J52) -> 0.04617684729 | K55: =LN('Page 307'!K53/'Page 307'!K52) -> -0.1137993843 | L55: =#REF!/1200 -> 
A56: ='Page 307'!A54 -> 2005-05-02 | B56: =LN('Page 307'!B54/'Page 307'!B53) -> 0.1835271024 | C56: =LN('Page 307'!C54/'Page 307'!C53) -> 0.106622635 | D56: =LN('Page 307'!D54/'Page 307'!D53) -> -0.05482531395 | E56: =LN('Page 307'!E54/'Page 307'!E53) -> 0.09540027395 | F56: =LN('Page 307'!F54/'Page 307'!F53) -> 0.03260637265 | G56: =LN('Page 307'!G54/'Page 307'!G53) -> 0.02164118217 | H56: =LN('Page 307'!H54/'Page 307'!H53) -> -0.06347863763 | I56: =LN('Page 307'!I54/'Page 307'!I53) -> -0.004885641519 | J56: =LN('Page 307'!J54/'Page 307'!J53) -> -0.04420963354 | K56: =LN('Page 307'!K54/'Page 307'!K53) -> 0.007771712707 | L56: =#REF!/1200 -> 
A57: ='Page 307'!A55 -> 2005-06-01 | B57: =LN('Page 307'!B55/'Page 307'!B54) -> 0.07539801748 | C57: =LN('Page 307'!C55/'Page 307'!C54) -> -0.008810629682 | D57: =LN('Page 307'!D55/'Page 307'!D54) -> -0.06413301046 | E57: =LN('Page 307'!E55/'Page 307'!E54) -> 0.04664285821 | F57: =LN('Page 307'!F55/'Page 307'!F54) -> -0.02709760953 | G57: =LN('Page 307'!G55/'Page 307'!G54) -> -0.009464471595 | H57: =LN('Page 307'!H55/'Page 307'!H54) -> -0.0364373962 | I57: =LN('Page 307'!I55/'Page 307'!I54) -> -0.07822631142 | J57: =LN('Page 307'!J55/'Page 307'!J54) -> -0.04009892376 | K57: =LN('Page 307'!K55/'Page 307'!K54) -> -0.05839972287 | L57: =#REF!/1200 -> 
A58: ='Page 307'!A56 -> 2005-07-01 | B58: =LN('Page 307'!B56/'Page 307'!B55) -> 0.07961287745 | C58: =LN('Page 307'!C56/'Page 307'!C55) -> 0.1119240404 | D58: =LN('Page 307'!D56/'Page 307'!D55) -> 0.04473376001 | E58: =LN('Page 307'!E56/'Page 307'!E55) -> 0.04620729575 | F58: =LN('Page 307'!F56/'Page 307'!F55) -> 0.03492972976 | G58: =LN('Page 307'!G56/'Page 307'!G55) -> 0.03274101972 | H58: =LN('Page 307'!H56/'Page 307'!H55) -> 0.07086611587 | I58: =LN('Page 307'!I56/'Page 307'!I55) -> -0.007733242986 | J58: =LN('Page 307'!J56/'Page 307'!J55) -> 0.008487574293 | K58: =LN('Page 307'!K56/'Page 307'!K55) -> 0.03667587053 | L58: =#REF!/1200 -> 
A59: ='Page 307'!A57 -> 2005-08-01 | B59: =LN('Page 307'!B57/'Page 307'!B56) -> -0.05994414259 | C59: =LN('Page 307'!C57/'Page 307'!C56) -> -0.07362474634 | D59: =LN('Page 307'!D57/'Page 307'!D56) -> -0.01579499767 | E59: =LN('Page 307'!E57/'Page 307'!E56) -> 0.1201520573 | F59: =LN('Page 307'!F57/'Page 307'!F56) -> 0.05435460473 | G59: =LN('Page 307'!G57/'Page 307'!G56) -> 0.004382768155 | H59: =LN('Page 307'!H57/'Page 307'!H56) -> -0.04085232006 | I59: =LN('Page 307'!I57/'Page 307'!I56) -> -0.06696747545 | J59: =LN('Page 307'!J57/'Page 307'!J56) -> -0.08204493617 | K59: =LN('Page 307'!K57/'Page 307'!K56) -> -0.04677337509 | L59: =#REF!/1200 -> 
A60: ='Page 307'!A58 -> 2005-09-01 | B60: =LN('Page 307'!B58/'Page 307'!B57) -> -0.1105813974 | C60: =LN('Page 307'!C58/'Page 307'!C57) -> -0.05562711017 | D60: =LN('Page 307'!D58/'Page 307'!D57) -> -0.03475969984 | E60: =LN('Page 307'!E58/'Page 307'!E57) -> 0.05316631167 | F60: =LN('Page 307'!F58/'Page 307'!F57) -> 0.05281422969 | G60: =LN('Page 307'!G58/'Page 307'!G57) -> 0.03900443372 | H60: =LN('Page 307'!H58/'Page 307'!H57) -> -0.09247115074 | I60: =LN('Page 307'!I58/'Page 307'!I57) -> -0.01016825343 | J60: =LN('Page 307'!J58/'Page 307'!J57) -> -0.03662591741 | K60: =LN('Page 307'!K58/'Page 307'!K57) -> 0.03054639637 | L60: =#REF!/1200 -> 
A61: ='Page 307'!A59 -> 2005-10-03 | B61: =LN('Page 307'!B59/'Page 307'!B58) -> -0.1109657417 | C61: =LN('Page 307'!C59/'Page 307'!C58) -> 0.07325636872 | D61: =LN('Page 307'!D59/'Page 307'!D58) -> -0.02081962778 | E61: =LN('Page 307'!E59/'Page 307'!E58) -> -0.04050562529 | F61: =LN('Page 307'!F59/'Page 307'!F58) -> 0.01805855436 | G61: =LN('Page 307'!G59/'Page 307'!G58) -> -0.007841600451 | H61: =LN('Page 307'!H59/'Page 307'!H58) -> -0.005420067469 | I61: =LN('Page 307'!I59/'Page 307'!I58) -> 0.06247270957 | J61: =LN('Page 307'!J59/'Page 307'!J58) -> 0.03625887758 | K61: =LN('Page 307'!K59/'Page 307'!K58) -> 0.03501004562 | L61: =#REF!/1200 -> 
A62: ='Page 307'!A60 -> 2005-11-01 | B62: =LN('Page 307'!B60/'Page 307'!B59) -> -0.2054506373 | C62: =LN('Page 307'!C60/'Page 307'!C59) -> 0.02022239701 | D62: =LN('Page 307'!D60/'Page 307'!D59) -> 0.08563712786 | E62: =LN('Page 307'!E60/'Page 307'!E59) -> 0.05659910737 | F62: =LN('Page 307'!F60/'Page 307'!F59) -> -0.03061249595 | G62: =LN('Page 307'!G60/'Page 307'!G59) -> 0.03276377641 | H62: =LN('Page 307'!H60/'Page 307'!H59) -> 0.1270303736 | I62: =LN('Page 307'!I60/'Page 307'!I59) -> 0.03388513926 | J62: =LN('Page 307'!J60/'Page 307'!J59) -> 0.05395128596 | K62: =LN('Page 307'!K60/'Page 307'!K59) -> 0.03770066236 | L62: =#REF!/1200 -> 
A63: ='Page 307'!A61 -> 2005-12-01 | B63: =LN('Page 307'!B61/'Page 307'!B60) -> -0.1202931797 | C63: =LN('Page 307'!C61/'Page 307'!C60) -> -0.03160865864 | D63: =LN('Page 307'!D61/'Page 307'!D60) -> 0.06389460611 | E63: =LN('Page 307'!E61/'Page 307'!E60) -> -0.03315220732 | F63: =LN('Page 307'!F61/'Page 307'!F60) -> 0.03665149317 | G63: =LN('Page 307'!G61/'Page 307'!G60) -> 0.0007810974816 | H63: =LN('Page 307'!H61/'Page 307'!H60) -> 0.07584221333 | I63: =LN('Page 307'!I61/'Page 307'!I60) -> -0.005967316908 | J63: =LN('Page 307'!J61/'Page 307'!J60) -> 0.07857005194 | K63: =LN('Page 307'!K61/'Page 307'!K60) -> -0.01258367776 | L63: =#REF!/1200 -> 
A64: ='Page 307'!A62 -> 2006-01-03 | B64: =LN('Page 307'!B62/'Page 307'!B61) -> 0.2145852023 | C64: =LN('Page 307'!C62/'Page 307'!C61) -> 0.00174107742 | D64: =LN('Page 307'!D62/'Page 307'!D61) -> -0.02972487883 | E64: =LN('Page 307'!E62/'Page 307'!E61) -> 0.0854300712 | F64: =LN('Page 307'!F62/'Page 307'!F61) -> -0.03240219499 | G64: =LN('Page 307'!G62/'Page 307'!G61) -> 0.02124452243 | H64: =LN('Page 307'!H62/'Page 307'!H61) -> 0.06315104026 | I64: =LN('Page 307'!I62/'Page 307'!I61) -> -0.08203975271 | J64: =LN('Page 307'!J62/'Page 307'!J61) -> 0.08117982989 | K64: =LN('Page 307'!K62/'Page 307'!K61) -> -0.06318173963 | L64: =#REF!/1200 -> 
A65: ='Page 307'!A63 -> 2006-02-01 | B65: =LN('Page 307'!B63/'Page 307'!B62) -> -0.158333155 | C65: =LN('Page 307'!C63/'Page 307'!C62) -> 0.03875225966 | D65: =LN('Page 307'!D63/'Page 307'!D62) -> 0.0117502898 | E65: =LN('Page 307'!E63/'Page 307'!E62) -> 0.05090637235 | F65: =LN('Page 307'!F63/'Page 307'!F62) -> -0.006096283146 | G65: =LN('Page 307'!G63/'Page 307'!G62) -> 0.02695987583 | H65: =LN('Page 307'!H63/'Page 307'!H62) -> -0.06691237142 | I65: =LN('Page 307'!I63/'Page 307'!I62) -> 0.03648829326 | J65: =LN('Page 307'!J63/'Page 307'!J62) -> 0.01061643708 | K65: =LN('Page 307'!K63/'Page 307'!K62) -> 0.01778008385 | L65: =#REF!/1200 -> 
A66: ='Page 307'!A64 -> 2006-03-01 | B66: =LN('Page 307'!B64/'Page 307'!B63) -> 0.04615830292 | C66: =LN('Page 307'!C64/'Page 307'!C63) -> 0.007146290537 | D66: =LN('Page 307'!D64/'Page 307'!D63) -> 0.05356553413 | E66: =LN('Page 307'!E64/'Page 307'!E63) -> 0.005194816877 | F66: =LN('Page 307'!F64/'Page 307'!F63) -> -0.003704235608 | G66: =LN('Page 307'!G64/'Page 307'!G63) -> -0.02505074963 | H66: =LN('Page 307'!H64/'Page 307'!H63) -> 0.04160277904 | I66: =LN('Page 307'!I64/'Page 307'!I63) -> 0.04794266097 | J66: =LN('Page 307'!J64/'Page 307'!J63) -> 0.02147499823 | K66: =LN('Page 307'!K64/'Page 307'!K63) -> 0.02815190289 | L66: =#REF!/1200 -> 
A67: ='Page 307'!A65 -> 2006-04-03 | B67: =LN('Page 307'!B65/'Page 307'!B64) -> 0.07322574889 | C67: =LN('Page 307'!C65/'Page 307'!C64) -> -0.05764721677 | D67: =LN('Page 307'!D65/'Page 307'!D64) -> 0.05028754403 | E67: =LN('Page 307'!E65/'Page 307'!E64) -> -0.01319239872 | F67: =LN('Page 307'!F65/'Page 307'!F64) -> 0.03202520875 | G67: =LN('Page 307'!G65/'Page 307'!G64) -> 0.02598037692 | H67: =LN('Page 307'!H65/'Page 307'!H64) -> 0.09998956184 | I67: =LN('Page 307'!I65/'Page 307'!I64) -> 0.04369343522 | J67: =LN('Page 307'!J65/'Page 307'!J64) -> -0.02323659587 | K67: =LN('Page 307'!K65/'Page 307'!K64) -> 0.1210686108 | L67: =#REF!/1200 -> 
A68: ='Page 307'!A66 -> 2006-05-01 | B68: =LN('Page 307'!B66/'Page 307'!B65) -> 0.1726396512 | C68: =LN('Page 307'!C66/'Page 307'!C65) -> -0.04631648498 | D68: =LN('Page 307'!D66/'Page 307'!D65) -> -0.06024370241 | E68: =LN('Page 307'!E66/'Page 307'!E65) -> -0.002783363479 | F68: =LN('Page 307'!F66/'Page 307'!F65) -> -0.01112049269 | G68: =LN('Page 307'!G66/'Page 307'!G65) -> 0.01016926578 | H68: =LN('Page 307'!H66/'Page 307'!H65) -> -0.05847112899 | I68: =LN('Page 307'!I66/'Page 307'!I65) -> -0.02805330598 | J68: =LN('Page 307'!J66/'Page 307'!J65) -> -0.02198543693 | K68: =LN('Page 307'!K66/'Page 307'!K65) -> -0.01565496867 | L68: =#REF!/1200 -> 
A69: ='Page 307'!A67 -> 2006-06-01 | B69: =LN('Page 307'!B67/'Page 307'!B66) -> 0.1009318599 | C69: =LN('Page 307'!C67/'Page 307'!C66) -> -0.05912784947 | D69: =LN('Page 307'!D67/'Page 307'!D66) -> -0.05070488602 | E69: =LN('Page 307'!E67/'Page 307'!E66) -> -0.01907201782 | F69: =LN('Page 307'!F67/'Page 307'!F66) -> 0.02607583763 | G69: =LN('Page 307'!G67/'Page 307'!G66) -> -0.02119432373 | H69: =LN('Page 307'!H67/'Page 307'!H66) -> 0.01997569542 | I69: =LN('Page 307'!I67/'Page 307'!I66) -> -0.022109542 | J69: =LN('Page 307'!J67/'Page 307'!J66) -> 0.09013555943 | K69: =LN('Page 307'!K67/'Page 307'!K66) -> -0.03515535656 | L69: =#REF!/1200 -> 

Sheet Page 310
A1: SUPER DUPER BENCHMARK PORTFOLIO—NAIVE OPTIMIZATION
B2: General Motors GM | C2: Home Depot HD | D2: International paper IP | E2: Hewlett-Packard HPQ | F2: Altria MO | G2: American Express AXP | H2: Alcoa Aluminum AA | I2: DuPont DD | J2: Merck MRK | K2: MMM
A3: Market cap (billion $) | B3: 16.85 | C3: 73.98 | D3: 15.92 | E3: 88.37 | F3: 153.33 | G3: 65.66 | H3: 28.16 | I3: 38.32 | J3: 79.51 | K3: 60.9
A4: Benchmark proportion | B4: =B3:K3/SUM(B3:K3) -> 0.02713365539 | C4: 0.1191304348 | D4: 0.02563607085 | E4: 0.1423027375 | F4: 0.2469082126 | G4: 0.1057326892 | H4: 0.04534621578 | I4: 0.06170692432 | J4: 0.1280354267 | K4: 0.09806763285
A6: Variance-covariance matrix of excess returns
B7: GM | C7: HD | D7: IP | E7: HPQ | F7: MO | G7: AXP | H7: AA | I7: DD | J7: MRK | K7: MMM | M7: Mean return
A8: GM | B8: =varcovar('Page 308'!B10:K69) -> 0.01182788729 | C8: 0.003061696639 | D8: 0.00236486476 | E8: 0.004187328935 | F8: 0.001363838121 | G8: 0.00329772011 | H8: 0.00463675437 | I8: 0.001838691825 | J8: 0.0009806468402 | K8: 0.00138270736 | M8: =TRANSPOSE('Page 308'!B6:K6) -> -0.00873385163
A9: HD | B9: 0.003061696639 | C9: 0.007191553885 | D9: 0.001872035613 | E9: 0.004267133071 | F9: 0.002243301642 | G9: 0.003333019332 | H9: 0.004585071332 | I9: 0.00203809342 | J9: 0.0001795207006 | K9: 0.001798728815 | M9: -0.003912585257
A10: IP | B10: 0.00236486476 | C10: 0.001872035613 | D10: 0.003951215775 | E10: 0.003137172075 | F10: 8.759653012e-05 | G10: 0.002352578156 | H10: 0.004344147113 | I10: 0.002096386294 | J10: 0.00120738011 | K10: 0.001605356114 | M10: 0.0005668052524
A11: HPQ | B11: 0.004187328935 | C11: 0.004267133071 | D11: 0.003137172075 | E11: 0.01187218946 | F11: 0.002566458642 | G11: 0.004921213425 | H11: 0.006051076227 | I11: 0.003313805886 | J11: 0.001977086953 | K11: 0.002229959503 | M11: 0.002994559178
A12: MO | B12: 0.001363838121 | C12: 0.002243301642 | D12: 8.759653012e-05 | E12: 0.002566458642 | F12: 0.007711607803 | G12: 0.001616509004 | H12: 0.001812838088 | I12: 0.0008933438506 | J12: 0.0006820890265 | K12: 0.0008064323777 | M12: 0.01065766522
A13: AXP | B13: 0.00329772011 | C13: 0.003333019332 | D13: 0.002352578156 | E13: 0.004921213425 | F13: 0.001616509004 | G13: 0.004204640222 | H13: 0.003765722978 | I13: 0.001944271655 | J13: 0.001074612086 | K13: 0.001374942375 | M13: 0.008235294657
A14: AA | B14: 0.00463675437 | C14: 0.004585071332 | D14: 0.004344147113 | E14: 0.006051076227 | F14: 0.001812838088 | G14: 0.003765722978 | H14: 0.009262545394 | I14: 0.004079226466 | J14: 0.001794821159 | K14: 0.002431302101 | M14: -0.001804352093
A15: DD | B15: 0.001838691825 | C15: 0.00203809342 | D15: 0.002096386294 | E15: 0.003313805886 | F15: 0.0008933438506 | G15: 0.001944271655 | H15: 0.004079226466 | I15: 0.003814634131 | J15: 0.001650683458 | K15: 0.00193275587 | M15: 0.0002909870229
A16: MRK | B16: 0.0009806468402 | C16: 0.0001795207006 | D16: 0.00120738011 | E16: 0.001977086953 | F16: 0.0006820890265 | G16: 0.001074612086 | H16: 0.001794821159 | I16: 0.001650683458 | J16: 0.006610491527 | K16: 0.0004895873158 | M16: -0.005522032386
A17: MMM | B17: 0.00138270736 | C17: 0.001798728815 | D17: 0.001605356114 | E17: 0.002229959503 | F17: 0.0008064323777 | G17: 0.001374942375 | H17: 0.002431302101 | I17: 0.00193275587 | J17: 0.0004895873158 | K17: 0.003116366571 | M17: 0.007480990523
A19: Current t-bill rate | B19: =4.83%/12 -> 0.004025 | C19: =getformula(B19) -> <-- =4.83%/12
A21: "Optimal" portfolio
A22: GM | B22: =MMULT(MINVERSE(B8:K17),M8:M17-B19)/SUM(MMULT(MINVERSE(B8:K17),M8:M17-B19)) -> 4.801604206 | C22: =getformula(B22) -> <-- {=MMULT(MINVERSE(B8:K17),M8:M17-B19)/SUM(MMULT(MINVERSE(B8:K17),M8:M17-B19))}
A23: HD | B23: 9.81787141
A24: IP | B24: 6.892734999
A25: HPQ | B25: 2.212680411
A26: MO | B26: -2.636747192
A27: AXP | B27: -17.63714133
A28: AA | B28: -3.245323561
A29: DD | B29: 5.287572785
A30: MRK | B30: 4.695446817
A31: MMM | B31: -9.188698544
A32: Sum of proportions | B32: =SUM(B22:B31) -> 1 | C32: =getformula(B32) -> <-- =SUM(B22:B31)

Sheet Page 311
A1: NEGATIVE RETURNS AND HIGH CORRELATIONS
B2: General Motors GM | C2: Home Depot HD | D2: International Paper IP | E2: Hewlett-Packard HPQ | F2: Altria MO | G2: American Express AXP | H2: Alcoa Aluminum AA | I2: DuPont DD | J2: Merck MRK | K2: MMM
A3: Market cap (billion $) | B3: 16.85 | C3: 73.98 | D3: 15.92 | E3: 88.37 | F3: 153.33 | G3: 65.66 | H3: 28.16 | I3: 38.32 | J3: 79.51 | K3: 60.9
A4: Benchmark proportion | B4: =B3/SUM($B$3:$K$3) -> 0.02713365539 | C4: 0.1191304348 | D4: 0.02563607085 | E4: 0.1423027375 | F4: 0.2469082126 | G4: 0.1057326892 | H4: 0.04534621578 | I4: 0.06170692432 | J4: 0.1280354267 | K4: 0.09806763285
A6: Mean return | B6: ='Page 308'!B6 -> -0.00873385163 | C6: ='Page 308'!C6 -> -0.003912585257 | D6: ='Page 308'!D6 -> 0.0005668052524 | E6: ='Page 308'!E6 -> 0.002994559178 | F6: ='Page 308'!F6 -> 0.01065766522 | G6: ='Page 308'!G6 -> 0.008235294657 | H6: ='Page 308'!H6 -> -0.001804352093 | I6: ='Page 308'!I6 -> 0.0002909870229 | J6: ='Page 308'!J6 -> -0.005522032386 | K6: ='Page 308'!K6 -> 0.007480990523
A7: Return sigma | B7: ='Page 308'!B7 -> 0.107845982 | C7: ='Page 308'!C7 -> 0.08409336867 | D7: ='Page 308'!D7 -> 0.06233267344 | E7: ='Page 308'!E7 -> 0.1080477655 | F7: ='Page 308'!F7 -> 0.08708088772 | G7: ='Page 308'!G7 -> 0.06430056675 | H7: ='Page 308'!H7 -> 0.09543673107 | I7: ='Page 308'!I7 -> 0.06124587248 | J7: ='Page 308'!J7 -> 0.08062454135 | K7: ='Page 308'!K7 -> 0.05535726807
B10: GM | C10: HD | D10: IP | E10: HPQ | F10: MO | G10: AXP | H10: AA | I10: DD | J10: MRK | K10: MMM
A11: GM | B11: =CORREL($B$24:$B$83,B24:B83) -> 1 | C11: =CORREL($B$24:$B$83,C24:C83) -> 0.331968747 | D11: 0.3459292996 | E11: 0.3533605647 | F11: 0.1428028153 | G11: 0.4676229138 | H11: 0.4429914321 | I11: 0.2737341057 | J11: 0.1109027124 | K11: 0.2277468702 | L11: =getformula(K11) -> <-- =CORREL($B$24:$B$83,K24:K83)
A12: HD | C12: =CORREL($C$24:$C$83,C24:C83) -> 1 | D12: =CORREL($C$24:$C$83,D24:D83) -> 0.3511861367 | E12: 0.4618058264 | F12: 0.3012338952 | G12: 0.6061247847 | H12: 0.5617842412 | I12: 0.3891224361 | J12: 0.02603672095 | K12: 0.379953154 | L12: =getformula(K12) -> <-- =CORREL($C$24:$C$83,K24:K83)
A13: IP | D13: =CORREL($D$24:$D$83,D24:D83) -> 1 | E13: =CORREL($D$24:$D$83,E24:E83) -> 0.4580443788 | F13: 0.01586898182 | G13: 0.5771839773 | H13: 0.7180818931 | I13: 0.539982261 | J13: 0.236244533 | K13: 0.4574901464 | L13: =getformula(K13) -> <-- =CORREL($D$24:$D$83,K24:K83)
A14: HPQ | E14: =CORREL($E$24:$E$83,E24:E83) -> 1 | F14: =CORREL($E$24:$E$83,F24:F83) -> 0.2682232335 | G14: 0.6965340803 | H14: 0.5770348458 | I14: 0.4924194635 | J14: 0.223173942 | K14: 0.3666125252
A15: MO | F15: =CORREL($F$24:$F$83,F24:F83) -> 1 | G15: 0.2838842123 | H15: 0.2144970756 | I15: 0.1647099139 | J15: 0.09553262673 | K15: 0.1645020144
A16: AXP | G16: =CORREL($G$24:$G$83,G24:G83) -> 1 | H16: =CORREL($G$24:$G$83,H24:H83) -> 0.603418712 | I16: =CORREL($G$24:$G$83,I24:I83) -> 0.4854741157 | J16: =CORREL($G$24:$G$83,J24:J83) -> 0.2038310885 | K16: =CORREL($G$24:$G$83,K24:K83) -> 0.379835724
A17: AA | H17: =CORREL($H$24:$H$83,H24:H83) -> 1 | I17: =CORREL($H$24:$H$83,I24:I83) -> 0.6862560669 | J17: =CORREL($H$24:$H$83,J24:J83) -> 0.2293713283 | K17: =CORREL($H$24:$H$83,K24:K83) -> 0.4525321951
A18: DD | I18: =CORREL($I$24:$I$83,I24:I83) -> 1 | J18: =CORREL($I$24:$I$83,J24:J83) -> 0.3287157229 | K18: =CORREL($I$24:$I$83,K24:K83) -> 0.5605653989
A19: MRK | J19: =CORREL($J$24:$J$83,J24:J83) -> 1 | K19: =CORREL($J$24:$J$83,K24:K83) -> 0.1078671024
A20: MMM | K20: =CORREL($K$24:$K$83,K24:K83) -> 1
A22: Excess returns: Monthly minus sample mean for each asset
A23: Date | B23: GM | C23: HD | D23: IP | E23: HPQ | F23: MO | G23: AXP | H23: AA | I23: DD | J23: MRK | K23: MMM
A24: 2001-07-02 | B24: ='Page 308'!B10-'Page 308'!B$6 -> -0.003062746231 | C24: ='Page 308'!C10-'Page 308'!C$6 -> 0.06809200525 | D24: ='Page 308'!D10-'Page 308'!D$6 -> 0.1318428823 | E24: ='Page 308'!E10-'Page 308'!E$6 -> -0.1509311149 | F24: ='Page 308'!F10-'Page 308'!F$6 -> -0.09490382591 | G24: ='Page 308'!G10-'Page 308'!G$6 -> 0.0325004627 | H24: ='Page 308'!H10-'Page 308'!H$6 -> -0.01751586246 | I24: ='Page 308'!I10-'Page 308'!I$6 -> -0.1193897117 | J24: ='Page 308'!J10-'Page 308'!J$6 -> 0.0674210858 | K24: ='Page 308'!K10-'Page 308'!K$6 -> -0.02726422313 | L24: =getformula(K24) -> <-- ='Page 308'!K10-'Page 308'!K$6
A25: 2001-08-01 | B25: ='Page 308'!B11-'Page 308'!B$6 -> -0.1332227741 | C25: ='Page 308'!C11-'Page 308'!C$6 -> -0.08713813357 | D25: ='Page 308'!D11-'Page 308'!D$6 -> -0.009586032119 | E25: ='Page 308'!E11-'Page 308'!E$6 -> -0.06394775008 | F25: ='Page 308'!F11-'Page 308'!F$6 -> 0.0303328071 | G25: ='Page 308'!G11-'Page 308'!G$6 -> -0.1102503383 | H25: ='Page 308'!H11-'Page 308'!H$6 -> -0.02310032709 | I25: ='Page 308'!I11-'Page 308'!I$6 -> -0.03619947328 | J25: ='Page 308'!J11-'Page 308'!J$6 -> -0.0326173834 | K25: ='Page 308'!K11-'Page 308'!K$6 -> -0.07393364049
A26: 2001-09-04 | B26: ='Page 308'!B12-'Page 308'!B$6 -> -0.2349601726 | C26: ='Page 308'!C12-'Page 308'!C$6 -> -0.176413687 | D26: ='Page 308'!D12-'Page 308'!D$6 -> -0.1420573075 | E26: ='Page 308'!E12-'Page 308'!E$6 -> -0.367414234 | F26: ='Page 308'!F12-'Page 308'!F$6 -> 0.007769882523 | G26: ='Page 308'!G12-'Page 308'!G$6 -> -0.2339197268 | H26: ='Page 308'!H12-'Page 308'!H$6 -> -0.2048098973 | I26: ='Page 308'!I12-'Page 308'!I$6 -> -0.08800370828 | J26: ='Page 308'!J12-'Page 308'!J$6 -> 0.02835407443 | K26: ='Page 308'!K12-'Page 308'!K$6 -> -0.06379409578
A27: 2001-10-01 | B27: ='Page 308'!B13-'Page 308'!B$6 -> -0.02893822396 | C27: ='Page 308'!C13-'Page 308'!C$6 -> 0.000372758552 | D27: ='Page 308'!D13-'Page 308'!D$6 -> 0.02646186714 | E27: ='Page 308'!E13-'Page 308'!E$6 -> 0.04477376303 | F27: ='Page 308'!F13-'Page 308'!F$6 -> -0.0418346058 | G27: ='Page 308'!G13-'Page 308'!G$6 -> 0.00723732672 | H27: ='Page 308'!H13-'Page 308'!H$6 -> 0.04641105013 | I27: ='Page 308'!I13-'Page 308'!I$6 -> 0.06342867696 | J27: ='Page 308'!J13-'Page 308'!J$6 -> -0.03733206056 | K27: ='Page 308'!K13-'Page 308'!K$6 -> 0.05157675912
A28: 2001-11-01 | B28: ='Page 308'!B14-'Page 308'!B$6 -> 0.2052357177 | C28: ='Page 308'!C14-'Page 308'!C$6 -> 0.203987954 | D28: ='Page 308'!D14-'Page 308'!D$6 -> 0.1153096521 | E28: ='Page 308'!E14-'Page 308'!E$6 -> 0.2645174063 | F28: ='Page 308'!F14-'Page 308'!F$6 -> -0.002771832381 | G28: ='Page 308'!G14-'Page 308'!G$6 -> 0.1036493471 | H28: ='Page 308'!H14-'Page 308'!H$6 -> 0.180768769 | I28: ='Page 308'!I14-'Page 308'!I$6 -> 0.1111655967 | J28: ='Page 308'!J14-'Page 308'!J$6 -> 0.06534939488 | K28: ='Page 308'!K14-'Page 308'!K$6 -> 0.09083388997
A29: 2001-12-03 | B29: ='Page 308'!B15-'Page 308'!B$6 -> -0.01372179977 | C29: ='Page 308'!C15-'Page 308'!C$6 -> 0.0933588398 | D29: ='Page 308'!D15-'Page 308'!D$6 -> 0.009559863566 | E29: ='Page 308'!E15-'Page 308'!E$6 -> -0.06763088461 | F29: ='Page 308'!F15-'Page 308'!F$6 -> -0.02649201189 | G29: ='Page 308'!G15-'Page 308'!G$6 -> 0.0729184008 | H29: ='Page 308'!H15-'Page 308'!H$6 -> -0.08042560385 | I29: ='Page 308'!I15-'Page 308'!I$6 -> -0.04252067169 | J29: ='Page 308'!J15-'Page 308'!J$6 -> -0.130787397 | K29: ='Page 308'!K15-'Page 308'!K$6 -> 0.02374803332
A30: 2002-01-02 | B30: ='Page 308'!B16-'Page 308'!B$6 -> 0.05954961266 | C30: ='Page 308'!C16-'Page 308'!C$6 -> -0.01422102517 | D30: ='Page 308'!D16-'Page 308'!D$6 -> 0.03409012856 | E30: ='Page 308'!E16-'Page 308'!E$6 -> 0.07088982438 | F30: ='Page 308'!F16-'Page 308'!F$6 -> 0.07802631695 | G30: ='Page 308'!G16-'Page 308'!G$6 -> -0.001595164018 | H30: ='Page 308'!H16-'Page 308'!H$6 -> 0.01012361129 | I30: ='Page 308'!I16-'Page 308'!I$6 -> 0.03800529805 | J30: ='Page 308'!J16-'Page 308'!J$6 -> 0.01186052815 | K30: ='Page 308'!K16-'Page 308'!K$6 -> -0.07035392416
A31: 2002-02-01 | B31: ='Page 308'!B17-'Page 308'!B$6 -> 0.054283432 | C31: ='Page 308'!C17-'Page 308'!C$6 -> 0.002039340875 | D31: ='Page 308'!D17-'Page 308'!D$6 -> 0.05132106768 | E31: ='Page 308'!E17-'Page 308'!E$6 -> -0.09743302601 | F31: ='Page 308'!F17-'Page 308'!F$6 -> 0.03895958424 | G31: ='Page 308'!G17-'Page 308'!G$6 -> 0.008174656778 | H31: ='Page 308'!H17-'Page 308'!H$6 -> 0.05323571611 | I31: ='Page 308'!I17-'Page 308'!I$6 -> 0.06628172229 | J31: ='Page 308'!J17-'Page 308'!J$6 -> 0.04131031752 | K31: ='Page 308'!K17-'Page 308'!K$6 -> 0.05853572748
A32: 2002-03-01 | B32: ='Page 308'!B18-'Page 308'!B$6 -> 0.1407114246 | C32: ='Page 308'!C18-'Page 308'!C$6 -> -0.02333015114 | D32: ='Page 308'!D18-'Page 308'!D$6 -> -0.01765238784 | E32: ='Page 308'!E18-'Page 308'!E$6 -> -0.1138130855 | F32: ='Page 308'!F18-'Page 308'!F$6 -> 0.0007791999662 | G32: ='Page 308'!G18-'Page 308'!G$6 -> 0.1083896633 | H32: ='Page 308'!H18-'Page 308'!H$6 -> 0.006456875751 | I32: ='Page 308'!I18-'Page 308'!I$6 -> 0.006324252096 | J32: ='Page 308'!J18-'Page 308'!J$6 -> -0.05198309515 | K32: ='Page 308'!K18-'Page 308'!K$6 -> -0.03272305241
A33: 2002-04-01 | B33: ='Page 308'!B19-'Page 308'!B$6 -> 0.06813752373 | C33: ='Page 308'!C19-'Page 308'!C$6 -> -0.04320909364 | D33: ='Page 308'!D19-'Page 308'!D$6 -> -0.03780515039 | E33: ='Page 308'!E19-'Page 308'!E$6 -> -0.05113056496 | F33: ='Page 308'!F19-'Page 308'!F$6 -> 0.02220093575 | G33: ='Page 308'!G19-'Page 308'!G$6 -> -0.004765077178 | H33: ='Page 308'!H19-'Page 308'!H$6 -> -0.1017205029 | I33: ='Page 308'!I19-'Page 308'!I$6 -> -0.05809602229 | J33: ='Page 308'!J19-'Page 308'!J$6 -> -0.05229497614 | K33: ='Page 308'!K19-'Page 308'!K$6 -> 0.08228805255
A34: 2002-05-01 | B34: ='Page 308'!B20-'Page 308'!B$6 -> -0.01555725458 | C34: ='Page 308'!C20-'Page 308'!C$6 -> -0.1025456801 | D34: ='Page 308'!D20-'Page 308'!D$6 -> 0.04447392017 | E34: ='Page 308'!E20-'Page 308'!E$6 -> 0.1074093967 | F34: ='Page 308'!F20-'Page 308'!F$6 -> 0.03985586626 | G34: ='Page 308'!G20-'Page 308'!G$6 -> 0.02749291714 | H34: ='Page 308'!H20-'Page 308'!H$6 -> 0.03378428172 | I34: ='Page 308'!I20-'Page 308'!I$6 -> 0.04076901281 | J34: ='Page 308'!J20-'Page 308'!J$6 -> 0.05490929252 | K34: ='Page 308'!K20-'Page 308'!K$6 -> -0.005578698553
A35: 2002-06-03 | B35: ='Page 308'!B21-'Page 308'!B$6 -> -0.1420844266 | C35: ='Page 308'!C21-'Page 308'!C$6 -> -0.1214502781 | D35: ='Page 308'!D21-'Page 308'!D$6 -> 0.01051149947 | E35: ='Page 308'!E21-'Page 308'!E$6 -> -0.2213981044 | F35: ='Page 308'!F21-'Page 308'!F$6 -> -0.2688458317 | G35: ='Page 308'!G21-'Page 308'!G$6 -> -0.1653616137 | H35: ='Page 308'!H21-'Page 308'!H$6 -> -0.05196860134 | I35: ='Page 308'!I21-'Page 308'!I$6 -> -0.03593231794 | J35: ='Page 308'!J21-'Page 308'!J$6 -> -0.1081453254 | K35: ='Page 308'!K21-'Page 308'!K$6 -> -0.02702103999
A36: 2002-07-01 | B36: ='Page 308'!B22-'Page 308'!B$6 -> -0.1295189695 | C36: ='Page 308'!C22-'Page 308'!C$6 -> -0.1696191922 | D36: ='Page 308'!D22-'Page 308'!D$6 -> -0.09058738707 | E36: ='Page 308'!E22-'Page 308'!E$6 -> -0.07956624636 | F36: ='Page 308'!F22-'Page 308'!F$6 -> 0.04236945254 | G36: ='Page 308'!G22-'Page 308'!G$6 -> -0.03599649582 | H36: ='Page 308'!H22-'Page 308'!H$6 -> -0.1956926061 | I36: ='Page 308'!I22-'Page 308'!I$6 -> -0.0577521926 | J36: ='Page 308'!J22-'Page 308'!J$6 -> -0.01511752091 | K36: ='Page 308'!K22-'Page 308'!K$6 -> 0.01533633657
A37: 2002-08-01 | B37: ='Page 308'!B23-'Page 308'!B$6 -> 0.04793419839 | C37: ='Page 308'!C23-'Page 308'!C$6 -> 0.06843006949 | D37: ='Page 308'!D23-'Page 308'!D$6 -> -0.04998795062 | E37: ='Page 308'!E23-'Page 308'!E$6 -> -0.05539483557 | F37: ='Page 308'!F23-'Page 308'!F$6 -> 0.0715029685 | G37: ='Page 308'!G23-'Page 308'!G$6 -> 0.01429713642 | H37: ='Page 308'!H23-'Page 308'!H$6 -> -0.07347541088 | I37: ='Page 308'!I23-'Page 308'!I$6 -> -0.03101154315 | J37: ='Page 308'!J23-'Page 308'!J$6 -> 0.02397047099 | K37: ='Page 308'!K23-'Page 308'!K$6 -> -0.009722177566
A38: 2002-09-03 | B38: ='Page 308'!B24-'Page 308'!B$6 -> -0.1984356251 | C38: ='Page 308'!C24-'Page 308'!C$6 -> -0.2272306919 | D38: ='Page 308'!D24-'Page 308'!D$6 -> -0.1205983168 | E38: ='Page 308'!E24-'Page 308'!E$6 -> -0.1374305199 | F38: ='Page 308'!F24-'Page 308'!F$6 -> -0.2507671022 | G38: ='Page 308'!G24-'Page 308'!G$6 -> -0.1536323506 | H38: ='Page 308'!H24-'Page 308'!H$6 -> -0.2604303311 | I38: ='Page 308'!I24-'Page 308'!I$6 -> -0.1113513083 | J38: ='Page 308'!J24-'Page 308'!J$6 -> -0.08711076965 | K38: ='Page 308'!K24-'Page 308'!K$6 -> -0.1352594478
A39: 2002-10-01 | B39: ='Page 308'!B25-'Page 308'!B$6 -> -0.1482918204 | C39: ='Page 308'!C25-'Page 308'!C$6 -> 0.1051692642 | D39: ='Page 308'!D25-'Page 308'!D$6 -> 0.04424588737 | E39: ='Page 308'!E25-'Page 308'!E$6 -> 0.2999549854 | F39: ='Page 308'!F25-'Page 308'!F$6 -> 0.03826679623 | G39: ='Page 308'!G25-'Page 308'!G$6 -> 0.1482404018 | H39: ='Page 308'!H25-'Page 308'!H$6 -> 0.1351251667 | I39: ='Page 308'!I25-'Page 308'!I$6 -> 0.1338291142 | J39: ='Page 308'!J25-'Page 308'!J$6 -> 0.1766402455 | K39: ='Page 308'!K25-'Page 308'!K$6 -> 0.1360512172
A40: 2002-11-01 | B40: ='Page 308'!B26-'Page 308'!B$6 -> 0.2005376093 | C40: ='Page 308'!C26-'Page 308'!C$6 -> -0.08587925181 | D40: ='Page 308'!D26-'Page 308'!D$6 -> 0.1232317622 | E40: ='Page 308'!E26-'Page 308'!E$6 -> 0.2066898388 | F40: ='Page 308'!F26-'Page 308'!F$6 -> -0.08786940923 | G40: ='Page 308'!G26-'Page 308'!G$6 -> 0.05972009781 | H40: ='Page 308'!H26-'Page 308'!H$6 -> 0.1550420143 | I40: ='Page 308'!I26-'Page 308'!I$6 -> 0.08646859593 | J40: ='Page 308'!J26-'Page 308'!J$6 -> 0.09656238594 | K40: ='Page 308'!K26-'Page 308'!K$6 -> 0.02000063171
A41: 2002-12-02 | B41: ='Page 308'!B27-'Page 308'!B$6 -> -0.06532758617 | C41: ='Page 308'!C27-'Page 308'!C$6 -> -0.08825787454 | D41: ='Page 308'!D27-'Page 308'!D$6 -> -0.1161426825 | E41: ='Page 308'!E27-'Page 308'!E$6 -> -0.1140926717 | F41: ='Page 308'!F27-'Page 308'!F$6 -> 0.07694455373 | G41: ='Page 308'!G27-'Page 308'!G$6 -> -0.1024561497 | H41: ='Page 308'!H27-'Page 308'!H$6 -> -0.1128743165 | I41: ='Page 308'!I27-'Page 308'!I$6 -> -0.05117349223 | J41: ='Page 308'!J27-'Page 308'!J$6 -> -0.03649212829 | K41: ='Page 308'!K27-'Page 308'!K$6 -> -0.05920935127
A42: 2003-01-02 | B42: ='Page 308'!B28-'Page 308'!B$6 -> -0.005702094603 | C42: ='Page 308'!C28-'Page 308'!C$6 -> -0.1350522611 | D42: ='Page 308'!D28-'Page 308'!D$6 -> 0.02031598572 | E42: ='Page 308'!E28-'Page 308'!E$6 -> 2.933184662e-05 | F42: ='Page 308'!F28-'Page 308'!F$6 -> -0.07846989903 | G42: ='Page 308'!G28-'Page 308'!G$6 -> -0.003257683583 | H42: ='Page 308'!H28-'Page 308'!H$6 -> -0.1396611682 | I42: ='Page 308'!I28-'Page 308'!I$6 -> -0.1132169977 | J42: ='Page 308'!J28-'Page 308'!J$6 -> -0.01638536148 | K42: ='Page 308'!K28-'Page 308'!K$6 -> 0.002564123385
A43: 2003-02-03 | B43: ='Page 308'!B29-'Page 308'!B$6 -> -0.05048726118 | C43: ='Page 308'!C29-'Page 308'!C$6 -> 0.1188850049 | D43: ='Page 308'!D29-'Page 308'!D$6 -> -0.01266935794 | E43: ='Page 308'!E29-'Page 308'!E$6 -> -0.09661534556 | F43: ='Page 308'!F29-'Page 308'!F$6 -> 0.009677776646 | G43: ='Page 308'!G29-'Page 308'!G$6 -> -0.06440115258 | H43: ='Page 308'!H29-'Page 308'!H$6 -> 0.04549803636 | I43: ='Page 308'!I29-'Page 308'!I$6 -> -0.02309425532 | J43: ='Page 308'!J29-'Page 308'!J$6 -> -0.04323523759 | K43: ='Page 308'!K29-'Page 308'!K$6 -> 0.004339275581
A44: 2003-03-03 | B44: ='Page 308'!B30-'Page 308'!B$6 -> 0.004165226568 | C44: ='Page 308'!C30-'Page 308'!C$6 -> 0.04457562675 | D44: ='Page 308'!D30-'Page 308'!D$6 -> -0.03616001273 | E44: ='Page 308'!E30-'Page 308'!E$6 -> -0.01701816129 | F44: ='Page 308'!F30-'Page 308'!F$6 -> -0.2475214193 | G44: ='Page 308'!G30-'Page 308'!G$6 -> -0.01879505487 | H44: ='Page 308'!H30-'Page 308'!H$6 -> -0.05394427268 | I44: ='Page 308'!I30-'Page 308'!I$6 -> 0.057777483 | J44: ='Page 308'!J30-'Page 308'!J$6 -> 0.05032412252 | K44: ='Page 308'!K30-'Page 308'!K$6 -> 0.02913599002
A45: 2003-04-01 | B45: ='Page 308'!B31-'Page 308'!B$6 -> 0.0787828753 | C45: ='Page 308'!C31-'Page 308'!C$6 -> 0.1477761731 | D45: ='Page 308'!D31-'Page 308'!D$6 -> 0.05542265934 | E45: ='Page 308'!E31-'Page 308'!E$6 -> 0.04364772079 | F45: ='Page 308'!F31-'Page 308'!F$6 -> 0.01568003066 | G45: ='Page 308'!G31-'Page 308'!G$6 -> 0.1244553342 | H45: ='Page 308'!H31-'Page 308'!H$6 -> 0.1763782221 | I45: ='Page 308'!I31-'Page 308'!I$6 -> 0.09000822082 | J45: ='Page 308'!J31-'Page 308'!J$6 -> 0.06555072979 | K45: ='Page 308'!K31-'Page 308'!K$6 -> -0.03866317508
A46: 2003-05-01 | B46: ='Page 308'!B32-'Page 308'!B$6 -> 0.002474565834 | C46: ='Page 308'!C32-'Page 308'!C$6 -> 0.1482608151 | D46: ='Page 308'!D32-'Page 308'!D$6 -> 0.03164064374 | E46: ='Page 308'!E32-'Page 308'!E$6 -> 0.1763272096 | F46: ='Page 308'!F32-'Page 308'!F$6 -> 0.283881577 | G46: ='Page 308'!G32-'Page 308'!G$6 -> 0.08744104623 | H46: ='Page 308'!H32-'Page 308'!H$6 -> 0.07240087531 | I46: ='Page 308'!I32-'Page 308'!I$6 -> -0.001338107537 | J46: ='Page 308'!J32-'Page 308'!J$6 -> -0.04008018531 | K46: ='Page 308'!K32-'Page 308'!K$6 -> 0.001120124986
A47: 2003-06-02 | B47: ='Page 308'!B33-'Page 308'!B$6 -> 0.02739538517 | C47: ='Page 308'!C33-'Page 308'!C$6 -> 0.02497923449 | D47: ='Page 308'!D33-'Page 308'!D$6 -> -0.02637081721 | E47: ='Page 308'!E33-'Page 308'!E$6 -> 0.0891893969 | F47: ='Page 308'!F33-'Page 308'!F$6 -> 0.09975838678 | G47: ='Page 308'!G33-'Page 308'!G$6 -> -0.00458103901 | H47: ='Page 308'!H33-'Page 308'!H$6 -> 0.03740133083 | I47: ='Page 308'!I33-'Page 308'!I$6 -> -0.01241234756 | J47: ='Page 308'!J33-'Page 308'!J$6 -> 0.09751231348 | K47: ='Page 308'!K33-'Page 308'!K$6 -> 0.01230517329
A48: 2003-07-01 | B48: ='Page 308'!B34-'Page 308'!B$6 -> 0.0475427931 | C48: ='Page 308'!C34-'Page 308'!C$6 -> -0.05603165202 | D48: ='Page 308'!D34-'Page 308'!D$6 -> 0.09003487672 | E48: ='Page 308'!E34-'Page 308'!E$6 -> -0.008882701804 | F48: ='Page 308'!F34-'Page 308'!F$6 -> -0.1380159746 | G48: ='Page 308'!G34-'Page 308'!G$6 -> 0.04901664268 | H48: ='Page 308'!H34-'Page 308'!H$6 -> 0.08714906203 | I48: ='Page 308'!I34-'Page 308'!I$6 -> 0.05363669222 | J48: ='Page 308'!J34-'Page 308'!J$6 -> -0.0856005697 | K48: ='Page 308'!K34-'Page 308'!K$6 -> 0.07587427628
A49: 2003-08-01 | B49: ='Page 308'!B35-'Page 308'!B$6 -> 0.1157466676 | C49: ='Page 308'!C35-'Page 308'!C$6 -> 0.03417355704 | D49: ='Page 308'!D35-'Page 308'!D$6 -> 0.04129850934 | E49: ='Page 308'!E35-'Page 308'!E$6 -> -0.06334239844 | F49: ='Page 308'!F35-'Page 308'!F$6 -> 0.01901640933 | G49: ='Page 308'!G35-'Page 308'!G$6 -> 0.0114426327 | H49: ='Page 308'!H35-'Page 308'!H$6 -> 0.03562944825 | I49: ='Page 308'!I35-'Page 308'!I$6 -> 0.02574246535 | J49: ='Page 308'!J35-'Page 308'!J$6 -> -0.03338650053 | K49: ='Page 308'!K35-'Page 308'!K$6 -> 0.01320630097
A50: 2003-09-02 | B50: ='Page 308'!B36-'Page 308'!B$6 -> 0.004519770383 | C50: ='Page 308'!C36-'Page 308'!C$6 -> -0.003486515573 | D50: ='Page 308'!D36-'Page 308'!D$6 -> -0.03882951099 | E50: ='Page 308'!E36-'Page 308'!E$6 -> -0.02840619654 | F50: ='Page 308'!F36-'Page 308'!F$6 -> 0.06667815339 | G50: ='Page 308'!G36-'Page 308'!G$6 -> -0.007975520659 | H50: ='Page 308'!H36-'Page 308'!H$6 -> -0.08621539445 | I50: ='Page 308'!I36-'Page 308'!I$6 -> -0.1120350255 | J50: ='Page 308'!J36-'Page 308'!J$6 -> 0.01873463082 | K50: ='Page 308'!K36-'Page 308'!K$6 -> -0.03836856837
A51: 2003-10-01 | B51: ='Page 308'!B37-'Page 308'!B$6 -> 0.05036632843 | C51: ='Page 308'!C37-'Page 308'!C$6 -> 0.155800455 | D51: ='Page 308'!D37-'Page 308'!D$6 -> 0.007697704598 | E51: ='Page 308'!E37-'Page 308'!E$6 -> 0.1392122299 | F51: ='Page 308'!F37-'Page 308'!F$6 -> 0.04918601161 | G51: ='Page 308'!G37-'Page 308'!G$6 -> 0.03472467251 | H51: ='Page 308'!H37-'Page 308'!H$6 -> 0.1899603485 | I51: ='Page 308'!I37-'Page 308'!I$6 -> 0.009513013074 | J51: ='Page 308'!J37-'Page 308'!J$6 -> -0.129058695 | K51: ='Page 308'!K37-'Page 308'!K$6 -> 0.1251701372
A52: 2003-11-03 | B52: ='Page 308'!B38-'Page 308'!B$6 -> 0.02321131629 | C52: ='Page 308'!C38-'Page 308'!C$6 -> -0.004444009334 | D52: ='Page 308'!D38-'Page 308'!D$6 -> -0.04948043383 | E52: ='Page 308'!E38-'Page 308'!E$6 -> -0.02890884794 | F52: ='Page 308'!F38-'Page 308'!F$6 -> 0.1010064702 | G52: ='Page 308'!G38-'Page 308'!G$6 -> -0.03470854115 | H52: ='Page 308'!H38-'Page 308'!H$6 -> 0.04499065075 | I52: ='Page 308'!I38-'Page 308'!I$6 -> 0.03407116317 | J52: ='Page 308'!J38-'Page 308'!J$6 -> -0.08054113745 | K52: ='Page 308'!K38-'Page 308'!K$6 -> -0.001068999546
A53: 2003-12-01 | B53: ='Page 308'!B39-'Page 308'!B$6 -> 0.2303324251 | C53: ='Page 308'!C39-'Page 308'!C$6 -> -0.02936220363 | D53: ='Page 308'!D39-'Page 308'!D$6 -> 0.1465210858 | E53: ='Page 308'!E39-'Page 308'!E$6 -> 0.05540943236 | F53: ='Page 308'!F39-'Page 308'!F$6 -> 0.04766914367 | G53: ='Page 308'!G39-'Page 308'!G$6 -> 0.04765904914 | H53: ='Page 308'!H39-'Page 308'!H$6 -> 0.1486552268 | I53: ='Page 308'!I39-'Page 308'!I$6 -> 0.1012129263 | J53: ='Page 308'!J39-'Page 308'!J$6 -> 0.1436544744 | K53: ='Page 308'!K39-'Page 308'!K$6 -> 0.0655516462
A54: 2004-01-02 | B54: ='Page 308'!B40-'Page 308'!B$6 -> -0.06332559434 | C54: ='Page 308'!C40-'Page 308'!C$6 -> 0.003334048938 | D54: ='Page 308'!D40-'Page 308'!D$6 -> -0.02015557827 | E54: ='Page 308'!E40-'Page 308'!E$6 -> 0.03195701884 | F54: ='Page 308'!F40-'Page 308'!F$6 -> 0.01061973322 | G54: ='Page 308'!G40-'Page 308'!G$6 -> 0.0639898444 | H54: ='Page 308'!H40-'Page 308'!H$6 -> -0.1042629534 | I54: ='Page 308'!I40-'Page 308'!I$6 -> -0.04454920745 | J54: ='Page 308'!J40-'Page 308'!J$6 -> 0.03527550648 | K54: ='Page 308'!K40-'Page 308'!K$6 -> -0.07984806982
A55: 2004-02-02 | B55: ='Page 308'!B41-'Page 308'!B$6 -> -0.01304643474 | C55: ='Page 308'!C41-'Page 308'!C$6 -> 0.02736233005 | D55: ='Page 308'!D41-'Page 308'!D$6 -> 0.05108148572 | E55: ='Page 308'!E41-'Page 308'!E$6 -> -0.04926615847 | F55: ='Page 308'!F41-'Page 308'!F$6 -> 0.02395888044 | G55: ='Page 308'!G41-'Page 308'!G$6 -> 0.02165733293 | H55: ='Page 308'!H41-'Page 308'!H$6 -> 0.09814800824 | I55: ='Page 308'!I41-'Page 308'!I$6 -> 0.03422033584 | J55: ='Page 308'!J41-'Page 308'!J$6 -> 0.01555595159 | K55: ='Page 308'!K41-'Page 308'!K$6 -> -0.016570747
A56: 2004-03-01 | B56: ='Page 308'!B42-'Page 308'!B$6 -> -0.009467809127 | C56: ='Page 308'!C42-'Page 308'!C$6 -> 0.03425590135 | D56: ='Page 308'!D42-'Page 308'!D$6 -> -0.04690333465 | E56: ='Page 308'!E42-'Page 308'!E$6 -> 0.006071686059 | F56: ='Page 308'!F42-'Page 308'!F$6 -> -0.05442526611 | G56: ='Page 308'!G42-'Page 308'!G$6 -> -0.03610703911 | H56: ='Page 308'!H42-'Page 308'!H$6 -> -0.07535771427 | I56: ='Page 308'!I42-'Page 308'!I$6 -> -0.06594495724 | J56: ='Page 308'!J42-'Page 308'!J$6 -> -0.07092834278 | K56: ='Page 308'!K42-'Page 308'!K$6 -> 0.04062473938
A57: 2004-04-01 | B57: ='Page 308'!B43-'Page 308'!B$6 -> 0.01230570922 | C57: ='Page 308'!C43-'Page 308'!C$6 -> -0.0559754009 | D57: ='Page 308'!D43-'Page 308'!D$6 -> -0.04756745148 | E57: ='Page 308'!E43-'Page 308'!E$6 -> -0.1505485134 | F57: ='Page 308'!F43-'Page 308'!F$6 -> 0.006357126453 | G57: ='Page 308'!G43-'Page 308'!G$6 -> -0.06571043983 | H57: ='Page 308'!H43-'Page 308'!H$6 -> -0.1185453038 | I57: ='Page 308'!I43-'Page 308'!I$6 -> 0.01690721127 | J57: ='Page 308'!J43-'Page 308'!J$6 -> 0.0670013677 | K57: ='Page 308'!K43-'Page 308'!K$6 -> 0.04729994417
A58: 2004-05-03 | B58: ='Page 308'!B44-'Page 308'!B$6 -> -0.02388167373 | C58: ='Page 308'!C44-'Page 308'!C$6 -> 0.02437144608 | D58: ='Page 308'!D44-'Page 308'!D$6 -> 0.04491907169 | E58: ='Page 308'!E44-'Page 308'!E$6 -> 0.0720469281 | F58: ='Page 308'!F44-'Page 308'!F$6 -> -0.1542530152 | G58: ='Page 308'!G44-'Page 308'!G$6 -> 0.02678228881 | H58: ='Page 308'!H44-'Page 308'!H$6 -> 0.02433767475 | I58: ='Page 308'!I44-'Page 308'!I$6 -> 0.01390071139 | J58: ='Page 308'!J44-'Page 308'!J$6 -> 0.01186529341 | K58: ='Page 308'!K44-'Page 308'!K$6 -> -0.02557439365
A59: 2004-06-01 | B59: ='Page 308'!B45-'Page 308'!B$6 -> 0.03491081892 | C59: ='Page 308'!C45-'Page 308'!C$6 -> -0.01392961468 | D59: ='Page 308'!D45-'Page 308'!D$6 -> 0.06329248071 | E59: ='Page 308'!E45-'Page 308'!E$6 -> -0.005910013139 | F59: ='Page 308'!F45-'Page 308'!F$6 -> 0.04590804911 | G59: ='Page 308'!G45-'Page 308'!G$6 -> 0.007018273715 | H59: ='Page 308'!H45-'Page 308'!H$6 -> 0.05553896069 | I59: ='Page 308'!I45-'Page 308'!I$6 -> 0.02750212323 | J59: ='Page 308'!J45-'Page 308'!J$6 -> 0.0173950621 | K59: ='Page 308'!K45-'Page 308'!K$6 -> 0.0549272098
A60: 2004-07-01 | B60: ='Page 308'!B46-'Page 308'!B$6 -> -0.06832288787 | C60: ='Page 308'!C46-'Page 308'!C$6 -> -0.03910160906 | D60: ='Page 308'!D46-'Page 308'!D$6 -> -0.03382288197 | E60: ='Page 308'!E46-'Page 308'!E$6 -> -0.04879649183 | F60: ='Page 308'!F46-'Page 308'!F$6 -> -0.06098274911 | G60: ='Page 308'!G46-'Page 308'!G$6 -> -0.03039496783 | H60: ='Page 308'!H46-'Page 308'!H$6 -> -0.02891806417 | I60: ='Page 308'!I46-'Page 308'!I$6 -> -0.03577739741 | J60: ='Page 308'!J46-'Page 308'!J$6 -> -0.04065640991 | K60: ='Page 308'!K46-'Page 308'!K$6 -> -0.09626407134
A61: 2004-08-02 | B61: ='Page 308'!B47-'Page 308'!B$6 -> -0.02249818431 | C61: ='Page 308'!C47-'Page 308'!C$6 -> 0.08705166706 | D61: ='Page 308'!D47-'Page 308'!D$6 -> -0.07190779494 | E61: ='Page 308'!E47-'Page 308'!E$6 -> -0.1218607079 | F61: ='Page 308'!F47-'Page 308'!F$6 -> 0.01728917231 | G61: ='Page 308'!G47-'Page 308'!G$6 -> -0.01286600448 | H61: ='Page 308'!H47-'Page 308'!H$6 -> 0.01728353894 | I61: ='Page 308'!I47-'Page 308'!I$6 -> -0.006288006495 | J61: ='Page 308'!J47-'Page 308'!J$6 -> -0.002996943316 | K61: ='Page 308'!K47-'Page 308'!K$6 -> -0.002931507129
A62: 2004-09-01 | B62: ='Page 308'!B48-'Page 308'!B$6 -> 0.03660105976 | C62: ='Page 308'!C48-'Page 308'!C$6 -> 0.07366760231 | D62: ='Page 308'!D48-'Page 308'!D$6 -> 0.00912293928 | E62: ='Page 308'!E48-'Page 308'!E$6 -> 0.04789704812 | F62: ='Page 308'!F48-'Page 308'!F$6 -> -0.0356135883 | G62: ='Page 308'!G48-'Page 308'!G$6 -> 0.02013540247 | H62: ='Page 308'!H48-'Page 308'!H$6 -> 0.03856049222 | I62: ='Page 308'!I48-'Page 308'!I$6 -> 0.01240996817 | J62: ='Page 308'!J48-'Page 308'!J$6 -> -0.295365071 | K62: ='Page 308'!K48-'Page 308'!K$6 -> -0.03690993107
A63: 2004-10-01 | B63: ='Page 308'!B49-'Page 308'!B$6 -> -0.0883928591 | C63: ='Page 308'!C49-'Page 308'!C$6 -> 0.05091730036 | D63: ='Page 308'!D49-'Page 308'!D$6 -> -0.04861447735 | E63: ='Page 308'!E49-'Page 308'!E$6 -> -0.007913945978 | F63: ='Page 308'!F49-'Page 308'!F$6 -> 0.01899257742 | G63: ='Page 308'!G49-'Page 308'!G$6 -> 0.02482373361 | H63: ='Page 308'!H49-'Page 308'!H$6 -> -0.03111914201 | I63: ='Page 308'!I49-'Page 308'!I$6 -> 0.001439758866 | J63: ='Page 308'!J49-'Page 308'!J$6 -> -0.04702352319 | K63: ='Page 308'!K49-'Page 308'!K$6 -> -0.03793618194
A64: 2004-11-01 | B64: ='Page 308'!B50-'Page 308'!B$6 -> 0.02291848662 | C64: ='Page 308'!C50-'Page 308'!C$6 -> 0.02211279251 | D64: ='Page 308'!D50-'Page 308'!D$6 -> 0.08080019711 | E64: ='Page 308'!E50-'Page 308'!E$6 -> 0.0668381422 | F64: ='Page 308'!F50-'Page 308'!F$6 -> 0.1603001329 | G64: ='Page 308'!G50-'Page 308'!G$6 -> 0.04032620543 | H64: ='Page 308'!H50-'Page 308'!H$6 -> 0.05094359084 | I64: ='Page 308'!I50-'Page 308'!I$6 -> 0.06311979866 | J64: ='Page 308'!J50-'Page 308'!J$6 -> -0.1055398193 | K64: ='Page 308'!K50-'Page 308'!K$6 -> 0.02258456519
A65: 2004-12-01 | B65: ='Page 308'!B51-'Page 308'!B$6 -> 0.04605677378 | C65: ='Page 308'!C51-'Page 308'!C$6 -> 0.02727869709 | D65: ='Page 308'!D51-'Page 308'!D$6 -> 0.0109621445 | E65: ='Page 308'!E51-'Page 308'!E$6 -> 0.04781318045 | F65: ='Page 308'!F51-'Page 308'!F$6 -> 0.06218742605 | G65: ='Page 308'!G51-'Page 308'!G$6 -> 0.003545352076 | H65: ='Page 308'!H51-'Page 308'!H$6 -> -0.07677256139 | I65: ='Page 308'!I51-'Page 308'!I$6 -> 0.07880600974 | J65: ='Page 308'!J51-'Page 308'!J$6 -> 0.1561659874 | K65: ='Page 308'!K51-'Page 308'!K$6 -> 0.02321980898
A66: 2005-01-03 | B66: ='Page 308'!B52-'Page 308'!B$6 -> -0.0758873903 | C66: ='Page 308'!C52-'Page 308'!C$6 -> -0.031467892 | D66: ='Page 308'!D52-'Page 308'!D$6 -> -0.07075294117 | E66: ='Page 308'!E52-'Page 308'!E$6 -> -0.07080863498 | F66: ='Page 308'!F52-'Page 308'!F$6 -> 0.03311000401 | G66: ='Page 308'!G52-'Page 308'!G$6 -> -0.0611844963 | H66: ='Page 308'!H52-'Page 308'!H$6 -> -0.06050422125 | I66: ='Page 308'!I52-'Page 308'!I$6 -> -0.03118315424 | J66: ='Page 308'!J52-'Page 308'!J$6 -> -0.1304498448 | K66: ='Page 308'!K52-'Page 308'!K$6 -> 0.02010182409
A67: 2005-02-01 | B67: ='Page 308'!B53-'Page 308'!B$6 -> -0.01004744271 | C67: ='Page 308'!C53-'Page 308'!C$6 -> -0.02638896932 | D67: ='Page 308'!D53-'Page 308'!D$6 -> -0.04093225249 | E67: ='Page 308'!E53-'Page 308'!E$6 -> 0.05701840441 | F67: ='Page 308'!F53-'Page 308'!F$6 -> 0.01738309659 | G67: ='Page 308'!G53-'Page 308'!G$6 -> 0.006815516223 | H67: ='Page 308'!H53-'Page 308'!H$6 -> 0.0916361133 | I67: ='Page 308'!I53-'Page 308'!I$6 -> 0.1206784039 | J67: ='Page 308'!J53-'Page 308'!J$6 -> 0.1280211561 | K67: ='Page 308'!K53-'Page 308'!K$6 -> -0.007480990523
A68: 2005-03-01 | B68: ='Page 308'!B54-'Page 308'!B$6 -> -0.1841762173 | C68: ='Page 308'!C54-'Page 308'!C$6 -> -0.03921097948 | D68: ='Page 308'!D54-'Page 308'!D$6 -> -0.01571011202 | E68: ='Page 308'!E54-'Page 308'!E$6 -> 0.05408227196 | F68: ='Page 308'!F54-'Page 308'!F$6 -> -0.003364868945 | G68: ='Page 308'!G54-'Page 308'!G$6 -> -0.05856313212 | H68: ='Page 308'!H54-'Page 308'!H$6 -> -0.05368337441 | I68: ='Page 308'!I54-'Page 308'!I$6 -> -0.03982498339 | J68: ='Page 308'!J54-'Page 308'!J$6 -> 0.03821340256 | K68: ='Page 308'!K54-'Page 308'!K$6 -> 0.01313829668
A69: 2005-04-01 | B69: ='Page 308'!B55-'Page 308'!B$6 -> -0.08814690395 | C69: ='Page 308'!C55-'Page 308'!C$6 -> -0.07418528446 | D69: ='Page 308'!D55-'Page 308'!D$6 -> -0.07079161437 | E69: ='Page 308'!E55-'Page 308'!E$6 -> -0.07238378422 | F69: ='Page 308'!F55-'Page 308'!F$6 -> -0.01681252754 | G69: ='Page 308'!G55-'Page 308'!G$6 -> 0.01724520207 | H69: ='Page 308'!H55-'Page 308'!H$6 -> -0.04413707143 | I69: ='Page 308'!I55-'Page 308'!I$6 -> -0.08438125043 | J69: ='Page 308'!J55-'Page 308'!J$6 -> 0.05169887968 | K69: ='Page 308'!K55-'Page 308'!K$6 -> -0.1212803748
A70: 2005-05-02 | B70: ='Page 308'!B56-'Page 308'!B$6 -> 0.1922609541 | C70: ='Page 308'!C56-'Page 308'!C$6 -> 0.1105352203 | D70: ='Page 308'!D56-'Page 308'!D$6 -> -0.0553921192 | E70: ='Page 308'!E56-'Page 308'!E$6 -> 0.09240571477 | F70: ='Page 308'!F56-'Page 308'!F$6 -> 0.02194870742 | G70: ='Page 308'!G56-'Page 308'!G$6 -> 0.01340588751 | H70: ='Page 308'!H56-'Page 308'!H$6 -> -0.06167428553 | I70: ='Page 308'!I56-'Page 308'!I$6 -> -0.005176628542 | J70: ='Page 308'!J56-'Page 308'!J$6 -> -0.03868760116 | K70: ='Page 308'!K56-'Page 308'!K$6 -> 0.0002907221837
A71: 2005-06-01 | B71: ='Page 308'!B57-'Page 308'!B$6 -> 0.08413186911 | C71: ='Page 308'!C57-'Page 308'!C$6 -> -0.004898044425 | D71: ='Page 308'!D57-'Page 308'!D$6 -> -0.06469981571 | E71: ='Page 308'!E57-'Page 308'!E$6 -> 0.04364829903 | F71: ='Page 308'!F57-'Page 308'!F$6 -> -0.03775527475 | G71: ='Page 308'!G57-'Page 308'!G$6 -> -0.01769976625 | H71: ='Page 308'!H57-'Page 308'!H$6 -> -0.03463304411 | I71: ='Page 308'!I57-'Page 308'!I$6 -> -0.07851729845 | J71: ='Page 308'!J57-'Page 308'!J$6 -> -0.03457689137 | K71: ='Page 308'!K57-'Page 308'!K$6 -> -0.0658807134
A72: 2005-07-01 | B72: ='Page 308'!B58-'Page 308'!B$6 -> 0.08834672908 | C72: ='Page 308'!C58-'Page 308'!C$6 -> 0.1158366257 | D72: ='Page 308'!D58-'Page 308'!D$6 -> 0.04416695475 | E72: ='Page 308'!E58-'Page 308'!E$6 -> 0.04321273657 | F72: ='Page 308'!F58-'Page 308'!F$6 -> 0.02427206454 | G72: ='Page 308'!G58-'Page 308'!G$6 -> 0.02450572506 | H72: ='Page 308'!H58-'Page 308'!H$6 -> 0.07267046796 | I72: ='Page 308'!I58-'Page 308'!I$6 -> -0.008024230009 | J72: ='Page 308'!J58-'Page 308'!J$6 -> 0.01400960668 | K72: ='Page 308'!K58-'Page 308'!K$6 -> 0.02919488001
A73: 2005-08-01 | B73: ='Page 308'!B59-'Page 308'!B$6 -> -0.05121029096 | C73: ='Page 308'!C59-'Page 308'!C$6 -> -0.06971216109 | D73: ='Page 308'!D59-'Page 308'!D$6 -> -0.01636180292 | E73: ='Page 308'!E59-'Page 308'!E$6 -> 0.1171574981 | F73: ='Page 308'!F59-'Page 308'!F$6 -> 0.0436969395 | G73: ='Page 308'!G59-'Page 308'!G$6 -> -0.003852526502 | H73: ='Page 308'!H59-'Page 308'!H$6 -> -0.03904796797 | I73: ='Page 308'!I59-'Page 308'!I$6 -> -0.06725846248 | J73: ='Page 308'!J59-'Page 308'!J$6 -> -0.07652290379 | K73: ='Page 308'!K59-'Page 308'!K$6 -> -0.05425436561
A74: 2005-09-01 | B74: ='Page 308'!B60-'Page 308'!B$6 -> -0.1018475458 | C74: ='Page 308'!C60-'Page 308'!C$6 -> -0.05171452491 | D74: ='Page 308'!D60-'Page 308'!D$6 -> -0.0353265051 | E74: ='Page 308'!E60-'Page 308'!E$6 -> 0.0501717525 | F74: ='Page 308'!F60-'Page 308'!F$6 -> 0.04215656446 | G74: ='Page 308'!G60-'Page 308'!G$6 -> 0.03076913906 | H74: ='Page 308'!H60-'Page 308'!H$6 -> -0.09066679864 | I74: ='Page 308'!I60-'Page 308'!I$6 -> -0.01045924045 | J74: ='Page 308'!J60-'Page 308'!J$6 -> -0.03110388503 | K74: ='Page 308'!K60-'Page 308'!K$6 -> 0.02306540584
A75: 2005-10-03 | B75: ='Page 308'!B61-'Page 308'!B$6 -> -0.10223189 | C75: ='Page 308'!C61-'Page 308'!C$6 -> 0.07716895398 | D75: ='Page 308'!D61-'Page 308'!D$6 -> -0.02138643303 | E75: ='Page 308'!E61-'Page 308'!E$6 -> -0.04350018446 | F75: ='Page 308'!F61-'Page 308'!F$6 -> 0.007400889138 | G75: ='Page 308'!G61-'Page 308'!G$6 -> -0.01607689511 | H75: ='Page 308'!H61-'Page 308'!H$6 -> -0.003615715376 | I75: ='Page 308'!I61-'Page 308'!I$6 -> 0.06218172255 | J75: ='Page 308'!J61-'Page 308'!J$6 -> 0.04178090997 | K75: ='Page 308'!K61-'Page 308'!K$6 -> 0.0275290551
A76: 2005-11-01 | B76: ='Page 308'!B62-'Page 308'!B$6 -> -0.1967167857 | C76: ='Page 308'!C62-'Page 308'!C$6 -> 0.02413498227 | D76: ='Page 308'!D62-'Page 308'!D$6 -> 0.08507032261 | E76: ='Page 308'!E62-'Page 308'!E$6 -> 0.05360454819 | F76: ='Page 308'!F62-'Page 308'!F$6 -> -0.04127016117 | G76: ='Page 308'!G62-'Page 308'!G$6 -> 0.02452848175 | H76: ='Page 308'!H62-'Page 308'!H$6 -> 0.1288347257 | I76: ='Page 308'!I62-'Page 308'!I$6 -> 0.03359415224 | J76: ='Page 308'!J62-'Page 308'!J$6 -> 0.05947331835 | K76: ='Page 308'!K62-'Page 308'!K$6 -> 0.03021967184
A77: 2005-12-01 | B77: ='Page 308'!B63-'Page 308'!B$6 -> -0.1115593281 | C77: ='Page 308'!C63-'Page 308'!C$6 -> -0.02769607338 | D77: ='Page 308'!D63-'Page 308'!D$6 -> 0.06332780086 | E77: ='Page 308'!E63-'Page 308'!E$6 -> -0.0361467665 | F77: ='Page 308'!F63-'Page 308'!F$6 -> 0.02599382794 | G77: ='Page 308'!G63-'Page 308'!G$6 -> -0.007454197176 | H77: ='Page 308'!H63-'Page 308'!H$6 -> 0.07764656543 | I77: ='Page 308'!I63-'Page 308'!I$6 -> -0.006258303931 | J77: ='Page 308'!J63-'Page 308'!J$6 -> 0.08409208433 | K77: ='Page 308'!K63-'Page 308'!K$6 -> -0.02006466828
A78: 2006-01-03 | B78: ='Page 308'!B64-'Page 308'!B$6 -> 0.2233190539 | C78: ='Page 308'!C64-'Page 308'!C$6 -> 0.005653662677 | D78: ='Page 308'!D64-'Page 308'!D$6 -> -0.03029168409 | E78: ='Page 308'!E64-'Page 308'!E$6 -> 0.08243551203 | F78: ='Page 308'!F64-'Page 308'!F$6 -> -0.04305986021 | G78: ='Page 308'!G64-'Page 308'!G$6 -> 0.01300922778 | H78: ='Page 308'!H64-'Page 308'!H$6 -> 0.06495539235 | I78: ='Page 308'!I64-'Page 308'!I$6 -> -0.08233073973 | J78: ='Page 308'!J64-'Page 308'!J$6 -> 0.08670186227 | K78: ='Page 308'!K64-'Page 308'!K$6 -> -0.07066273016
A79: 2006-02-01 | B79: ='Page 308'!B65-'Page 308'!B$6 -> -0.1495993034 | C79: ='Page 308'!C65-'Page 308'!C$6 -> 0.04266484492 | D79: ='Page 308'!D65-'Page 308'!D$6 -> 0.01118348455 | E79: ='Page 308'!E65-'Page 308'!E$6 -> 0.04791181317 | F79: ='Page 308'!F65-'Page 308'!F$6 -> -0.01675394837 | G79: ='Page 308'!G65-'Page 308'!G$6 -> 0.01872458117 | H79: ='Page 308'!H65-'Page 308'!H$6 -> -0.06510801932 | I79: ='Page 308'!I65-'Page 308'!I$6 -> 0.03619730624 | J79: ='Page 308'!J65-'Page 308'!J$6 -> 0.01613846946 | K79: ='Page 308'!K65-'Page 308'!K$6 -> 0.01029909333
A80: 2006-03-01 | B80: ='Page 308'!B66-'Page 308'!B$6 -> 0.05489215455 | C80: ='Page 308'!C66-'Page 308'!C$6 -> 0.01105887579 | D80: ='Page 308'!D66-'Page 308'!D$6 -> 0.05299872888 | E80: ='Page 308'!E66-'Page 308'!E$6 -> 0.002200257699 | F80: ='Page 308'!F66-'Page 308'!F$6 -> -0.01436190083 | G80: ='Page 308'!G66-'Page 308'!G$6 -> -0.03328604429 | H80: ='Page 308'!H66-'Page 308'!H$6 -> 0.04340713114 | I80: ='Page 308'!I66-'Page 308'!I$6 -> 0.04765167395 | J80: ='Page 308'!J66-'Page 308'!J$6 -> 0.02699703061 | K80: ='Page 308'!K66-'Page 308'!K$6 -> 0.02067091237
A81: 2006-04-03 | B81: ='Page 308'!B67-'Page 308'!B$6 -> 0.08195960052 | C81: ='Page 308'!C67-'Page 308'!C$6 -> -0.05373463151 | D81: ='Page 308'!D67-'Page 308'!D$6 -> 0.04972073878 | E81: ='Page 308'!E67-'Page 308'!E$6 -> -0.0161869579 | F81: ='Page 308'!F67-'Page 308'!F$6 -> 0.02136754353 | G81: ='Page 308'!G67-'Page 308'!G$6 -> 0.01774508226 | H81: ='Page 308'!H67-'Page 308'!H$6 -> 0.1017939139 | I81: ='Page 308'!I67-'Page 308'!I$6 -> 0.04340244819 | J81: ='Page 308'!J67-'Page 308'!J$6 -> -0.01771456348 | K81: ='Page 308'!K67-'Page 308'!K$6 -> 0.1135876203
A82: 2006-05-01 | B82: ='Page 308'!B68-'Page 308'!B$6 -> 0.1813735029 | C82: ='Page 308'!C68-'Page 308'!C$6 -> -0.04240389972 | D82: ='Page 308'!D68-'Page 308'!D$6 -> -0.06081050766 | E82: ='Page 308'!E68-'Page 308'!E$6 -> -0.005777922658 | F82: ='Page 308'!F68-'Page 308'!F$6 -> -0.02177815792 | G82: ='Page 308'!G68-'Page 308'!G$6 -> 0.001933971124 | H82: ='Page 308'!H68-'Page 308'!H$6 -> -0.05666677689 | I82: ='Page 308'!I68-'Page 308'!I$6 -> -0.02834429301 | J82: ='Page 308'!J68-'Page 308'!J$6 -> -0.01646340454 | K82: ='Page 308'!K68-'Page 308'!K$6 -> -0.0231359592
A83: 2006-06-01 | B83: ='Page 308'!B69-'Page 308'!B$6 -> 0.1096657115 | C83: ='Page 308'!C69-'Page 308'!C$6 -> -0.05521526421 | D83: ='Page 308'!D69-'Page 308'!D$6 -> -0.05127169127 | E83: ='Page 308'!E69-'Page 308'!E$6 -> -0.022066577 | F83: ='Page 308'!F69-'Page 308'!F$6 -> 0.01541817241 | G83: ='Page 308'!G69-'Page 308'!G$6 -> -0.02942961839 | H83: ='Page 308'!H69-'Page 308'!H$6 -> 0.02178004752 | I83: ='Page 308'!I69-'Page 308'!I$6 -> -0.02240052902 | J83: ='Page 308'!J69-'Page 308'!J$6 -> 0.09565759182 | K83: ='Page 308'!K69-'Page 308'!K$6 -> -0.04263634708

Sheet Page 312
A1: ="SUPER DUPER BENCHMARK PORTFOLIO—NAIVE OPTIMIZATION WITH"&CHAR(10)&"SHRUNK VARIANCE-COVARIANCE MATRIX" -> SUPER DUPER BENCHMARK PORTFOLIO—NAIVE OPTIMIZATION WITH SHRUNK VARIANCE-COVARIANCE MATRIX
B2: General Motors GM | C2: Home Depot HD | D2: International paper IP | E2: Hewlett-Packard HPQ | F2: Altria MO | G2: American Express AXP | H2: Alcoa Aluminum AA | I2: DuPont DD | J2: Merck MRK | K2: MMM
A3: Market cap (billion $) | B3: 16.85 | C3: 73.98 | D3: 15.92 | E3: 88.37 | F3: 153.33 | G3: 65.66 | H3: 28.16 | I3: 38.32 | J3: 79.51 | K3: 60.9
A4: Benchmark proportion | B4: 0.02713365539 | C4: 0.1191304348 | D4: 0.02563607085 | E4: 0.1423027375 | F4: 0.2469082126 | G4: 0.1057326892 | H4: 0.04534621578 | I4: 0.06170692432 | J4: 0.1280354267 | K4: 0.09806763285
A6: Variance-covariance matrix of excess returns
A7: Shrinkage factor, l | B7: 0.3 | C7: <-- Weight on sample var-cov matrix
A9: ="The matrix below is a weighted combination of the sample variance-covariance matrix and a pure diagonal matrix of only variances. "&ggetformula(B11) -> The matrix below is a weighted combination of the sample variance-covariance matrix and a pure diagonal matrix of only variances. {=B7*B39:K48+(1-B7)*B52:K61}
B10: GM | C10: HD | D10: IP | E10: HPQ | F10: MO | G10: AXP | H10: AA | I10: DD | J10: MRK | K10: MMM | M10: Mean return
A11: GM | B11: =B7*B39:K48+(1-B7)*B52:K61 -> 0.01182788729 | C11: 0.0009185089916 | D11: 0.000709459428 | E11: 0.00125619868 | F11: 0.0004091514362 | G11: 0.0009893160331 | H11: 0.001391026311 | I11: 0.0005516075476 | J11: 0.0002941940521 | K11: 0.0004148122081 | M11: ='Page 310'!M8:M17 -> -0.00873385163
A12: HD | B12: 0.0009185089916 | C12: 0.007191553885 | D12: 0.000561610684 | E12: 0.001280139921 | F12: 0.0006729904925 | G12: 0.0009999057995 | H12: 0.0013755214 | I12: 0.0006114280259 | J12: 5.385621019e-05 | K12: 0.0005396186445 | M12: -0.003912585257
A13: IP | B13: 0.000709459428 | C13: 0.000561610684 | D13: 0.003951215775 | E13: 0.0009411516224 | F13: 2.627895904e-05 | G13: 0.0007057734469 | H13: 0.001303244134 | I13: 0.0006289158882 | J13: 0.000362214033 | K13: 0.0004816068343 | M13: 0.0005668052524
A14: HPQ | B14: 0.00125619868 | C14: 0.001280139921 | D14: 0.0009411516224 | E14: 0.01187218946 | F14: 0.0007699375925 | G14: 0.001476364028 | H14: 0.001815322868 | I14: 0.0009941417657 | J14: 0.000593126086 | K14: 0.0006689878509 | M14: 0.002994559178
A15: MO | B15: 0.0004091514362 | C15: 0.0006729904925 | D15: 2.627895904e-05 | E15: 0.0007699375925 | F15: 0.007711607803 | G15: 0.0004849527013 | H15: 0.0005438514265 | I15: 0.0002680031552 | J15: 0.0002046267079 | K15: 0.0002419297133 | M15: 0.01065766522
A16: AXP | B16: 0.0009893160331 | C16: 0.0009999057995 | D16: 0.0007057734469 | E16: 0.001476364028 | F16: 0.0004849527013 | G16: 0.004204640222 | H16: 0.001129716894 | I16: 0.0005832814964 | J16: 0.0003223836257 | K16: 0.0004124827126 | M16: 0.008235294657
A17: AA | B17: 0.001391026311 | C17: 0.0013755214 | D17: 0.001303244134 | E17: 0.001815322868 | F17: 0.0005438514265 | G17: 0.001129716894 | H17: 0.009262545394 | I17: 0.00122376794 | J17: 0.0005384463478 | K17: 0.0007293906304 | M17: -0.001804352093
A18: DD | B18: 0.0005516075476 | C18: 0.0006114280259 | D18: 0.0006289158882 | E18: 0.0009941417657 | F18: 0.0002680031552 | G18: 0.0005832814964 | H18: 0.00122376794 | I18: 0.003814634131 | J18: 0.0004952050373 | K18: 0.000579826761 | M18: 0.0002909870229
A19: MRK | B19: 0.0002941940521 | C19: 5.385621019e-05 | D19: 0.000362214033 | E19: 0.000593126086 | F19: 0.0002046267079 | G19: 0.0003223836257 | H19: 0.0005384463478 | I19: 0.0004952050373 | J19: 0.006610491527 | K19: 0.0001468761948 | M19: -0.005522032386
A20: MMM | B20: 0.0004148122081 | C20: 0.0005396186445 | D20: 0.0004816068343 | E20: 0.0006689878509 | F20: 0.0002419297133 | G20: 0.0004124827126 | H20: 0.0007293906304 | I20: 0.000579826761 | J20: 0.0001468761948 | K20: 0.003116366571 | M20: 0.007480990523
A22: Current T-bill rate | B22: =4.83%/12 -> 0.004025 | C22: =getformula(B22) -> <-- =4.83%/12
A24: "Optimal" portfolio
A25: GM | B25: =MMULT(MINVERSE(B11:K20),M11:M20-B22)/SUM(MMULT(MINVERSE(B11:K20),M11:M20-B22)) -> 0.8429674431 | C25: =getformula(B25) -> <-- {=MMULT(MINVERSE(B11:K20),M11:M20-B22)/SUM(MMULT(MINVERSE(B11:K20),M11:M20-B22))}
A26: HD | B26: 0.9639983856
A27: IP | B27: 0.5023648241
A28: HPQ | B28: -0.03558377508
A29: MO | B29: -0.7613698242
A30: AXP | B30: -1.345893511
A31: AA | B31: 0.3251729667
A32: DD | B32: 0.625491577
A33: MRK | B33: 1.121251969
A34: MMM | B34: -1.238400055
A35: Sum of proportions | B35: =SUM(B25:B34) -> 1 | C35: =getformula(B35) -> <-- =SUM(B25:B34)
A37: Variance-covariance matrix of excess returns
B38: GM | C38: HD | D38: IP | E38: HPQ | F38: MO | G38: AXP | H38: AA | I38: DD | J38: MRK | K38: MMM
A39: GM | B39: ='Page 310'!B8:K17 -> 0.01182788729 | C39: 0.003061696639 | D39: 0.00236486476 | E39: 0.004187328935 | F39: 0.001363838121 | G39: 0.00329772011 | H39: 0.00463675437 | I39: 0.001838691825 | J39: 0.0009806468402 | K39: 0.00138270736
A40: HD | B40: 0.003061696639 | C40: 0.007191553885 | D40: 0.001872035613 | E40: 0.004267133071 | F40: 0.002243301642 | G40: 0.003333019332 | H40: 0.004585071332 | I40: 0.00203809342 | J40: 0.0001795207006 | K40: 0.001798728815
A41: IP | B41: 0.00236486476 | C41: 0.001872035613 | D41: 0.003951215775 | E41: 0.003137172075 | F41: 8.759653012e-05 | G41: 0.002352578156 | H41: 0.004344147113 | I41: 0.002096386294 | J41: 0.00120738011 | K41: 0.001605356114
A42: HPQ | B42: 0.004187328935 | C42: 0.004267133071 | D42: 0.003137172075 | E42: 0.01187218946 | F42: 0.002566458642 | G42: 0.004921213425 | H42: 0.006051076227 | I42: 0.003313805886 | J42: 0.001977086953 | K42: 0.002229959503
A43: MO | B43: 0.001363838121 | C43: 0.002243301642 | D43: 8.759653012e-05 | E43: 0.002566458642 | F43: 0.007711607803 | G43: 0.001616509004 | H43: 0.001812838088 | I43: 0.0008933438506 | J43: 0.0006820890265 | K43: 0.0008064323777
A44: AXP | B44: 0.00329772011 | C44: 0.003333019332 | D44: 0.002352578156 | E44: 0.004921213425 | F44: 0.001616509004 | G44: 0.004204640222 | H44: 0.003765722978 | I44: 0.001944271655 | J44: 0.001074612086 | K44: 0.001374942375
A45: AA | B45: 0.00463675437 | C45: 0.004585071332 | D45: 0.004344147113 | E45: 0.006051076227 | F45: 0.001812838088 | G45: 0.003765722978 | H45: 0.009262545394 | I45: 0.004079226466 | J45: 0.001794821159 | K45: 0.002431302101
A46: DD | B46: 0.001838691825 | C46: 0.00203809342 | D46: 0.002096386294 | E46: 0.003313805886 | F46: 0.0008933438506 | G46: 0.001944271655 | H46: 0.004079226466 | I46: 0.003814634131 | J46: 0.001650683458 | K46: 0.00193275587
A47: MRK | B47: 0.0009806468402 | C47: 0.0001795207006 | D47: 0.00120738011 | E47: 0.001977086953 | F47: 0.0006820890265 | G47: 0.001074612086 | H47: 0.001794821159 | I47: 0.001650683458 | J47: 0.006610491527 | K47: 0.0004895873158
A48: MMM | B48: 0.00138270736 | C48: 0.001798728815 | D48: 0.001605356114 | E48: 0.002229959503 | F48: 0.0008064323777 | G48: 0.001374942375 | H48: 0.002431302101 | I48: 0.00193275587 | J48: 0.0004895873158 | K48: 0.003116366571
A50: ="Pure diagonal matrix. The array formula in the cells below produces a matrix with only variances on the diagonal and zero elsewhere. "&ggetformula(B52) -> Pure diagonal matrix. The array formula in the cells below produces a matrix with only variances on the diagonal and zero elsewhere. {=IF(B51:K51=A52:A61,B39:K48,0)}
B51: GM | C51: HD | D51: IP | E51: HPQ | F51: MO | G51: AXP | H51: AA | I51: DD | J51: MRK | K51: MMM
A52: GM | B52: =IF(B51:K51=A52:A61,B39:K48,0) -> 0.01182788729 | C52: 0 | D52: 0 | E52: 0 | F52: 0 | G52: 0 | H52: 0 | I52: 0 | J52: 0 | K52: 0
A53: HD | B53: 0 | C53: 0.007191553885 | D53: 0 | E53: 0 | F53: 0 | G53: 0 | H53: 0 | I53: 0 | J53: 0 | K53: 0
A54: IP | B54: 0 | C54: 0 | D54: 0.003951215775 | E54: 0 | F54: 0 | G54: 0 | H54: 0 | I54: 0 | J54: 0 | K54: 0
A55: HPQ | B55: 0 | C55: 0 | D55: 0 | E55: 0.01187218946 | F55: 0 | G55: 0 | H55: 0 | I55: 0 | J55: 0 | K55: 0
A56: MO | B56: 0 | C56: 0 | D56: 0 | E56: 0 | F56: 0.007711607803 | G56: 0 | H56: 0 | I56: 0 | J56: 0 | K56: 0
A57: AXP | B57: 0 | C57: 0 | D57: 0 | E57: 0 | F57: 0 | G57: 0.004204640222 | H57: 0 | I57: 0 | J57: 0 | K57: 0
A58: AA | B58: 0 | C58: 0 | D58: 0 | E58: 0 | F58: 0 | G58: 0 | H58: 0.009262545394 | I58: 0 | J58: 0 | K58: 0
A59: DD | B59: 0 | C59: 0 | D59: 0 | E59: 0 | F59: 0 | G59: 0 | H59: 0 | I59: 0.003814634131 | J59: 0 | K59: 0
A60: MRK | B60: 0 | C60: 0 | D60: 0 | E60: 0 | F60: 0 | G60: 0 | H60: 0 | I60: 0 | J60: 0.006610491527 | K60: 0
A61: MMM | B61: 0 | C61: 0 | D61: 0 | E61: 0 | F61: 0 | G61: 0 | H61: 0 | I61: 0 | J61: 0 | K61: 0.003116366571

Sheet Page 314
A1: SUPER DUPER BENCHMARK PORTFOLIO—WHAT DOES THE MARKET THINK? No normalizing factor
A2: Anticipated benchmark return | B2: =12%/12 -> 0.01 | C2: =getformula(B2) -> <-- =12%/12
A3: Current T-bill rate | B3: ='Page 310'!B19 -> 0.004025
B5: General Motors GM | C5: Home Depot HD | D5: International Paper IP | E5: Hewlett-Packard HPQ | F5: Altria MO | G5: American Express AXP | H5: Alcoa Aluminum AA | I5: DuPont DD | J5: Merck MRK | K5: MMM
A6: Market cap (billion $) | B6: 16.85 | C6: 73.98 | D6: 15.92 | E6: 88.37 | F6: 153.33 | G6: 65.66 | H6: 28.16 | I6: 38.32 | J6: 79.51 | K6: 60.9
A7: Benchmark proportions | B7: 0.02713365539 | C7: 0.1191304348 | D7: 0.02563607085 | E7: 0.1423027375 | F7: 0.2469082126 | G7: 0.1057326892 | H7: 0.04534621578 | I7: 0.06170692432 | J7: 0.1280354267 | K7: 0.09806763285
A9: Variance-covariance matrix
B10: GM | C10: HD | D10: IP | E10: HPQ | F10: MO | G10: AXP | H10: AA | I10: DD | J10: MRK | K10: MMM | M10: Without normalizing factor
A11: GM | B11: ='Page 310'!B8:K17 -> 0.01182788729 | C11: 0.003061696639 | D11: 0.00236486476 | E11: 0.004187328935 | F11: 0.001363838121 | G11: 0.00329772011 | H11: 0.00463675437 | I11: 0.001838691825 | J11: 0.0009806468402 | K11: 0.00138270736 | M11: =MMULT(B11:K20,TRANSPOSE(B7:K7)+B3) -> 0.002753106683
A12: HD | B12: 0.003061696639 | C12: 0.007191553885 | D12: 0.001872035613 | E12: 0.004267133071 | F12: 0.002243301642 | G12: 0.003333019332 | H12: 0.004585071332 | I12: 0.00203809342 | J12: 0.0001795207006 | K12: 0.001798728815 | M12: 0.003157430082
A13: IP | B13: 0.00236486476 | C13: 0.001872035613 | D13: 0.003951215775 | E13: 0.003137172075 | F13: 8.759653012e-05 | G13: 0.002352578156 | H13: 0.004344147113 | I13: 0.002096386294 | J13: 0.00120738011 | K13: 0.001605356114 | M13: 0.001836301864
A14: HPQ | B14: 0.004187328935 | C14: 0.004267133071 | D14: 0.003137172075 | E14: 0.01187218946 | F14: 0.002566458642 | G14: 0.004921213425 | H14: 0.006051076227 | I14: 0.003313805886 | J14: 0.001977086953 | K14: 0.002229959503 | M14: 0.00467575461
A15: MO | B15: 0.001363838121 | C15: 0.002243301642 | D15: 8.759653012e-05 | E15: 0.002566458642 | F15: 0.007711607803 | G15: 0.001616509004 | H15: 0.001812838088 | I15: 0.0008933438506 | J15: 0.0006820890265 | K15: 0.0008064323777 | M15: 0.003130066261
A16: AXP | B16: 0.00329772011 | C16: 0.003333019332 | D16: 0.002352578156 | E16: 0.004921213425 | F16: 0.001616509004 | G16: 0.004204640222 | H16: 0.003765722978 | I16: 0.001944271655 | J16: 0.001074612086 | K16: 0.001374942375 | M16: 0.002766253632
A17: AA | B17: 0.00463675437 | C17: 0.004585071332 | D17: 0.004344147113 | E17: 0.006051076227 | F17: 0.001812838088 | G17: 0.003765722978 | H17: 0.009262545394 | I17: 0.004079226466 | J17: 0.001794821159 | K17: 0.002431302101 | M17: 0.003802343585
A18: DD | B18: 0.001838691825 | C18: 0.00203809342 | D18: 0.002096386294 | E18: 0.003313805886 | F18: 0.0008933438506 | G18: 0.001944271655 | H18: 0.004079226466 | I18: 0.003814634131 | J18: 0.001650683458 | K18: 0.00193275587 | M18: 0.002160394342
A19: MRK | B19: 0.0009806468402 | C19: 0.0001795207006 | D19: 0.00120738011 | E19: 0.001977086953 | F19: 0.0006820890265 | G19: 0.001074612086 | H19: 0.001794821159 | I19: 0.001650683458 | J19: 0.006610491527 | K19: 0.0004895873158 | M19: 0.001786967858
A20: MMM | B20: 0.00138270736 | C20: 0.001798728815 | D20: 0.001605356114 | E20: 0.002229959503 | F20: 0.0008064323777 | G20: 0.001374942375 | H20: 0.002431302101 | I20: 0.00193275587 | J20: 0.0004895873158 | K20: 0.003116366571 | M20: 0.001621692488
A22: Check: The expected return of the benchmark? | B22: =MMULT(B7:K7,M11:M20) -> 0.002922182532 | C22: =getformula(B22) -> <-- {=MMULT(B7:K7,M11:M20)} | H22: ="Cells "&CHAR(COLUMN(M11)+64)&ROW(M11)&":"&CHAR(COLUMN(M20)+64)&ROW(M20)&" contain the array formula "&ggetformula(M20) -> Cells M11:M20 contain the array formula {=MMULT(B11:K20,TRANSPOSE(B7:K7)+B3)}
A26: Additional check: Optimal portfolio
A27: GM | B27: =MMULT(MINVERSE(B11:K20),M11:M20-B3)/SUM(MMULT(MINVERSE(B11:K20),M11:M20-B3)) -> 0.05528760043 | C27: =getformula(B27) -> <-- {=MMULT(MINVERSE(B11:K20),M11:M20-B3)/SUM(MMULT(MINVERSE(B11:K20),M11:M20-B3))}
A28: HD | B28: 0.07952562846
A29: IP | B29: 0.5321688639
A30: HPQ | B30: -0.2294190312
A31: MO | B31: 0.1045881241
A32: AXP | B32: 0.1392022908
A33: AA | B33: -0.4832610558
A34: DD | B34: 0.3012198618
A35: MRK | B35: 0.1550122453
A36: MMM | B36: 0.3456754722
A37: Sum of proportions | B37: =SUM(B27:B36) -> 1 | C37: =getformula(B37) -> <-- =SUM(B27:B36)

Sheet Page 316
A1: SUPER DUPER BENCHMARK PORTFOLIO—WHAT DOES THE MARKET THINK? Normalizing factor computed in cell B4, based on anticipated benchmark return The expected returns make the benchmark optimal
A2: Anticipated benchmark return | B2: =12%/12 -> 0.01 | C2: =getformula(B2) -> <-- =12%/12
A3: Current T-bill rate | B3: ='Page 310'!B19 -> 0.004025
A4: Normalizing factor | B4: =(B2-B3)/MMULT(MMULT(B8:K8,B12:K21),TRANSPOSE(B8:K8)) -> 2.122346735 | C4: =getformula(B4) -> <-- {=(B2-B3)/MMULT(MMULT(B8:K8,B12:K21),TRANSPOSE(B8:K8))}
B6: General Motors GM | C6: Home Depot HD | D6: International Paper IP | E6: Hewlett-Packard HPQ | F6: Altria MO | G6: American Express AXP | H6: Alcoa Aluminum AA | I6: DuPont DD | J6: Merck MRK | K6: MMM
A7: Market cap (billion $) | B7: 16.85 | C7: 73.98 | D7: 15.92 | E7: 88.37 | F7: 153.33 | G7: 65.66 | H7: 28.16 | I7: 38.32 | J7: 79.51 | K7: 60.9
A8: Benchmark proportions | B8: 0.02713365539 | C8: 0.1191304348 | D8: 0.02563607085 | E8: 0.1423027375 | F8: 0.2469082126 | G8: 0.1057326892 | H8: 0.04534621578 | I8: 0.06170692432 | J8: 0.1280354267 | K8: 0.09806763285
A10: Variance-covariance matrix
B11: GM | C11: HD | D11: IP | E11: HPQ | F11: MO | G11: AXP | H11: AA | I11: DD | J11: MRK | K11: MMM | M11: With normalizing factor
A12: GM | B12: ='Page 310'!B8:K17 -> 0.01182788729 | C12: 0.003061696639 | D12: 0.00236486476 | E12: 0.004187328935 | F12: 0.001363838121 | G12: 0.00329772011 | H12: 0.00463675437 | I12: 0.001838691825 | J12: 0.0009806468402 | K12: 0.00138270736 | M12: =(MMULT(B12:K21,TRANSPOSE(B8:K8))*B4)+B3 -> 0.009569555681
A13: HD | B13: 0.003061696639 | C13: 0.007191553885 | D13: 0.001872035613 | E13: 0.004267133071 | F13: 0.002243301642 | G13: 0.003333019332 | H13: 0.004585071332 | I13: 0.00203809342 | J13: 0.0001795207006 | K13: 0.001798728815 | M13: 0.01046501754
A14: IP | B14: 0.00236486476 | C14: 0.001872035613 | D14: 0.003951215775 | E14: 0.003137172075 | F14: 8.759653012e-05 | G14: 0.002352578156 | H14: 0.004344147113 | I14: 0.002096386294 | J14: 0.00120738011 | K14: 0.001605356114 | M14: 0.007725632995
A15: HPQ | B15: 0.004187328935 | C15: 0.004267133071 | D15: 0.003137172075 | E15: 0.01187218946 | F15: 0.002566458642 | G15: 0.004921213425 | H15: 0.006051076227 | I15: 0.003313805886 | J15: 0.001977086953 | K15: 0.002229959503 | M15: 0.0135682336
A16: MO | B16: 0.001363838121 | C16: 0.002243301642 | D16: 8.759653012e-05 | E16: 0.002566458642 | F16: 0.007711607803 | G16: 0.001616509004 | H16: 0.001812838088 | I16: 0.0008933438506 | J16: 0.0006820890265 | K16: 0.0008064323777 | M16: 0.01049908204
A17: AXP | B17: 0.00329772011 | C17: 0.003333019332 | D17: 0.002352578156 | E17: 0.004921213425 | F17: 0.001616509004 | G17: 0.004204640222 | H17: 0.003765722978 | I17: 0.001944271655 | J17: 0.001074612086 | K17: 0.001374942375 | M17: 0.009657741309
A18: AA | B18: 0.00463675437 | C18: 0.004585071332 | D18: 0.004344147113 | E18: 0.006051076227 | F18: 0.001812838088 | G18: 0.003765722978 | H18: 0.009262545394 | I18: 0.004079226466 | J18: 0.001794821159 | K18: 0.002431302101 | M18: 0.01172958658
A19: DD | B19: 0.001838691825 | C19: 0.00203809342 | D19: 0.002096386294 | E19: 0.003313805886 | F19: 0.0008933438506 | G19: 0.001944271655 | H19: 0.004079226466 | I19: 0.003814634131 | J19: 0.001650683458 | K19: 0.00193275587 | M19: 0.008408487992
A20: MRK | B20: 0.0009806468402 | C20: 0.0001795207006 | D20: 0.00120738011 | E20: 0.001977086953 | F20: 0.0006820890265 | G20: 0.001074612086 | H20: 0.001794821159 | I20: 0.001650683458 | J20: 0.006610491527 | K20: 0.0004895873158 | M20: 0.007675359996
A21: MMM | B21: 0.00138270736 | C21: 0.001798728815 | D21: 0.001605356114 | E21: 0.002229959503 | F21: 0.0008064323777 | G21: 0.001374942375 | H21: 0.002431302101 | I21: 0.00193275587 | J21: 0.0004895873158 | K21: 0.003116366571 | M21: 0.007320135868
A23: Check: The expected return of the benchmark? | B23: =MMULT(B8:K8,M12:M21) -> 0.01 | C23: =getformula(B23) -> <-- {=MMULT(B8:K8,M12:M21)} | H23: ="Cells "&CHAR(COLUMN(M12)+64)&ROW(M12)&":"&CHAR(COLUMN(M21)+64)&ROW(M21)&" contain the array formula "&ggetformula(M21) -> Cells M12:M21 contain the array formula {=(MMULT(B12:K21,TRANSPOSE(B8:K8))*B4)+B3}
A27: Additional check: Optimal portfolio
A28: GM | B28: =MMULT(MINVERSE(B12:K21),M12:M21-B3)/SUM(MMULT(MINVERSE(B12:K21),M12:M21-B3)) -> 0.02713365539 | C28: =getformula(B28) -> <-- {=MMULT(MINVERSE(B12:K21),M12:M21-B3)/SUM(MMULT(MINVERSE(B12:K21),M12:M21-B3))}
A29: HD | B29: 0.1191304348
A30: IP | B30: 0.02563607085
A31: HPQ | B31: 0.1423027375
A32: MO | B32: 0.2469082126
A33: AXP | B33: 0.1057326892
A34: AA | B34: 0.04534621578
A35: DD | B35: 0.06170692432
A36: MRK | B36: 0.1280354267
A37: MMM | B37: 0.09806763285
A38: Sum of proportions | B38: =SUM(B28:B37) -> 1 | C38: =getformula(B38) -> <-- =SUM(B28:B37)

Sheet Pages 317-18
A1: ADJUSTING THE BENCHMARK FOR AN ANALYST'S OPINION In this example the only opinion is about GM
A2: Anticipated benchmark return | B2: =12%/12 -> 0.01 | C2: =getformula(B2) -> <-- =12%/12
A3: Current T-bill rate | B3: ='Page 310'!B19 -> 0.004025
A4: Normalizing factor | B4: =(B2-B3)/MMULT(MMULT(B8:K8,B12:K21),TRANSPOSE(B8:K8)) -> 2.122346735 | C4: =getformula(B4) -> <-- {=(B2-B3)/MMULT(MMULT(B8:K8,B12:K21),TRANSPOSE(B8:K8))}
B6: General Motors GM | C6: Home Depot HD | D6: International Paper IP | E6: Hewlett-Packard HPQ | F6: Altria MO | G6: American Express AXP | H6: Alcoa Aluminum AA | I6: DuPont DD | J6: Merck MRK | K6: MMM
A7: Market cap (billion $) | B7: 16.85 | C7: 73.98 | D7: 15.92 | E7: 88.37 | F7: 153.33 | G7: 65.66 | H7: 28.16 | I7: 38.32 | J7: 79.51 | K7: 60.9
A8: Benchmark proportions | B8: 0.02713365539 | C8: 0.1191304348 | D8: 0.02563607085 | E8: 0.1423027375 | F8: 0.2469082126 | G8: 0.1057326892 | H8: 0.04534621578 | I8: 0.06170692432 | J8: 0.1280354267 | K8: 0.09806763285
A10: Variance-covariance matrix
B11: GM | C11: HD | D11: IP | E11: HPQ | F11: MO | G11: AXP | H11: AA | I11: DD | J11: MRK | K11: MMM
A12: GM | B12: ='Page 310'!B8:K17 -> 0.01182788729 | C12: 0.003061696639 | D12: 0.00236486476 | E12: 0.004187328935 | F12: 0.001363838121 | G12: 0.00329772011 | H12: 0.00463675437 | I12: 0.001838691825 | J12: 0.0009806468402 | K12: 0.00138270736
A13: HD | B13: 0.003061696639 | C13: 0.007191553885 | D13: 0.001872035613 | E13: 0.004267133071 | F13: 0.002243301642 | G13: 0.003333019332 | H13: 0.004585071332 | I13: 0.00203809342 | J13: 0.0001795207006 | K13: 0.001798728815
A14: IP | B14: 0.00236486476 | C14: 0.001872035613 | D14: 0.003951215775 | E14: 0.003137172075 | F14: 8.759653012e-05 | G14: 0.002352578156 | H14: 0.004344147113 | I14: 0.002096386294 | J14: 0.00120738011 | K14: 0.001605356114
A15: HPQ | B15: 0.004187328935 | C15: 0.004267133071 | D15: 0.003137172075 | E15: 0.01187218946 | F15: 0.002566458642 | G15: 0.004921213425 | H15: 0.006051076227 | I15: 0.003313805886 | J15: 0.001977086953 | K15: 0.002229959503
A16: MO | B16: 0.001363838121 | C16: 0.002243301642 | D16: 8.759653012e-05 | E16: 0.002566458642 | F16: 0.007711607803 | G16: 0.001616509004 | H16: 0.001812838088 | I16: 0.0008933438506 | J16: 0.0006820890265 | K16: 0.0008064323777
A17: AXP | B17: 0.00329772011 | C17: 0.003333019332 | D17: 0.002352578156 | E17: 0.004921213425 | F17: 0.001616509004 | G17: 0.004204640222 | H17: 0.003765722978 | I17: 0.001944271655 | J17: 0.001074612086 | K17: 0.001374942375
A18: AA | B18: 0.00463675437 | C18: 0.004585071332 | D18: 0.004344147113 | E18: 0.006051076227 | F18: 0.001812838088 | G18: 0.003765722978 | H18: 0.009262545394 | I18: 0.004079226466 | J18: 0.001794821159 | K18: 0.002431302101
A19: DD | B19: 0.001838691825 | C19: 0.00203809342 | D19: 0.002096386294 | E19: 0.003313805886 | F19: 0.0008933438506 | G19: 0.001944271655 | H19: 0.004079226466 | I19: 0.003814634131 | J19: 0.001650683458 | K19: 0.00193275587
A20: MRK | B20: 0.0009806468402 | C20: 0.0001795207006 | D20: 0.00120738011 | E20: 0.001977086953 | F20: 0.0006820890265 | G20: 0.001074612086 | H20: 0.001794821159 | I20: 0.001650683458 | J20: 0.006610491527 | K20: 0.0004895873158
A21: MMM | B21: 0.00138270736 | C21: 0.001798728815 | D21: 0.001605356114 | E21: 0.002229959503 | F21: 0.0008064323777 | G21: 0.001374942375 | H21: 0.002431302101 | I21: 0.00193275587 | J21: 0.0004895873158 | K21: 0.003116366571
A24: Expected benchmark returns, no opinions | B24: Analyst opinion, delta, d | D24: Returns adjusted for opinions | J24: Opinion-adjusted optimized portfolio | L24: Portfolio benchmark, no opinions
A25: =(MMULT(B12:K21,TRANSPOSE(B8:K8))*B4)+B3 -> 0.009569555681 | B25: 0.0014 | C25: GM | D25: =A25+B12/$B$12*$B$25 -> 0.01096955568 | E25: =getformula(D25) -> <-- =A25+B12/$B$12*$B$25 | J25: =MMULT(MINVERSE(B12:K21),D25:D34-B3)/SUM(MMULT(MINVERSE(B12:K21),D25:D34-B3)) -> 0.07852478673 | K25: GM | L25: =TRANSPOSE(B8:K8) -> 0.02713365539
A26: 0.01046501754 | B26: 0 | C26: HD | D26: =A26+B13/$B$12*$B$25 -> 0.01082741323 | E26: =getformula(D26) -> <-- =A26+B13/$B$12*$B$25 | J26: 0.1128374349 | K26: HD | L26: 0.1191304348
A27: 0.007725632995 | B27: 0 | C27: IP | D27: 0.008005548637 | E27: =getformula(D27) -> <-- =A27+B14/$B$12*$B$25 | J27: 0.02428185946 | K27: IP | L27: 0.02563607085
A28: 0.0135682336 | B28: 0 | C28: HPQ | D28: 0.014063864 | J28: 0.1347856734 | K28: HPQ | L28: 0.1423027375
A29: 0.01049908204 | B29: 0 | C29: MO | D29: 0.01066051183 | F29: ="Cells "&CHAR(COLUMN(J25)+64)&ROW(J25)&":"&CHAR(COLUMN(J34)+64)&ROW(J34)&" contain the array formula "&ggetformula(J25) -> Cells J25:J34 contain the array formula {=MMULT(MINVERSE(B12:K21),D25:D34-B3)/SUM(MMULT(MINVERSE(B12:K21),D25:D34-B3))} | J29: 0.2338654216 | K29: MO | L29: 0.2469082126
A30: 0.009657741309 | B30: 0 | C30: AXP | D30: 0.01004807375 | J30: 0.1001474179 | K30: AXP | L30: 0.1057326892
A31: 0.01172958658 | B31: 0 | C31: AA | D31: 0.01227841292 | J31: 0.04295082679 | K31: AA | L31: 0.04534621578
A32: 0.008408487992 | B32: 0 | C32: DD | D32: 0.008626123525 | J32: 0.05844728987 | K32: DD | L32: 0.06170692432
A33: 0.007675359996 | B33: 0 | C33: MRK | D33: 0.007791433606 | J33: 0.1212720255 | K33: MRK | L33: 0.1280354267
A34: 0.007320135868 | B34: 0 | C34: MMM | D34: 0.007483799104 | J34: 0.09288726391 | K34: MMM | L34: 0.09806763285

Sheet Page 318, galleys
A1: ADJUSTING THE BENCHMARK FOR AN ANALYST'S OPINION In this example the only opinion is about GM
A2: Anticipated benchmark return | B2: =12%/12 -> 0.01 | C2: =getformula(B2) -> <-- =12%/12
A3: Current T-bill rate | B3: ='Page 310'!B19 -> 0.004025
A4: Normalizing factor | B4: =(B2-B3)/MMULT(MMULT(B8:K8,B12:K21),TRANSPOSE(B8:K8)) -> 2.122346735 | C4: =getformula(B4) -> <-- {=(B2-B3)/MMULT(MMULT(B8:K8,B12:K21),TRANSPOSE(B8:K8))}
B6: General Motors GM | C6: Home Depot HD | D6: International Paper IP | E6: Hewlett-Packard HPQ | F6: Altria MO | G6: American Express AXP | H6: Alcoa Aluminum AA | I6: DuPont DD | J6: Merck MRK | K6: MMM
A7: Market cap (billion $) | B7: 16.85 | C7: 73.98 | D7: 15.92 | E7: 88.37 | F7: 153.33 | G7: 65.66 | H7: 28.16 | I7: 38.32 | J7: 79.51 | K7: 60.9
A8: Benchmark proportions | B8: 0.02713365539 | C8: 0.1191304348 | D8: 0.02563607085 | E8: 0.1423027375 | F8: 0.2469082126 | G8: 0.1057326892 | H8: 0.04534621578 | I8: 0.06170692432 | J8: 0.1280354267 | K8: 0.09806763285
A10: Variance-covariance matrix
B11: GM | C11: HD | D11: IP | E11: HPQ | F11: MO | G11: AXP | H11: AA | I11: DD | J11: MRK | K11: MMM
A12: GM | B12: ='Page 310'!B8:K17 -> 0.01182788729 | C12: 0.003061696639 | D12: 0.00236486476 | E12: 0.004187328935 | F12: 0.001363838121 | G12: 0.00329772011 | H12: 0.00463675437 | I12: 0.001838691825 | J12: 0.0009806468402 | K12: 0.00138270736
A13: HD | B13: 0.003061696639 | C13: 0.007191553885 | D13: 0.001872035613 | E13: 0.004267133071 | F13: 0.002243301642 | G13: 0.003333019332 | H13: 0.004585071332 | I13: 0.00203809342 | J13: 0.0001795207006 | K13: 0.001798728815
A14: IP | B14: 0.00236486476 | C14: 0.001872035613 | D14: 0.003951215775 | E14: 0.003137172075 | F14: 8.759653012e-05 | G14: 0.002352578156 | H14: 0.004344147113 | I14: 0.002096386294 | J14: 0.00120738011 | K14: 0.001605356114
A15: HPQ | B15: 0.004187328935 | C15: 0.004267133071 | D15: 0.003137172075 | E15: 0.01187218946 | F15: 0.002566458642 | G15: 0.004921213425 | H15: 0.006051076227 | I15: 0.003313805886 | J15: 0.001977086953 | K15: 0.002229959503
A16: MO | B16: 0.001363838121 | C16: 0.002243301642 | D16: 8.759653012e-05 | E16: 0.002566458642 | F16: 0.007711607803 | G16: 0.001616509004 | H16: 0.001812838088 | I16: 0.0008933438506 | J16: 0.0006820890265 | K16: 0.0008064323777
A17: AXP | B17: 0.00329772011 | C17: 0.003333019332 | D17: 0.002352578156 | E17: 0.004921213425 | F17: 0.001616509004 | G17: 0.004204640222 | H17: 0.003765722978 | I17: 0.001944271655 | J17: 0.001074612086 | K17: 0.001374942375
A18: AA | B18: 0.00463675437 | C18: 0.004585071332 | D18: 0.004344147113 | E18: 0.006051076227 | F18: 0.001812838088 | G18: 0.003765722978 | H18: 0.009262545394 | I18: 0.004079226466 | J18: 0.001794821159 | K18: 0.002431302101
A19: DD | B19: 0.001838691825 | C19: 0.00203809342 | D19: 0.002096386294 | E19: 0.003313805886 | F19: 0.0008933438506 | G19: 0.001944271655 | H19: 0.004079226466 | I19: 0.003814634131 | J19: 0.001650683458 | K19: 0.00193275587
A20: MRK | B20: 0.0009806468402 | C20: 0.0001795207006 | D20: 0.00120738011 | E20: 0.001977086953 | F20: 0.0006820890265 | G20: 0.001074612086 | H20: 0.001794821159 | I20: 0.001650683458 | J20: 0.006610491527 | K20: 0.0004895873158
A21: MMM | B21: 0.00138270736 | C21: 0.001798728815 | D21: 0.001605356114 | E21: 0.002229959503 | F21: 0.0008064323777 | G21: 0.001374942375 | H21: 0.002431302101 | I21: 0.00193275587 | J21: 0.0004895873158 | K21: 0.003116366571
A24: Expected benchmark returns, no opinions | B24: Analyst opinion, delta, d | D24: Returns adjusted for opinions | J24: Opinion-adjusted optimized portfolio | L24: Portfolio benchmark, no opinions
A25: =(MMULT(B12:K21,TRANSPOSE(B8:K8))*B4)+B3 -> 0.009569555681 | B25: 0.0014 | C25: GM | D25: =A25+B12/$B$12*$B$25 -> 0.01096955568 | E25: =getformula(D25) -> <-- =A25+B12/$B$12*$B$25 | J25: =MMULT(MINVERSE(B12:K21),D25:D34-B3)/SUM(MMULT(MINVERSE(B12:K21),D25:D34-B3)) -> 0.07852478673 | K25: GM | L25: =TRANSPOSE(B8:K8) -> 0.02713365539
A26: 0.01046501754 | B26: 0 | C26: HD | D26: =A26+B13/$B$12*$B$25 -> 0.01082741323 | E26: =getformula(D26) -> <-- =A26+B13/$B$12*$B$25 | J26: 0.1128374349 | K26: HD | L26: 0.1191304348
A27: 0.007725632995 | B27: 0 | C27: IP | D27: 0.008005548637 | E27: =getformula(D27) -> <-- =A27+B14/$B$12*$B$25 | J27: 0.02428185946 | K27: IP | L27: 0.02563607085
A28: 0.0135682336 | B28: 0 | C28: HPQ | D28: 0.014063864 | J28: 0.1347856734 | K28: HPQ | L28: 0.1423027375
A29: 0.01049908204 | B29: 0 | C29: MO | D29: 0.01066051183 | F29: ="Cells "&CHAR(COLUMN(J25)+64)&ROW(J25)&":"&CHAR(COLUMN(J34)+64)&ROW(J34)&" contain the array formula "&ggetformula(J25) -> Cells J25:J34 contain the array formula {=MMULT(MINVERSE(B12:K21),D25:D34-B3)/SUM(MMULT(MINVERSE(B12:K21),D25:D34-B3))} | J29: 0.2338654216 | K29: MO | L29: 0.2469082126
A30: 0.009657741309 | B30: 0 | C30: AXP | D30: 0.01004807375 | J30: 0.1001474179 | K30: AXP | L30: 0.1057326892
A31: 0.01172958658 | B31: 0 | C31: AA | D31: 0.01227841292 | J31: 0.04295082679 | K31: AA | L31: 0.04534621578
A32: 0.008408487992 | B32: 0 | C32: DD | D32: 0.008626123525 | J32: 0.05844728987 | K32: DD | L32: 0.06170692432
A33: 0.007675359996 | B33: 0 | C33: MRK | D33: 0.007791433606 | J33: 0.1212720255 | K33: MRK | L33: 0.1280354267
A34: 0.007320135868 | B34: 0 | C34: MMM | D34: 0.007483799104 | J34: 0.09288726391 | K34: MMM | L34: 0.09806763285

Sheet Page 321
A1: BLACK-LITTERMAN TRACKING MATRIX Tracking factors = cov(i,j)/var(i)
A2: Tracking matrix
B3: GM | C3: HD | D3: IP | E3: HPQ | F3: MO | G3: AXP | H3: AA | I3: DD | J3: MRK | K3: MMM
A4: GM | B4: =bltracking(B18:K27) -> 1 | C4: 0.2588540594 | D4: 0.1999397443 | E4: 0.3540217143 | F4: 0.1153069933 | G4: 0.2788088886 | H4: 0.3920188159 | I4: 0.1554539522 | J4: 0.08290972142 | K4: 0.1169023112
A5: HD | B5: 0.4257350619 | C5: 1 | D5: 0.2603103089 | E5: 0.5933534169 | F5: 0.3119355952 | G5: 0.4634630269 | H5: 0.6375633703 | I5: 0.2834009801 | J5: 0.02496271369 | K5: 0.2501168515
A6: IP | B6: 0.5985157215 | C6: 0.4737872392 | D6: 1 | E6: 0.7939763996 | F6: 0.02216951316 | G6: 0.5954061459 | H6: 1.09944568 | I6: 0.5305674035 | J6: 0.3055717984 | K6: 0.4062942157
A7: HPQ | B7: 0.3527006497 | C7: 0.359422589 | D7: 0.2642454525 | E7: 1 | F7: 0.2161739965 | G7: 0.4145160792 | H7: 0.5096849447 | I7: 0.2791233999 | J7: 0.166530947 | K7: 0.1878305186
A8: MO | B8: 0.1768552234 | C8: 0.2908993428 | D8: 0.0113590489 | E8: 0.3328046118 | F8: 1 | G8: 0.2096202304 | H8: 0.2350791345 | I8: 0.1158440462 | J8: 0.08844965199 | K8: 0.1045738318
A9: AXP | B9: 0.7843049431 | C9: 0.7927002444 | D9: 0.5595194909 | E9: 1.17042438 | F9: 0.384458341 | G9: 1 | H9: 0.8956112247 | I9: 0.4624109441 | J9: 0.2555776544 | K9: 0.3270059513
A10: AA | B10: 0.5005918107 | C10: 0.4950120229 | D10: 0.4690014384 | E10: 0.6532843802 | F10: 0.195717053 | G10: 0.4065537947 | H10: 1 | I10: 0.4404001592 | J10: 0.1937719151 | K10: 0.2624874694
A11: DD | B11: 0.4820100073 | C11: 0.534282804 | D11: 0.5495641842 | E11: 0.8687087076 | F11: 0.2341886063 | G11: 0.5096875842 | H11: 1.069362441 | I11: 1 | J11: 0.4327239261 | K11: 0.5066687403
A12: MRK | B12: 0.1483470384 | C12: 0.0271569368 | D12: 0.1826460415 | E12: 0.299083199 | F12: 0.1031828002 | G12: 0.1625616009 | H12: 0.2715109991 | I12: 0.2497066142 | J12: 1 | K12: 0.07406216524
A13: MMM | B13: 0.4436921424 | C13: 0.577187816 | D13: 0.5151371246 | E13: 0.7155639275 | F13: 0.2587732731 | G13: 0.4412004635 | H13: 0.7801720516 | I13: 0.6201952902 | J13: 0.1571019663 | K13: 1
B14: =getformula(B13) -> <-- {=bltracking(B18:K27)}
A16: Variance-covariance matrix
B17: GM | C17: HD | D17: IP | E17: HPQ | F17: MO | G17: AXP | H17: AA | I17: DD | J17: MRK | K17: MMM
A18: GM | B18: ='Page 310'!B8:K17 -> 0.01182788729 | C18: 0.003061696639 | D18: 0.00236486476 | E18: 0.004187328935 | F18: 0.001363838121 | G18: 0.00329772011 | H18: 0.00463675437 | I18: 0.001838691825 | J18: 0.0009806468402 | K18: 0.00138270736
A19: HD | B19: 0.003061696639 | C19: 0.007191553885 | D19: 0.001872035613 | E19: 0.004267133071 | F19: 0.002243301642 | G19: 0.003333019332 | H19: 0.004585071332 | I19: 0.00203809342 | J19: 0.0001795207006 | K19: 0.001798728815
A20: IP | B20: 0.00236486476 | C20: 0.001872035613 | D20: 0.003951215775 | E20: 0.003137172075 | F20: 8.759653012e-05 | G20: 0.002352578156 | H20: 0.004344147113 | I20: 0.002096386294 | J20: 0.00120738011 | K20: 0.001605356114
A21: HPQ | B21: 0.004187328935 | C21: 0.004267133071 | D21: 0.003137172075 | E21: 0.01187218946 | F21: 0.002566458642 | G21: 0.004921213425 | H21: 0.006051076227 | I21: 0.003313805886 | J21: 0.001977086953 | K21: 0.002229959503
A22: MO | B22: 0.001363838121 | C22: 0.002243301642 | D22: 8.759653012e-05 | E22: 0.002566458642 | F22: 0.007711607803 | G22: 0.001616509004 | H22: 0.001812838088 | I22: 0.0008933438506 | J22: 0.0006820890265 | K22: 0.0008064323777
A23: AXP | B23: 0.00329772011 | C23: 0.003333019332 | D23: 0.002352578156 | E23: 0.004921213425 | F23: 0.001616509004 | G23: 0.004204640222 | H23: 0.003765722978 | I23: 0.001944271655 | J23: 0.001074612086 | K23: 0.001374942375
A24: AA | B24: 0.00463675437 | C24: 0.004585071332 | D24: 0.004344147113 | E24: 0.006051076227 | F24: 0.001812838088 | G24: 0.003765722978 | H24: 0.009262545394 | I24: 0.004079226466 | J24: 0.001794821159 | K24: 0.002431302101
A25: DD | B25: 0.001838691825 | C25: 0.00203809342 | D25: 0.002096386294 | E25: 0.003313805886 | F25: 0.0008933438506 | G25: 0.001944271655 | H25: 0.004079226466 | I25: 0.003814634131 | J25: 0.001650683458 | K25: 0.00193275587
A26: MRK | B26: 0.0009806468402 | C26: 0.0001795207006 | D26: 0.00120738011 | E26: 0.001977086953 | F26: 0.0006820890265 | G26: 0.001074612086 | H26: 0.001794821159 | I26: 0.001650683458 | J26: 0.006610491527 | K26: 0.0004895873158
A27: MMM | B27: 0.00138270736 | C27: 0.001798728815 | D27: 0.001605356114 | E27: 0.002229959503 | F27: 0.0008064323777 | G27: 0.001374942375 | H27: 0.002431302101 | I27: 0.00193275587 | J27: 0.0004895873158 | K27: 0.003116366571
A29: Checking the tracking matrix
A30: GM | B30: =B18/$B$18 -> 1 | C30: =C18/$C$19 -> 0.4257350619 | D30: =getformula(C30) -> <-- =C18/$C$19
A31: HD | B31: =B19/$B$18 -> 0.2588540594 | C31: =C19/$C$19 -> 1 | D31: =getformula(C31) -> <-- =C19/$C$19
A32: IP | B32: 0.1999397443 | C32: 0.2603103089 | D32: <-- =C20/$C$19
A33: HPQ | B33: 0.3540217143 | C33: 0.5933534169 | D33: <-- =C21/$C$19
A34: MO | B34: 0.1153069933 | C34: 0.3119355952 | D34: <-- =C22/$C$19
A35: AXP | B35: 0.2788088886 | C35: 0.4634630269 | D35: <-- =C23/$C$19
A36: AA | B36: 0.3920188159 | C36: 0.6375633703 | D36: <-- =C24/$C$19
A37: DD | B37: 0.1554539522 | C37: 0.2834009801 | D37: <-- =C25/$C$19
A38: MRK | B38: 0.08290972142 | C38: 0.02496271369 | D38: <-- =C26/$C$19
A39: MMM | B39: 0.1169023112 | C39: 0.2501168515 | D39: <-- =C27/$C$19

Sheet Page 322
A1: MULTIPLE OPINIONS: ACCEPTING JOANNA'S DELTAS, BUT LETTING THEM INFLUENCE ALL THE RETURNS
A2: Anticipated benchmark return | B2: =12%/12 -> 0.01 | C2: =getformula(B2) -> <-- =12%/12
A3: Current t-bill rate | B3: ='Page 310'!B19 -> 0.004025
B5: General Motors GM | C5: Home Depot HD | D5: International Paper IP | E5: Hewlett-Packard HPQ | F5: Altria MO | G5: American Express AXP | H5: Alcoa Aluminum AA | I5: DuPont DD | J5: Merck MRK | K5: MMM
A6: Market cap (billion $) | B6: 16.85 | C6: 73.98 | D6: 15.92 | E6: 88.37 | F6: 153.33 | G6: 65.66 | H6: 28.16 | I6: 38.32 | J6: 79.51 | K6: 60.9
A7: Benchmark proportions | B7: 0.02713365539 | C7: 0.1191304348 | D7: 0.02563607085 | E7: 0.1423027375 | F7: 0.2469082126 | G7: 0.1057326892 | H7: 0.04534621578 | I7: 0.06170692432 | J7: 0.1280354267 | K7: 0.09806763285
A9: Variance-covariance matrix
B10: GM | C10: HD | D10: IP | E10: HPQ | F10: MO | G10: AXP | H10: AA | I10: DD | J10: MRK | K10: MMM
A11: GM | B11: ='Page 310'!B8:K17 -> 0.01182788729 | C11: 0.003061696639 | D11: 0.00236486476 | E11: 0.004187328935 | F11: 0.001363838121 | G11: 0.00329772011 | H11: 0.00463675437 | I11: 0.001838691825 | J11: 0.0009806468402 | K11: 0.00138270736
A12: HD | B12: 0.003061696639 | C12: 0.007191553885 | D12: 0.001872035613 | E12: 0.004267133071 | F12: 0.002243301642 | G12: 0.003333019332 | H12: 0.004585071332 | I12: 0.00203809342 | J12: 0.0001795207006 | K12: 0.001798728815
A13: IP | B13: 0.00236486476 | C13: 0.001872035613 | D13: 0.003951215775 | E13: 0.003137172075 | F13: 8.759653012e-05 | G13: 0.002352578156 | H13: 0.004344147113 | I13: 0.002096386294 | J13: 0.00120738011 | K13: 0.001605356114
A14: HPQ | B14: 0.004187328935 | C14: 0.004267133071 | D14: 0.003137172075 | E14: 0.01187218946 | F14: 0.002566458642 | G14: 0.004921213425 | H14: 0.006051076227 | I14: 0.003313805886 | J14: 0.001977086953 | K14: 0.002229959503
A15: MO | B15: 0.001363838121 | C15: 0.002243301642 | D15: 8.759653012e-05 | E15: 0.002566458642 | F15: 0.007711607803 | G15: 0.001616509004 | H15: 0.001812838088 | I15: 0.0008933438506 | J15: 0.0006820890265 | K15: 0.0008064323777
A16: AXP | B16: 0.00329772011 | C16: 0.003333019332 | D16: 0.002352578156 | E16: 0.004921213425 | F16: 0.001616509004 | G16: 0.004204640222 | H16: 0.003765722978 | I16: 0.001944271655 | J16: 0.001074612086 | K16: 0.001374942375
A17: AA | B17: 0.00463675437 | C17: 0.004585071332 | D17: 0.004344147113 | E17: 0.006051076227 | F17: 0.001812838088 | G17: 0.003765722978 | H17: 0.009262545394 | I17: 0.004079226466 | J17: 0.001794821159 | K17: 0.002431302101
A18: DD | B18: 0.001838691825 | C18: 0.00203809342 | D18: 0.002096386294 | E18: 0.003313805886 | F18: 0.0008933438506 | G18: 0.001944271655 | H18: 0.004079226466 | I18: 0.003814634131 | J18: 0.001650683458 | K18: 0.00193275587
A19: MRK | B19: 0.0009806468402 | C19: 0.0001795207006 | D19: 0.00120738011 | E19: 0.001977086953 | F19: 0.0006820890265 | G19: 0.001074612086 | H19: 0.001794821159 | I19: 0.001650683458 | J19: 0.006610491527 | K19: 0.0004895873158
A20: MMM | B20: 0.00138270736 | C20: 0.001798728815 | D20: 0.001605356114 | E20: 0.002229959503 | F20: 0.0008064323777 | G20: 0.001374942375 | H20: 0.002431302101 | I20: 0.00193275587 | J20: 0.0004895873158 | K20: 0.003116366571
A23: Expected benchmark returns, no opinions | B23: Analyst opinion, delta | D23: Monthly returns adjusted for opinions | J23: Opinion-adjusted optimized portfolio | L23: Portfolio benchmark, no opinions
A24: =(MMULT(B11:K20,TRANSPOSE(B7:K7))*(B2-B3)/MMULT(B7:K7,MMULT(B11:K20,TRANSPOSE(B7:K7))))+B3 -> 0.009569555681 | B24: =MMULT(MINVERSE(tracking),D24:D33-A24:A33) -> 0.001940485362 | C24: GM | D24: 0.011 | E24: =getformula(D24) -> <-- 0.011 | J24: =MMULT(MINVERSE(B11:K20),D24:D33-B3)/SUM(MMULT(MINVERSE(B11:K20),D24:D33-B3)) -> 0.1034735602 | K24: GM | L24: =TRANSPOSE(B7:K7) -> 0.02713365539
A25: 0.01046501754 | B25: -0.0008711908819 | C25: HD | D25: 0.01 | E25: =getformula(D25) -> <-- 0.01 | J25: 0.06042220921 | K25: HD | L25: 0.1191304348
A26: 0.007725632995 | B26: -0.0001268789748 | C26: IP | D26: =A26 -> 0.007725632995 | E26: =getformula(D26) -> <-- =A26 | J26: 0.01282460924 | K26: IP | L26: 0.02563607085
A27: 0.0135682336 | B27: 7.897175848e-06 | C27: HPQ | D27: =A27 -> 0.0135682336 | E27: =getformula(D27) -> <-- =A27 | J27: 0.1408870707 | K27: HPQ | L27: 0.1423027375
A28: 0.01049908204 | B28: 9.290667311e-05 | C28: MO | D28: 0.01049908204 | E28: <-- =A28 | F28: ="Cells "&CHAR(COLUMN(J24)+64)&ROW(J24)&":"&CHAR(COLUMN(J33)+64)&ROW(J33)&" contain the array formula "&ggetformula(J24) -> Cells J24:J33 contain the array formula {=MMULT(MINVERSE(B11:K20),D24:D33-B3)/SUM(MMULT(MINVERSE(B11:K20),D24:D33-B3))} | J28: 0.2506838132 | K28: MO | L28: 0.2469082126
A29: 0.009657741309 | B29: -0.0005834479386 | C29: AXP | D29: 0.009657741309 | E29: <-- =A29 | J29: 0.09645199754 | K29: AXP | L29: 0.1057326892
A30: 0.01172958658 | B30: -0.0003992931089 | C30: AA | D30: 0.01172958658 | E30: <-- =A30 | J30: 0.03879085845 | K30: AA | L30: 0.04534621578
A31: 0.008408487992 | B31: 0.0003181516392 | C31: DD | D31: 0.008408487992 | E31: <-- =A31 | J31: 0.07163154918 | K31: DD | L31: 0.06170692432
A32: 0.007675359996 | B32: -0.0001343700855 | C32: MRK | D32: 0.007675359996 | E32: <-- =A32 | J32: 0.1191178048 | K32: MRK | L32: 0.1280354267
A33: 0.007320135868 | B33: 7.025850822e-05 | C33: MMM | D33: 0.007320135868 | E33: <-- =A33 | J33: 0.1057165274 | K33: MMM | L33: 0.09806763285
B34: =" ↑ "&ggetformula(B24) -> ↑ {=MMULT(MINVERSE(tracking),D24:D33-A24:A33)}
A36: Tracking matrix
B37: GM | C37: HD | D37: IP | E37: HPQ | F37: MO | G37: AXP | H37: AA | I37: DD | J37: MRK | K37: MMM
A38: GM | B38: =bltracking(B11:K20) -> 1 | C38: 0.2588540594 | D38: 0.1999397443 | E38: 0.3540217143 | F38: 0.1153069933 | G38: 0.2788088886 | H38: 0.3920188159 | I38: 0.1554539522 | J38: 0.08290972142 | K38: 0.1169023112
A39: HD | B39: 0.4257350619 | C39: 1 | D39: 0.2603103089 | E39: 0.5933534169 | F39: 0.3119355952 | G39: 0.4634630269 | H39: 0.6375633703 | I39: 0.2834009801 | J39: 0.02496271369 | K39: 0.2501168515
A40: IP | B40: 0.5985157215 | C40: 0.4737872392 | D40: 1 | E40: 0.7939763996 | F40: 0.02216951316 | G40: 0.5954061459 | H40: 1.09944568 | I40: 0.5305674035 | J40: 0.3055717984 | K40: 0.4062942157
A41: HPQ | B41: 0.3527006497 | C41: 0.359422589 | D41: 0.2642454525 | E41: 1 | F41: 0.2161739965 | G41: 0.4145160792 | H41: 0.5096849447 | I41: 0.2791233999 | J41: 0.166530947 | K41: 0.1878305186
A42: MO | B42: 0.1768552234 | C42: 0.2908993428 | D42: 0.0113590489 | E42: 0.3328046118 | F42: 1 | G42: 0.2096202304 | H42: 0.2350791345 | I42: 0.1158440462 | J42: 0.08844965199 | K42: 0.1045738318
A43: AXP | B43: 0.7843049431 | C43: 0.7927002444 | D43: 0.5595194909 | E43: 1.17042438 | F43: 0.384458341 | G43: 1 | H43: 0.8956112247 | I43: 0.4624109441 | J43: 0.2555776544 | K43: 0.3270059513
A44: AA | B44: 0.5005918107 | C44: 0.4950120229 | D44: 0.4690014384 | E44: 0.6532843802 | F44: 0.195717053 | G44: 0.4065537947 | H44: 1 | I44: 0.4404001592 | J44: 0.1937719151 | K44: 0.2624874694
A45: DD | B45: 0.4820100073 | C45: 0.534282804 | D45: 0.5495641842 | E45: 0.8687087076 | F45: 0.2341886063 | G45: 0.5096875842 | H45: 1.069362441 | I45: 1 | J45: 0.4327239261 | K45: 0.5066687403
A46: MRK | B46: 0.1483470384 | C46: 0.0271569368 | D46: 0.1826460415 | E46: 0.299083199 | F46: 0.1031828002 | G46: 0.1625616009 | H46: 0.2715109991 | I46: 0.2497066142 | J46: 1 | K46: 0.07406216524
A47: MMM | B47: 0.4436921424 | C47: 0.577187816 | D47: 0.5151371246 | E47: 0.7155639275 | F47: 0.2587732731 | G47: 0.4412004635 | H47: 0.7801720516 | I47: 0.6201952902 | J47: 0.1571019663 | K47: 1

Sheet Page 323
A1: MULTIPLE OPINIONS: ACCEPTING JOANNA'S DELTAS, BUT LETTING THEM INFLUENCE ALL THE RETURNS
A2: Anticipated benchmark return | B2: =12%/12 -> 0.01 | C2: =getformula(B2) -> <-- =12%/12
A3: Current t-bill rate | B3: ='Page 310'!B19 -> 0.004025
B5: General Motors GM | C5: Home Depot HD | D5: International Paper IP | E5: Hewlett-Packard HPQ | F5: Altria MO | G5: American Express AXP | H5: Alcoa Aluminum AA | I5: DuPont DD | J5: Merck MRK | K5: MMM
A6: Market cap (billion $) | B6: 16.85 | C6: 73.98 | D6: 15.92 | E6: 88.37 | F6: 153.33 | G6: 65.66 | H6: 28.16 | I6: 38.32 | J6: 79.51 | K6: 60.9
A7: Benchmark proportions | B7: 0.02713365539 | C7: 0.1191304348 | D7: 0.02563607085 | E7: 0.1423027375 | F7: 0.2469082126 | G7: 0.1057326892 | H7: 0.04534621578 | I7: 0.06170692432 | J7: 0.1280354267 | K7: 0.09806763285
A9: Variance-covariance matrix
B10: GM | C10: HD | D10: IP | E10: HPQ | F10: MO | G10: AXP | H10: AA | I10: DD | J10: MRK | K10: MMM
A11: GM | B11: ='Page 310'!B8:K17 -> 0.01182788729 | C11: 0.003061696639 | D11: 0.00236486476 | E11: 0.004187328935 | F11: 0.001363838121 | G11: 0.00329772011 | H11: 0.00463675437 | I11: 0.001838691825 | J11: 0.0009806468402 | K11: 0.00138270736
A12: HD | B12: 0.003061696639 | C12: 0.007191553885 | D12: 0.001872035613 | E12: 0.004267133071 | F12: 0.002243301642 | G12: 0.003333019332 | H12: 0.004585071332 | I12: 0.00203809342 | J12: 0.0001795207006 | K12: 0.001798728815
A13: IP | B13: 0.00236486476 | C13: 0.001872035613 | D13: 0.003951215775 | E13: 0.003137172075 | F13: 8.759653012e-05 | G13: 0.002352578156 | H13: 0.004344147113 | I13: 0.002096386294 | J13: 0.00120738011 | K13: 0.001605356114
A14: HPQ | B14: 0.004187328935 | C14: 0.004267133071 | D14: 0.003137172075 | E14: 0.01187218946 | F14: 0.002566458642 | G14: 0.004921213425 | H14: 0.006051076227 | I14: 0.003313805886 | J14: 0.001977086953 | K14: 0.002229959503
A15: MO | B15: 0.001363838121 | C15: 0.002243301642 | D15: 8.759653012e-05 | E15: 0.002566458642 | F15: 0.007711607803 | G15: 0.001616509004 | H15: 0.001812838088 | I15: 0.0008933438506 | J15: 0.0006820890265 | K15: 0.0008064323777
A16: AXP | B16: 0.00329772011 | C16: 0.003333019332 | D16: 0.002352578156 | E16: 0.004921213425 | F16: 0.001616509004 | G16: 0.004204640222 | H16: 0.003765722978 | I16: 0.001944271655 | J16: 0.001074612086 | K16: 0.001374942375
A17: AA | B17: 0.00463675437 | C17: 0.004585071332 | D17: 0.004344147113 | E17: 0.006051076227 | F17: 0.001812838088 | G17: 0.003765722978 | H17: 0.009262545394 | I17: 0.004079226466 | J17: 0.001794821159 | K17: 0.002431302101
A18: DD | B18: 0.001838691825 | C18: 0.00203809342 | D18: 0.002096386294 | E18: 0.003313805886 | F18: 0.0008933438506 | G18: 0.001944271655 | H18: 0.004079226466 | I18: 0.003814634131 | J18: 0.001650683458 | K18: 0.00193275587
A19: MRK | B19: 0.0009806468402 | C19: 0.0001795207006 | D19: 0.00120738011 | E19: 0.001977086953 | F19: 0.0006820890265 | G19: 0.001074612086 | H19: 0.001794821159 | I19: 0.001650683458 | J19: 0.006610491527 | K19: 0.0004895873158
A20: MMM | B20: 0.00138270736 | C20: 0.001798728815 | D20: 0.001605356114 | E20: 0.002229959503 | F20: 0.0008064323777 | G20: 0.001374942375 | H20: 0.002431302101 | I20: 0.00193275587 | J20: 0.0004895873158 | K20: 0.003116366571
A23: Expected benchmark returns, no opinions | B23: Analyst opinion, delta | D23: Monthly returns adjusted for opinions | J23: Opinion-adjusted optimized portfolio | L23: Portfolio benchmark, no opinions
A24: =(MMULT(B11:K20,TRANSPOSE(B7:K7))*(B2-B3)/MMULT(B7:K7,MMULT(B11:K20,TRANSPOSE(B7:K7))))+B3 -> 0.009569555681 | B24: 0.0014 | C24: GM | D24: =A24:A33+MMULT(tracking,B24:B33) -> 0.01084012865 | E24: =getformula(D24) -> <-- {=A24:A33+MMULT(tracking,B24:B33)} | J24: =MMULT(MINVERSE(B11:K20),D24:D33-B3)/SUM(MMULT(MINVERSE(B11:K20),D24:D33-B3)) -> 0.0619108017 | K24: GM | L24: =TRANSPOSE(B7:K7) -> 0.02713365539
A25: 0.01046501754 | B25: -0.0005 | C25: HD | D25: 0.01056104663 | J25: 0.06714833374 | K25: HD | L25: 0.1191304348
A26: 0.007725632995 | B26: 0 | C26: IP | D26: 0.008326661386 | J26: 0.06965319735 | K26: IP | L26: 0.02563607085
A27: 0.0135682336 | B27: 0 | C27: HPQ | D27: 0.01388230322 | J27: 0.09102191022 | K27: HPQ | L27: 0.1423027375
A28: 0.01049908204 | B28: 0 | C28: MO | D28: 0.01060122968 | F28: ="Cells "&CHAR(COLUMN(J24)+64)&ROW(J24)&":"&CHAR(COLUMN(J33)+64)&ROW(J33)&" contain the array formula "&ggetformula(J24) -> Cells J24:J33 contain the array formula {=MMULT(MINVERSE(B11:K20),D24:D33-B3)/SUM(MMULT(MINVERSE(B11:K20),D24:D33-B3))} | J28: 0.2218586582 | K28: MO | L28: 0.2469082126
A29: 0.009657741309 | B29: 0 | C29: AXP | D29: 0.01035941811 | J29: 0.1888093948 | K29: AXP | L29: 0.1057326892
A30: 0.01172958658 | B30: 0 | C30: AA | D30: 0.0121829091 | J30: 0.001894186767 | K30: AA | L30: 0.04534621578
A31: 0.008408487992 | B31: 0 | C31: DD | D31: 0.0088161606 | J31: 0.09113110812 | K31: DD | L31: 0.06170692432
A32: 0.007675359996 | B32: 0 | C32: MRK | D32: 0.007869467381 | J32: 0.1061003865 | K32: MRK | L32: 0.1280354267
A33: 0.007320135868 | B33: 0 | C33: MMM | D33: 0.00765271096 | J33: 0.1004720226 | K33: MMM | L33: 0.09806763285
A36: Tracking matrix
B37: GM | C37: HD | D37: IP | E37: HPQ | F37: MO | G37: AXP | H37: AA | I37: DD | J37: MRK | K37: MMM
A38: GM | B38: =bltracking(B11:K20) -> 1 | C38: 0.2588540594 | D38: 0.1999397443 | E38: 0.3540217143 | F38: 0.1153069933 | G38: 0.2788088886 | H38: 0.3920188159 | I38: 0.1554539522 | J38: 0.08290972142 | K38: 0.1169023112
A39: HD | B39: 0.4257350619 | C39: 1 | D39: 0.2603103089 | E39: 0.5933534169 | F39: 0.3119355952 | G39: 0.4634630269 | H39: 0.6375633703 | I39: 0.2834009801 | J39: 0.02496271369 | K39: 0.2501168515
A40: IP | B40: 0.5985157215 | C40: 0.4737872392 | D40: 1 | E40: 0.7939763996 | F40: 0.02216951316 | G40: 0.5954061459 | H40: 1.09944568 | I40: 0.5305674035 | J40: 0.3055717984 | K40: 0.4062942157
A41: HPQ | B41: 0.3527006497 | C41: 0.359422589 | D41: 0.2642454525 | E41: 1 | F41: 0.2161739965 | G41: 0.4145160792 | H41: 0.5096849447 | I41: 0.2791233999 | J41: 0.166530947 | K41: 0.1878305186
A42: MO | B42: 0.1768552234 | C42: 0.2908993428 | D42: 0.0113590489 | E42: 0.3328046118 | F42: 1 | G42: 0.2096202304 | H42: 0.2350791345 | I42: 0.1158440462 | J42: 0.08844965199 | K42: 0.1045738318
A43: AXP | B43: 0.7843049431 | C43: 0.7927002444 | D43: 0.5595194909 | E43: 1.17042438 | F43: 0.384458341 | G43: 1 | H43: 0.8956112247 | I43: 0.4624109441 | J43: 0.2555776544 | K43: 0.3270059513
A44: AA | B44: 0.5005918107 | C44: 0.4950120229 | D44: 0.4690014384 | E44: 0.6532843802 | F44: 0.195717053 | G44: 0.4065537947 | H44: 1 | I44: 0.4404001592 | J44: 0.1937719151 | K44: 0.2624874694
A45: DD | B45: 0.4820100073 | C45: 0.534282804 | D45: 0.5495641842 | E45: 0.8687087076 | F45: 0.2341886063 | G45: 0.5096875842 | H45: 1.069362441 | I45: 1 | J45: 0.4327239261 | K45: 0.5066687403
A46: MRK | B46: 0.1483470384 | C46: 0.0271569368 | D46: 0.1826460415 | E46: 0.299083199 | F46: 0.1031828002 | G46: 0.1625616009 | H46: 0.2715109991 | I46: 0.2497066142 | J46: 1 | K46: 0.07406216524
A47: MMM | B47: 0.4436921424 | C47: 0.577187816 | D47: 0.5151371246 | E47: 0.7155639275 | F47: 0.2587732731 | G47: 0.4412004635 | H47: 0.7801720516 | I47: 0.6201952902 | J47: 0.1571019663 | K47: 1

Sheet Page 324
A1: MULTIPLE OPINIONS
A2: Anticipated benchmark return | B2: =12%/12 -> 0.01 | C2: =getformula(B2) -> <-- =12%/12
A3: Current t-bill rate | B3: ='Page 310'!B19 -> 0.004025
B5: General Motors GM | C5: Home Depot HD | D5: International Paper IP | E5: Hewlett-Packard HPQ | F5: Altria MO | G5: American Express AXP | H5: Alcoa Aluminum AA | I5: DuPont DD | J5: Merck MRK | K5: MMM
A6: Market cap (billion $) | B6: 16.85 | C6: 73.98 | D6: 15.92 | E6: 88.37 | F6: 153.33 | G6: 65.66 | H6: 28.16 | I6: 38.32 | J6: 79.51 | K6: 60.9
A7: Benchmark proportions | B7: 0.02713365539 | C7: 0.1191304348 | D7: 0.02563607085 | E7: 0.1423027375 | F7: 0.2469082126 | G7: 0.1057326892 | H7: 0.04534621578 | I7: 0.06170692432 | J7: 0.1280354267 | K7: 0.09806763285
A9: Variance-covariance matrix
B10: GM | C10: HD | D10: IP | E10: HPQ | F10: MO | G10: AXP | H10: AA | I10: DD | J10: MRK | K10: MMM
A11: GM | B11: ='Page 310'!B8:K17 -> 0.01182788729 | C11: 0.003061696639 | D11: 0.00236486476 | E11: 0.004187328935 | F11: 0.001363838121 | G11: 0.00329772011 | H11: 0.00463675437 | I11: 0.001838691825 | J11: 0.0009806468402 | K11: 0.00138270736
A12: HD | B12: 0.003061696639 | C12: 0.007191553885 | D12: 0.001872035613 | E12: 0.004267133071 | F12: 0.002243301642 | G12: 0.003333019332 | H12: 0.004585071332 | I12: 0.00203809342 | J12: 0.0001795207006 | K12: 0.001798728815
A13: IP | B13: 0.00236486476 | C13: 0.001872035613 | D13: 0.003951215775 | E13: 0.003137172075 | F13: 8.759653012e-05 | G13: 0.002352578156 | H13: 0.004344147113 | I13: 0.002096386294 | J13: 0.00120738011 | K13: 0.001605356114
A14: HPQ | B14: 0.004187328935 | C14: 0.004267133071 | D14: 0.003137172075 | E14: 0.01187218946 | F14: 0.002566458642 | G14: 0.004921213425 | H14: 0.006051076227 | I14: 0.003313805886 | J14: 0.001977086953 | K14: 0.002229959503
A15: MO | B15: 0.001363838121 | C15: 0.002243301642 | D15: 8.759653012e-05 | E15: 0.002566458642 | F15: 0.007711607803 | G15: 0.001616509004 | H15: 0.001812838088 | I15: 0.0008933438506 | J15: 0.0006820890265 | K15: 0.0008064323777
A16: AXP | B16: 0.00329772011 | C16: 0.003333019332 | D16: 0.002352578156 | E16: 0.004921213425 | F16: 0.001616509004 | G16: 0.004204640222 | H16: 0.003765722978 | I16: 0.001944271655 | J16: 0.001074612086 | K16: 0.001374942375
A17: AA | B17: 0.00463675437 | C17: 0.004585071332 | D17: 0.004344147113 | E17: 0.006051076227 | F17: 0.001812838088 | G17: 0.003765722978 | H17: 0.009262545394 | I17: 0.004079226466 | J17: 0.001794821159 | K17: 0.002431302101
A18: DD | B18: 0.001838691825 | C18: 0.00203809342 | D18: 0.002096386294 | E18: 0.003313805886 | F18: 0.0008933438506 | G18: 0.001944271655 | H18: 0.004079226466 | I18: 0.003814634131 | J18: 0.001650683458 | K18: 0.00193275587
A19: MRK | B19: 0.0009806468402 | C19: 0.0001795207006 | D19: 0.00120738011 | E19: 0.001977086953 | F19: 0.0006820890265 | G19: 0.001074612086 | H19: 0.001794821159 | I19: 0.001650683458 | J19: 0.006610491527 | K19: 0.0004895873158
A20: MMM | B20: 0.00138270736 | C20: 0.001798728815 | D20: 0.001605356114 | E20: 0.002229959503 | F20: 0.0008064323777 | G20: 0.001374942375 | H20: 0.002431302101 | I20: 0.00193275587 | J20: 0.0004895873158 | K20: 0.003116366571
A23: Expected benchmark returns, no opinions | B23: Analyst opinion, delta | D23: Returns adjusted for opinions | J23: Opinion-adjusted optimized portfolio | L23: Portfolio benchmark, no opinions
A24: =(MMULT(B11:K20,TRANSPOSE(B7:K7))*(B2-B3)/MMULT(B7:K7,MMULT(B11:K20,TRANSPOSE(B7:K7))))+B3 -> 0.009569555681 | B24: =MMULT(MINVERSE(B52:K61),D24:D33-A24:A33) -> 0.001940485362 | C24: GM | D24: 0.011 | E24: =getformula(D24) -> <-- 0.011 | J24: =MMULT(MINVERSE(B11:K20),D24:D33-B3)/SUM(MMULT(MINVERSE(B11:K20),D24:D33-B3)) -> 0.1034735602 | K24: GM | L24: =TRANSPOSE(B7:K7) -> 0.02713365539
A25: 0.01046501754 | B25: -0.0008711908819 | C25: HD | D25: =1% -> 0.01 | E25: =getformula(D25) -> <-- =1% | J25: 0.06042220921 | K25: HD | L25: 0.1191304348
A26: 0.007725632995 | B26: -0.0001268789748 | C26: IP | D26: =A26 -> 0.007725632995 | E26: =getformula(D26) -> <-- =A26 | J26: 0.01282460924 | K26: IP | L26: 0.02563607085
A27: 0.0135682336 | B27: 7.897175848e-06 | C27: HPQ | D27: =A27 -> 0.0135682336 | E27: =getformula(D27) -> <-- =A27 | J27: 0.1408870707 | K27: HPQ | L27: 0.1423027375
A28: 0.01049908204 | B28: 9.290667311e-05 | C28: MO | D28: 0.01049908204 | E28: <-- =A28 | F28: ="Cells "&CHAR(COLUMN(J24)+64)&ROW(J24)&":"&CHAR(COLUMN(J33)+64)&ROW(J33)&" contain the array formula "&ggetformula(J24) -> Cells J24:J33 contain the array formula {=MMULT(MINVERSE(B11:K20),D24:D33-B3)/SUM(MMULT(MINVERSE(B11:K20),D24:D33-B3))} | J28: 0.2506838132 | K28: MO | L28: 0.2469082126
A29: 0.009657741309 | B29: -0.0005834479386 | C29: AXP | D29: 0.009657741309 | E29: <-- =A29 | J29: 0.09645199754 | K29: AXP | L29: 0.1057326892
A30: 0.01172958658 | B30: -0.0003992931089 | C30: AA | D30: 0.01172958658 | J30: 0.03879085845 | K30: AA | L30: 0.04534621578
A31: 0.008408487992 | B31: 0.0003181516392 | C31: DD | D31: 0.008408487992 | J31: 0.07163154918 | K31: DD | L31: 0.06170692432
A32: 0.007675359996 | B32: -0.0001343700855 | C32: MRK | D32: 0.007675359996 | J32: 0.1191178048 | K32: MRK | L32: 0.1280354267
A33: 0.007320135868 | B33: 7.025850822e-05 | C33: MMM | D33: 0.007320135868 | E33: =getformula(D33) -> <-- =A33 | J33: 0.1057165274 | K33: MMM | L33: 0.09806763285
B34: =" ↑ "&ggetformula(B33) -> ↑ {=MMULT(MINVERSE(B52:K61),D24:D33-A24:A33)}
A36: g, opinion confidence | B36: 0.6 | C36: <-- Weight attached to analyst opinion
A38: Opinion and confidence-adjusted portfolio
A39: GM | B39: =B36*J24:J33+(1-B36)*L24:L33 -> 0.07293759826 | C39: =getformula(B39) -> <-- {=B36*J24:J33+(1-B36)*L24:L33}
A40: HD | B40: 0.08390549944
A41: IP | B41: 0.01794919388
A42: HPQ | B42: 0.1414533375
A43: MO | B43: 0.2491735729
A44: AXP | B44: 0.1001642742
A45: AA | B45: 0.04141300138
A46: DD | B46: 0.06766169923
A47: MRK | B47: 0.1226848536
A48: MMM | B48: 0.1026569696
A50: Tracking matrix
B51: GM | C51: HD | D51: IP | E51: HPQ | F51: MO | G51: AXP | H51: AA | I51: DD | J51: MRK | K51: MMM
A52: GM | B52: =bltracking(B11:K20) -> 1 | C52: 0.2588540594 | D52: 0.1999397443 | E52: 0.3540217143 | F52: 0.1153069933 | G52: 0.2788088886 | H52: 0.3920188159 | I52: 0.1554539522 | J52: 0.08290972142 | K52: 0.1169023112
A53: HD | B53: 0.4257350619 | C53: 1 | D53: 0.2603103089 | E53: 0.5933534169 | F53: 0.3119355952 | G53: 0.4634630269 | H53: 0.6375633703 | I53: 0.2834009801 | J53: 0.02496271369 | K53: 0.2501168515
A54: IP | B54: 0.5985157215 | C54: 0.4737872392 | D54: 1 | E54: 0.7939763996 | F54: 0.02216951316 | G54: 0.5954061459 | H54: 1.09944568 | I54: 0.5305674035 | J54: 0.3055717984 | K54: 0.4062942157
A55: HPQ | B55: 0.3527006497 | C55: 0.359422589 | D55: 0.2642454525 | E55: 1 | F55: 0.2161739965 | G55: 0.4145160792 | H55: 0.5096849447 | I55: 0.2791233999 | J55: 0.166530947 | K55: 0.1878305186
A56: MO | B56: 0.1768552234 | C56: 0.2908993428 | D56: 0.0113590489 | E56: 0.3328046118 | F56: 1 | G56: 0.2096202304 | H56: 0.2350791345 | I56: 0.1158440462 | J56: 0.08844965199 | K56: 0.1045738318
A57: AXP | B57: 0.7843049431 | C57: 0.7927002444 | D57: 0.5595194909 | E57: 1.17042438 | F57: 0.384458341 | G57: 1 | H57: 0.8956112247 | I57: 0.4624109441 | J57: 0.2555776544 | K57: 0.3270059513
A58: AA | B58: 0.5005918107 | C58: 0.4950120229 | D58: 0.4690014384 | E58: 0.6532843802 | F58: 0.195717053 | G58: 0.4065537947 | H58: 1 | I58: 0.4404001592 | J58: 0.1937719151 | K58: 0.2624874694
A59: DD | B59: 0.4820100073 | C59: 0.534282804 | D59: 0.5495641842 | E59: 0.8687087076 | F59: 0.2341886063 | G59: 0.5096875842 | H59: 1.069362441 | I59: 1 | J59: 0.4327239261 | K59: 0.5066687403
A60: MRK | B60: 0.1483470384 | C60: 0.0271569368 | D60: 0.1826460415 | E60: 0.299083199 | F60: 0.1031828002 | G60: 0.1625616009 | H60: 0.2715109991 | I60: 0.2497066142 | J60: 1 | K60: 0.07406216524
A61: MMM | B61: 0.4436921424 | C61: 0.577187816 | D61: 0.5151371246 | E61: 0.7155639275 | F61: 0.2587732731 | G61: 0.4412004635 | H61: 0.7801720516 | I61: 0.6201952902 | J61: 0.1571019663 | K61: 1

Sheet Page 325
A1: INDEX DATA, 2001-2005
A2: 5 YEARS ENDING DEC05
A3: Correlation | B3: S&P 500 | C3: MSCI World ex-US | D3: Russell 2000 | E3: MSCI Emerging | F3: LB Global aggregate | H3: Weight | I3: Standard deviation
A4: S&P 500 | B4: 1 | C4: 0.88 | D4: 0.84 | E4: 0.81 | F4: -0.16 | H4: 0.24 | I4: 0.149
A5: MSCI World ex-US | B5: 0.88 | C5: 1 | D5: 0.83 | E5: 0.87 | F5: 0.07 | H5: 0.26 | I5: 0.156
A6: Russell 2000 | B6: 0.84 | C6: 0.83 | D6: 1 | E6: 0.83 | F6: -0.14 | H6: 0.03 | I6: 0.192
A7: MSCI Emerging | B7: 0.81 | C7: 0.87 | D7: 0.83 | E7: 1 | F7: -0.05 | H7: 0.03 | I7: 0.21
A8: LB Global aggregate | B8: -0.16 | C8: 0.07 | D8: -0.14 | E8: -0.05 | F8: 1 | H8: 0.44 | I8: 0.058
H9: =SUM(H4:H8) -> 1
A12: ="Variance-covariance matrix: cells below contain formula "&CHAR(10)&ggetformula(B14) -> Variance-covariance matrix: cells below contain formula {=I4:I8*TRANSPOSE(I4:I8)*B4:F8}
A13: Variance-covariance matrix | B13: S&P 500 | C13: MSCI World ex-US | D13: Russell 2000 | E13: MSCI Emerging | F13: LB Global aggregate
A14: S&P 500 | B14: =I4:I8*TRANSPOSE(I4:I8)*B4:F8 -> 0.022201 | C14: 0.02045472 | D14: 0.02403072 | E14: 0.0253449 | F14: -0.00138272
A15: MSCI World ex-US | B15: 0.02045472 | C15: 0.024336 | D15: 0.02486016 | E15: 0.0285012 | F15: 0.00063336
A16: Russell 2000 | B16: 0.02403072 | C16: 0.02486016 | D16: 0.036864 | E16: 0.0334656 | F16: -0.00155904
A17: MSCI Emerging | B17: 0.0253449 | C17: 0.0285012 | D17: 0.0334656 | E17: 0.0441 | F17: -0.000609
A18: LB Global aggregate | B18: -0.00138272 | C18: 0.00063336 | D18: -0.00155904 | E18: -0.000609 | F18: 0.003364
A20: Checks
A21: First row of var-cov | B21: =I4^2 -> 0.022201 | C21: =I4*I5*C4 -> 0.02045472 | D21: =I4*I6*D4 -> 0.02403072 | E21: =I4*I7*E4 -> 0.0253449 | F21: =I4*I8*F4 -> -0.00138272 | G21: =getformula(F21) -> <-- =I4*I8*F4
A22: Standard deviation of composite | B22: =SQRT(MMULT(MMULT(TRANSPOSE(H4:H8),B14:F18),H4:H8)) -> 0.08717860132 | C22: =getformula(B22) -> <-- {=SQRT(MMULT(MMULT(TRANSPOSE(H4:H8),B14:F18),H4:H8))}
A25: Risk-free rate | B25: 0.05
A26: Expected return on S&P 500 | B26: 0.12
A28: Black-Litterman implied returns
A29: S&P 500 | B29: =MMULT(B14:F18,H4:H8)*(B26-B25)/INDEX((MMULT(B14:F18,H4:H8)),1,1)+B25 -> 0.12 | C29: =getformula(B29) -> <-- {=MMULT(B14:F18,H4:H8)*(B26-B25)/INDEX((MMULT(B14:F18,H4:H8)),1,1)+B25}
A30: MSCI World ex-US | B30: 0.1297025628
A31: Russell 2000 | B31: 0.1329773944
A32: MSCI Emerging | B32: 0.1445060059
A33: LB Global aggregate | B33: 0.05758340144
